extractdate,publisheruri,publisherlabel,serviceyypeuri,servicetypelabel,Date of Transaction,LA Department incurring spend,Beneficiary,Gross Amount,Summary of Purpose of Spend,Merchant Category
02/02/2015,http://opendatacommunities.org/id/county-council/surrey,Surrey,http://id.esd.org.uk/service/1465,Council expenditure,29/09/2014,TRAFFIC SYSTEMS,TVLICENSING.CO.UK,145.50,LICENCE FEES,"CONSULTING, MANAGEMENT, AND PUBLIC RELATIONS SVCS"
02/02/2015,http://opendatacommunities.org/id/county-council/surrey,Surrey,http://id.esd.org.uk/service/1465,Council expenditure,30/09/2014,KARIBU COMMUNITY HOME,PARENTPAY.COM&PAY24-7.,16.00,EDUC VISITS/HOLS/CAMPS/TOYS,"COLLEGES, UNIV, PRO SCHOOLS, JUNIOR COLLEGES"
02/02/2015,http://opendatacommunities.org/id/county-council/surrey,Surrey,http://id.esd.org.uk/service/1465,Council expenditure,30/09/2014,CENTRAL COMMS - PUBLIC HEALTH CAMPAIGNS,GOOGLE  ADWS2060179426,500.00,PUBLICITY,DIRECT MARKETING-CONTINUITY/SUBSCRIPTION MERCHANTS
02/02/2015,http://opendatacommunities.org/id/county-council/surrey,Surrey,http://id.esd.org.uk/service/1465,Council expenditure,30/09/2014,NE EDUCATION PSYCHOLOGISTS,THE NURTURE GROUP NETW,44.45,BOOKS,"ORGANIZATIONS, CHARITABLE AND SOCIAL SERVICES"
02/02/2015,http://opendatacommunities.org/id/county-council/surrey,Surrey,http://id.esd.org.uk/service/1465,Council expenditure,30/09/2014,KARIBU COMMUNITY HOME,TESCO STORE 2812,476.85,PURCHASE OF FOOD (RAW MATERIALS),"GROCERY STORES, SUPERMARKETS"
02/02/2015,http://opendatacommunities.org/id/county-council/surrey,Surrey,http://id.esd.org.uk/service/1465,Council expenditure,30/09/2014,DEVELOPMENT TEAM,YTRIA,"1,894.65",COMPUTER SOFTWARE,COMPUTER SOFTWARE STORES
02/02/2015,http://opendatacommunities.org/id/county-council/surrey,Surrey,http://id.esd.org.uk/service/1465,Council expenditure,30/09/2014,CENTRAL COMMS - PUBLIC HEALTH CAMPAIGNS,FACEBK  HTBZZ6JAK2,35.05,PUBLICITY,ADVERTISING SERVICES
02/02/2015,http://opendatacommunities.org/id/county-council/surrey,Surrey,http://id.esd.org.uk/service/1465,Council expenditure,01/10/2014,ARUNDEL,ASDA STORES 7134,-0.89,REFRESHMENT COSTS,"GROCERY STORES, SUPERMARKETS"
02/02/2015,http://opendatacommunities.org/id/county-council/surrey,Surrey,http://id.esd.org.uk/service/1465,Council expenditure,01/10/2014,ARUNDEL,FOOD FOR SERVICE USERS (99.18%),120.93,REFRESHMENT COSTS,"GROCERY STORES, SUPERMARKETS"
02/02/2015,http://opendatacommunities.org/id/county-council/surrey,Surrey,http://id.esd.org.uk/service/1465,Council expenditure,01/10/2014,ARUNDEL,FOOD FOR SERVICE USERS (0.82%),1.00,REFRESHMENT COSTS,"GROCERY STORES, SUPERMARKETS"
02/02/2015,http://opendatacommunities.org/id/county-council/surrey,Surrey,http://id.esd.org.uk/service/1465,Council expenditure,01/10/2014,SUPERFAST BROADBAND ECONOMIC DEV,MYSITE DESIGN PTY LTD,"3,743.12",COMPUTER SERVICES,"COMP PROGRAMING,DATA PRCSNG,INTGRTD SYS DSGN SRVS"
02/02/2015,http://opendatacommunities.org/id/county-council/surrey,Surrey,http://id.esd.org.uk/service/1465,Council expenditure,01/10/2014,KARIBU COMMUNITY HOME,PRIMARK,97.50,"CLOTHING, UNIFORM AND LAUNDRY",FAMILY CLOTHING STORES
02/02/2015,http://opendatacommunities.org/id/county-council/surrey,Surrey,http://id.esd.org.uk/service/1465,Council expenditure,01/10/2014,SFRS-SERVICE DELIVERY,PAYPAL  DESIGNACRYL,49.51,EQUIPMENT,BUSINESS SERVICES-NOT ELSEWHERE CLASSIFIED
02/02/2015,http://opendatacommunities.org/id/county-council/surrey,Surrey,http://id.esd.org.uk/service/1465,Council expenditure,01/10/2014,HOPE SERVICE WEST,CEX,7.00,CURRICULUM CONSUMABLES,ELECTRICAL PARTS AND EQUIPMENT
02/02/2015,http://opendatacommunities.org/id/county-council/surrey,Surrey,http://id.esd.org.uk/service/1465,Council expenditure,01/10/2014,TARGETED INTERVENTION,CRAGGY ISLAND LTD,65.00,EDUC VISITS/HOLS/CAMPS/TOYS,"CLUBS-CNTRY,MBRSHIP(ATHLET,REC,SPRTS,PRIVATE GOLF"
02/02/2015,http://opendatacommunities.org/id/county-council/surrey,Surrey,http://id.esd.org.uk/service/1465,Council expenditure,01/10/2014,CENTRAL COMMS - PUBLIC HEALTH CAMPAIGNS,FACEBOOK R3DMW6E2S2,36.57,PUBLICITY,ADVERTISING SERVICES
02/02/2015,http://opendatacommunities.org/id/county-council/surrey,Surrey,http://id.esd.org.uk/service/1465,Council expenditure,01/10/2014,BURBANK COMMUNITY HOME,SAINSBURYS SACAT 0802,4.99,EQUIPMENT,"GROCERY STORES, SUPERMARKETS"
02/02/2015,http://opendatacommunities.org/id/county-council/surrey,Surrey,http://id.esd.org.uk/service/1465,Council expenditure,01/10/2014,FIRE AND RESCUE,EASYJET00 000EN8BTQS,120.34,TRAINING EXPENSES EXTERNAL GENERAL,EASYJET
02/02/2015,http://opendatacommunities.org/id/county-council/surrey,Surrey,http://id.esd.org.uk/service/1465,Council expenditure,01/10/2014,TRAINING AND DEVELOPMENT,CINNAMON STYLE EVENTS,876.00,SUBSISTENCE AND CONFERENCE EXPENSES,MEN'S AND WOMEN'S CLOTHING STORES
02/02/2015,http://opendatacommunities.org/id/county-council/surrey,Surrey,http://id.esd.org.uk/service/1465,Council expenditure,01/10/2014,COUNTYWIDE MANAGED PRINT,AMAZON  MKTPLCE EU-UK,33.54,COMPUTER CONSUMABLES,BOOK STORES
02/02/2015,http://opendatacommunities.org/id/county-council/surrey,Surrey,http://id.esd.org.uk/service/1465,Council expenditure,01/10/2014,LEAVING CARE PACKAGES,TRAVELODGE WEBSITE,156.00,3RD PARTY PAYMENTS PRIVATE INDIV,TRAVELODGE
02/02/2015,http://opendatacommunities.org/id/county-council/surrey,Surrey,http://id.esd.org.uk/service/1465,Council expenditure,01/10/2014,SFRS TRANSPORT,WWW.EXPANSYS.COM,103.02,COMPUTER HARDWARE,"COMPUTERS, COMPUTER PERIPHERAL EQUIPMENT, SOFTWARE"
02/02/2015,http://opendatacommunities.org/id/county-council/surrey,Surrey,http://id.esd.org.uk/service/1465,Council expenditure,01/10/2014,SFRS TRANSPORT,WWW.PRINTEDPAPERPRODUC,34.62,STATIONERY,"OFFICE, SCHOOL SUPPLY, AND STATIONERY STORES"
02/02/2015,http://opendatacommunities.org/id/county-council/surrey,Surrey,http://id.esd.org.uk/service/1465,Council expenditure,01/10/2014,HASEN MANAGEMENT TEAM,WWW.PMGLTD.CO.UK,426.00,VENUE COSTS (INCLUDING HIRE OF ROOMS),BUSINESS SERVICES-NOT ELSEWHERE CLASSIFIED
02/02/2015,http://opendatacommunities.org/id/county-council/surrey,Surrey,http://id.esd.org.uk/service/1465,Council expenditure,01/10/2014,SE CARE - CP AND COURT LAC,SURREY CC CARD PAY,31.00,FEES,COMPUTER NETWORK/INFORMATION SERVICES
02/02/2015,http://opendatacommunities.org/id/county-council/surrey,Surrey,http://id.esd.org.uk/service/1465,Council expenditure,01/10/2014,ASSESSMENT TEAM,AMAZON  MKTPLCE EU-UK,2.40,STATIONERY,BOOK STORES
02/02/2015,http://opendatacommunities.org/id/county-council/surrey,Surrey,http://id.esd.org.uk/service/1465,Council expenditure,01/10/2014,SFRS TRANSPORT,MOBILE FLEETWASH UK LT,216.00,VEHICLE REPAIRS AND MAINTENANCE,CAR WASHES
02/02/2015,http://opendatacommunities.org/id/county-council/surrey,Surrey,http://id.esd.org.uk/service/1465,Council expenditure,01/10/2014,SE CARE - CP & COURT LAC,EASYJET00 000EN88X53,489.12,MISCELLANEOUS STAFF TRAVEL,EASYJET
02/02/2015,http://opendatacommunities.org/id/county-council/surrey,Surrey,http://id.esd.org.uk/service/1465,Council expenditure,01/10/2014,SW EDUCATION PSYCHOLOGISTS,PAYPAL  INCLUSIVESO,22.00,BOOKS,SCHOOLS & EDUCATIONAL SVC-NOT ELSEWHERE CLASSIFIED
02/02/2015,http://opendatacommunities.org/id/county-council/surrey,Surrey,http://id.esd.org.uk/service/1465,Council expenditure,01/10/2014,SFRS-SERVICE DELIVERY,SAMSUNGELECTRONICSUK,37.80,EQUIPMENT,ELECTRONIC SALES
02/02/2015,http://opendatacommunities.org/id/county-council/surrey,Surrey,http://id.esd.org.uk/service/1465,Council expenditure,01/10/2014,CENTRAL COMMS - PUBLIC HEALTH CAMPAIGNS,FACEBK  RGH2T6N9K2,37.18,PUBLICITY,ADVERTISING SERVICES
02/02/2015,http://opendatacommunities.org/id/county-council/surrey,Surrey,http://id.esd.org.uk/service/1465,Council expenditure,01/10/2014,SFRS TRANSPORT,MOBILE FLEETWASH UK LT,108.00,VEHICLE REPAIRS AND MAINTENANCE,CAR WASHES
02/02/2015,http://opendatacommunities.org/id/county-council/surrey,Surrey,http://id.esd.org.uk/service/1465,Council expenditure,01/10/2014,OUTDOOR EDUCATION CENTRE OPERATIONS,C&N CYCLES,25.18,EQUIPMENT,BICYCLE SHOPS-SALES AND SERVICE
02/02/2015,http://opendatacommunities.org/id/county-council/surrey,Surrey,http://id.esd.org.uk/service/1465,Council expenditure,01/10/2014,SERVICE DELIVERY RESOURCES,AMAZON  MKTPLCE EU-UK,65.91,OPERATIONAL FIRE EQUIPMENT,BOOK STORES
02/02/2015,http://opendatacommunities.org/id/county-council/surrey,Surrey,http://id.esd.org.uk/service/1465,Council expenditure,01/10/2014,HOPE SERVICE WEST,SAINSBURYS SACAT(4409),16.42,PURCHASE OF FOOD (RAW MATERIALS),"GROCERY STORES, SUPERMARKETS"
02/02/2015,http://opendatacommunities.org/id/county-council/surrey,Surrey,http://id.esd.org.uk/service/1465,Council expenditure,01/10/2014,LEAVING CARE PACKAGES,TRAVELODGE WEBSITE,227.60,3RD PARTY PAYMENTS PRIVATE INDIV,TRAVELODGE
02/02/2015,http://opendatacommunities.org/id/county-council/surrey,Surrey,http://id.esd.org.uk/service/1465,Council expenditure,01/10/2014,HOPE SERVICE EAST,SAINSBURYS 0683,28.37,PURCHASE OF FOOD (RAW MATERIALS),"GROCERY STORES, SUPERMARKETS"
02/02/2015,http://opendatacommunities.org/id/county-council/surrey,Surrey,http://id.esd.org.uk/service/1465,Council expenditure,01/10/2014,EWELL LIBRARY,WP-STAMPS DIRECT L,86.60,EQUIPMENT,"OFFICE, SCHOOL SUPPLY, AND STATIONERY STORES"
02/02/2015,http://opendatacommunities.org/id/county-council/surrey,Surrey,http://id.esd.org.uk/service/1465,Council expenditure,01/10/2014,CLOSED LANDFILL,SAINSBURYS SACAT 0661,38.83,PURCHASE OF FOOD (RAW MATERIALS),"GROCERY STORES, SUPERMARKETS"
02/02/2015,http://opendatacommunities.org/id/county-council/surrey,Surrey,http://id.esd.org.uk/service/1465,Council expenditure,01/10/2014,WASTE MINIMISATION,TRAINLINE.COM,84.51,MISCELLANEOUS STAFF TRAVEL,PASSENGER RAILWAYS
02/02/2015,http://opendatacommunities.org/id/county-council/surrey,Surrey,http://id.esd.org.uk/service/1465,Council expenditure,01/10/2014,SE CARE - CP AND COURT LAC,SURREY CC CARD PAY,11.00,FEES,COMPUTER NETWORK/INFORMATION SERVICES
02/02/2015,http://opendatacommunities.org/id/county-council/surrey,Surrey,http://id.esd.org.uk/service/1465,Council expenditure,01/10/2014,HERITAGE PUBLIC SERVICE,W M MORRISONS,19.29,REFRESHMENT COSTS,"GROCERY STORES, SUPERMARKETS"
02/02/2015,http://opendatacommunities.org/id/county-council/surrey,Surrey,http://id.esd.org.uk/service/1465,Council expenditure,01/10/2014,KARIBU COMMUNITY HOME,KFC-PEACOCKS CENTRE,10.98,PURCHASE OF FOOD (RAW MATERIALS),FAST FOOD RESTAURANTS
02/02/2015,http://opendatacommunities.org/id/county-council/surrey,Surrey,http://id.esd.org.uk/service/1465,Council expenditure,01/10/2014,TARGETED INTERVENTION,TESCO STORE 2160,11.50,EDUC VISITS/HOLS/CAMPS/TOYS,"GROCERY STORES, SUPERMARKETS"
02/02/2015,http://opendatacommunities.org/id/county-council/surrey,Surrey,http://id.esd.org.uk/service/1465,Council expenditure,01/10/2014,BURBANK COMMUNITY HOME,WWW.SURREYCC.GOV.UK,50.00,REFRESHMENT COSTS,GOVERNMENT SERVICES-NOT ELSEWHERE CLASSIFIED
02/02/2015,http://opendatacommunities.org/id/county-council/surrey,Surrey,http://id.esd.org.uk/service/1465,Council expenditure,01/10/2014,OUTDOOR EDUCATION CENTRE ESTATES,BURNTCOMMON CENTRE,347.89,VEHICLE REPAIRS AND MAINTENANCE,AUTOMOTIVE SERVICE SHOPS
02/02/2015,http://opendatacommunities.org/id/county-council/surrey,Surrey,http://id.esd.org.uk/service/1465,Council expenditure,01/10/2014,KARIBU COMMUNITY HOME,DEBENHAMS,16.00,"CLOTHING, UNIFORM AND LAUNDRY",DEPARTMENT STORES
02/02/2015,http://opendatacommunities.org/id/county-council/surrey,Surrey,http://id.esd.org.uk/service/1465,Council expenditure,01/10/2014,INNOVATION FUND,AMAZON EU,471.99,EQUIPMENT,DIRECT MARKETING-OTHER DIRECT MARKETERS/NOT ELSEW.
02/02/2015,http://opendatacommunities.org/id/county-council/surrey,Surrey,http://id.esd.org.uk/service/1465,Council expenditure,02/10/2014,ARUNDEL,FOOD FOR SERVICE USERS (97.93%),47.29,REFRESHMENT COSTS,"GROCERY STORES, SUPERMARKETS"
02/02/2015,http://opendatacommunities.org/id/county-council/surrey,Surrey,http://id.esd.org.uk/service/1465,Council expenditure,02/10/2014,ARUNDEL,FOOD FOR SERVICE USERS (2.07%),1.00,REFRESHMENT COSTS,"GROCERY STORES, SUPERMARKETS"
02/02/2015,http://opendatacommunities.org/id/county-council/surrey,Surrey,http://id.esd.org.uk/service/1465,Council expenditure,02/10/2014,ENSEMBLES,TICKETS 08712 301551,"1,000.00",EQUIPMENT,"THEATRICAL PRODUCERS(EXCL MOTION PIX),TICKET AGNCY"
02/02/2015,http://opendatacommunities.org/id/county-council/surrey,Surrey,http://id.esd.org.uk/service/1465,Council expenditure,02/10/2014,ARUNDEL,ASDA STORES 7134,95.67,REFRESHMENT COSTS,"GROCERY STORES, SUPERMARKETS"
02/02/2015,http://opendatacommunities.org/id/county-council/surrey,Surrey,http://id.esd.org.uk/service/1465,Council expenditure,02/10/2014,YSS YOUTH CENTRE IMPROVEMENTS,TVLICENSING.CO.UK,145.50,FEES,"CONSULTING, MANAGEMENT, AND PUBLIC RELATIONS SVCS"
02/02/2015,http://opendatacommunities.org/id/county-council/surrey,Surrey,http://id.esd.org.uk/service/1465,Council expenditure,02/10/2014,ACL CENTRAL EXPENDITURE,NIACE,65.00,TRAINING EXPENSES EXTERNAL GENERAL,BOOK STORES
02/02/2015,http://opendatacommunities.org/id/county-council/surrey,Surrey,http://id.esd.org.uk/service/1465,Council expenditure,02/10/2014,TRAINING LEGAL SERVICES,MBL SEMINARS,600.00,TRAINING EXPENSES EXTERNAL GENERAL,SCHOOLS & EDUCATIONAL SVC-NOT ELSEWHERE CLASSIFIED
02/02/2015,http://opendatacommunities.org/id/county-council/surrey,Surrey,http://id.esd.org.uk/service/1465,Council expenditure,02/10/2014,SFRS TRANSPORT,METROL SPRINGS LTD,189.30,VEHICLE REPAIRS AND MAINTENANCE,PROFESSIONAL SERVICES-NOT ELSEWHERE CLASSIFIED
02/02/2015,http://opendatacommunities.org/id/county-council/surrey,Surrey,http://id.esd.org.uk/service/1465,Council expenditure,02/10/2014,ARUNDEL,ASDA SUPERSTORE,41.96,REFRESHMENT COSTS,"GROCERY STORES, SUPERMARKETS"
02/02/2015,http://opendatacommunities.org/id/county-council/surrey,Surrey,http://id.esd.org.uk/service/1465,Council expenditure,02/10/2014,PROPERTY OPERATIONS TEAM,WICKES,36.52,PURCHASE OF BUILDING MATERIALS,HOME SUPPLY WAREHOUSE STORES
02/02/2015,http://opendatacommunities.org/id/county-council/surrey,Surrey,http://id.esd.org.uk/service/1465,Council expenditure,02/10/2014,SW EDUCATION WELFARE OFFICERS,STAYBRIDGE SUITES,132.00,VENUE COSTS (INCLUDING HIRE OF ROOMS),"LODGING-HOTELS,MOTELS,RESORTS-NOT CLASSIFIED"
02/02/2015,http://opendatacommunities.org/id/county-council/surrey,Surrey,http://id.esd.org.uk/service/1465,Council expenditure,02/10/2014,SERVICE DELIVERY RESOURCES,GEOGRAPHERS A-Z,7.12,OPERATIONAL FIRE EQUIPMENT,BOOK STORES
02/02/2015,http://opendatacommunities.org/id/county-council/surrey,Surrey,http://id.esd.org.uk/service/1465,Council expenditure,02/10/2014,NW CARE - LAC,VIR ATL21 2164873276,140.85,NON-STAFF RELATED TRANSPORT COSTS,VIRGIN ATLANTIC
02/02/2015,http://opendatacommunities.org/id/county-council/surrey,Surrey,http://id.esd.org.uk/service/1465,Council expenditure,02/10/2014,ASSESSMENT TEAM,AMAZON EU,12.98,STATIONERY,DIRECT MARKETING-OTHER DIRECT MARKETERS/NOT ELSEW.
02/02/2015,http://opendatacommunities.org/id/county-council/surrey,Surrey,http://id.esd.org.uk/service/1465,Council expenditure,02/10/2014,PE/CDT MAINTENANCE OVERHEADS,WWW.NISSEN.UK.COM,900.00,EQUIPMENT,SPORTING GOODS STORES
02/02/2015,http://opendatacommunities.org/id/county-council/surrey,Surrey,http://id.esd.org.uk/service/1465,Council expenditure,02/10/2014,ACL CENTRAL EXPENDITURE,SPLIT - FILING CABINET LOCK - REPAIR OF FILING CABINET (93.45%),27.80,DAY TO DAY MAINTENANCE,BOOK STORES
02/02/2015,http://opendatacommunities.org/id/county-council/surrey,Surrey,http://id.esd.org.uk/service/1465,Council expenditure,02/10/2014,ACL CENTRAL EXPENDITURE,DELIVERY CHARGE (6.55%),1.95,DAY TO DAY MAINTENANCE,BOOK STORES
02/02/2015,http://opendatacommunities.org/id/county-council/surrey,Surrey,http://id.esd.org.uk/service/1465,Council expenditure,02/10/2014,HILLSIDE,SAINSBURYS SACAT 0784,5.00,PURCHASE OF FOOD (RAW MATERIALS),"GROCERY STORES, SUPERMARKETS"
02/02/2015,http://opendatacommunities.org/id/county-council/surrey,Surrey,http://id.esd.org.uk/service/1465,Council expenditure,02/10/2014,ASSET PLANNING - OPERATIONS,SAINSBURYS SACAT 0652,2.96,REFRESHMENT COSTS,"GROCERY STORES, SUPERMARKETS"
02/02/2015,http://opendatacommunities.org/id/county-council/surrey,Surrey,http://id.esd.org.uk/service/1465,Council expenditure,02/10/2014,CENTRAL COMMS - PUBLIC HEALTH CAMPAIGNS,FACEBK  HSA3T6N9K2,55.27,PUBLICITY,ADVERTISING SERVICES
02/02/2015,http://opendatacommunities.org/id/county-council/surrey,Surrey,http://id.esd.org.uk/service/1465,Council expenditure,02/10/2014,CENTRAL COMMS - PUBLIC HEALTH CAMPAIGNS,FACEBOOK BEYRT662S2,20.42,PUBLICITY,ADVERTISING SERVICES
02/02/2015,http://opendatacommunities.org/id/county-council/surrey,Surrey,http://id.esd.org.uk/service/1465,Council expenditure,02/10/2014,HOPE SERVICE EAST,HORTON PARK GOLF,4.50,EDUC VISITS/HOLS/CAMPS/TOYS,"EATING PLACES, RESTAURANTS"
02/02/2015,http://opendatacommunities.org/id/county-council/surrey,Surrey,http://id.esd.org.uk/service/1465,Council expenditure,02/10/2014,LONGFIELD RESIDENTIAL CARE,MARKS & SPENCER,17.05,REFRESHMENT COSTS,"GROCERY STORES, SUPERMARKETS"
02/02/2015,http://opendatacommunities.org/id/county-council/surrey,Surrey,http://id.esd.org.uk/service/1465,Council expenditure,02/10/2014,PE/CDT MAINTENANCE OVERHEADS,WP-CONTINENTAL SPO,51.85,EQUIPMENT,"DURABLE GOODS, NOT ELSEWHERE CLASSIFIED"
02/02/2015,http://opendatacommunities.org/id/county-council/surrey,Surrey,http://id.esd.org.uk/service/1465,Council expenditure,02/10/2014,CLOSED LANDFILL,WAITROSE 190,38.53,PURCHASE OF FOOD (RAW MATERIALS),"GROCERY STORES, SUPERMARKETS"
02/02/2015,http://opendatacommunities.org/id/county-council/surrey,Surrey,http://id.esd.org.uk/service/1465,Council expenditure,02/10/2014,SERVICE DELIVERY SENIOR MANAGEMENT,NIX FLOWER STUDIO,28.00,NEWSPAPER AND PERIODICALS,FLORISTS
02/02/2015,http://opendatacommunities.org/id/county-council/surrey,Surrey,http://id.esd.org.uk/service/1465,Council expenditure,02/10/2014,HOPE SERVICE WEST,TESCO-STORES 2590,21.91,PURCHASE OF FOOD (RAW MATERIALS),"GROCERY STORES, SUPERMARKETS"
02/02/2015,http://opendatacommunities.org/id/county-council/surrey,Surrey,http://id.esd.org.uk/service/1465,Council expenditure,02/10/2014,PE/CDT MAINTENANCE OVERHEADS,WP-CONTINENTAL SPO,985.20,EQUIPMENT,"DURABLE GOODS, NOT ELSEWHERE CLASSIFIED"
02/02/2015,http://opendatacommunities.org/id/county-council/surrey,Surrey,http://id.esd.org.uk/service/1465,Council expenditure,02/10/2014,WEST CWD LAC CARE,GRO HM PASSPORT OFFICE,9.25,FEES,GOVERNMENT SERVICES-NOT ELSEWHERE CLASSIFIED
02/02/2015,http://opendatacommunities.org/id/county-council/surrey,Surrey,http://id.esd.org.uk/service/1465,Council expenditure,02/10/2014,HILLSIDE,FOOD FOR HILLSIDE (16.11%),14.20,PURCHASE OF FOOD (RAW MATERIALS),"GROCERY STORES, SUPERMARKETS"
02/02/2015,http://opendatacommunities.org/id/county-council/surrey,Surrey,http://id.esd.org.uk/service/1465,Council expenditure,02/10/2014,HILLSIDE,FOOD FOR HILLSIDE (83.89%),73.94,PURCHASE OF FOOD (RAW MATERIALS),"GROCERY STORES, SUPERMARKETS"
02/02/2015,http://opendatacommunities.org/id/county-council/surrey,Surrey,http://id.esd.org.uk/service/1465,Council expenditure,02/10/2014,HOPE SERVICE WEST,TESCO-STORES 2590,9.98,NEWSPAPER AND PERIODICALS,"GROCERY STORES, SUPERMARKETS"
02/02/2015,http://opendatacommunities.org/id/county-council/surrey,Surrey,http://id.esd.org.uk/service/1465,Council expenditure,02/10/2014,ASSET PLANNING - OPERATIONS,SAINSBURYS SACAT 0652,23.20,REFRESHMENT COSTS,"GROCERY STORES, SUPERMARKETS"
02/02/2015,http://opendatacommunities.org/id/county-council/surrey,Surrey,http://id.esd.org.uk/service/1465,Council expenditure,02/10/2014,PE/CDT MAINTENANCE OVERHEADS,BEARINGS AND BELTS,118.48,EQUIPMENT,"ARCHITECTURAL, ENGINEERING, AND SURVEYING SERVICES"
02/02/2015,http://opendatacommunities.org/id/county-council/surrey,Surrey,http://id.esd.org.uk/service/1465,Council expenditure,02/10/2014,TARGETED INTERVENTION,TESCO STORES-2047,10.89,EDUC VISITS/HOLS/CAMPS/TOYS,"GROCERY STORES, SUPERMARKETS"
02/02/2015,http://opendatacommunities.org/id/county-council/surrey,Surrey,http://id.esd.org.uk/service/1465,Council expenditure,02/10/2014,TRAINING LEGAL SERVICES,WWW.BPP PROF DEVLM,834.00,TRAINING EXPENSES EXTERNAL GENERAL,"COLLEGES, UNIV, PRO SCHOOLS, JUNIOR COLLEGES"
02/02/2015,http://opendatacommunities.org/id/county-council/surrey,Surrey,http://id.esd.org.uk/service/1465,Council expenditure,02/10/2014,COUNTYWIDE MANAGED PRINT,AMAZON EU,84.45,COMPUTER CONSUMABLES,DIRECT MARKETING-OTHER DIRECT MARKETERS/NOT ELSEW.
02/02/2015,http://opendatacommunities.org/id/county-council/surrey,Surrey,http://id.esd.org.uk/service/1465,Council expenditure,02/10/2014,NW EDUCATION WELFARE OFFICERS,STAYBRIDGE SUITES,132.00,VENUE COSTS (INCLUDING HIRE OF ROOMS),"LODGING-HOTELS,MOTELS,RESORTS-NOT CLASSIFIED"
02/02/2015,http://opendatacommunities.org/id/county-council/surrey,Surrey,http://id.esd.org.uk/service/1465,Council expenditure,02/10/2014,OUTDOOR EDUCATION CATERING OPERATIONS,ASDA SUPERSTORE,45.56,PURCHASE OF FOOD (RAW MATERIALS),"GROCERY STORES, SUPERMARKETS"
02/02/2015,http://opendatacommunities.org/id/county-council/surrey,Surrey,http://id.esd.org.uk/service/1465,Council expenditure,02/10/2014,TARGETED INTERVENTION,TESCO STORES-2047,16.56,EDUC VISITS/HOLS/CAMPS/TOYS,"GROCERY STORES, SUPERMARKETS"
02/02/2015,http://opendatacommunities.org/id/county-council/surrey,Surrey,http://id.esd.org.uk/service/1465,Council expenditure,02/10/2014,RUTH HOUSE,THE FARM SHOP-,484.13,PURCHASE OF FOOD (RAW MATERIALS),"CLOCK, JEWELRY, WATCH, AND SILVERWARE STORE"
02/02/2015,http://opendatacommunities.org/id/county-council/surrey,Surrey,http://id.esd.org.uk/service/1465,Council expenditure,02/10/2014,SFRS TRANSPORT,DRI SEARCH ENGINE BUIL,80.57,COMPUTER SOFTWARE,"COMP PROGRAMING,DATA PRCSNG,INTGRTD SYS DSGN SRVS"
02/02/2015,http://opendatacommunities.org/id/county-council/surrey,Surrey,http://id.esd.org.uk/service/1465,Council expenditure,02/10/2014,SFRS TRANSPORT,NORBAR TORQUE TOOLS,110.75,OPERATIONAL FIRE EQUIPMENT,INDUSTRIAL SUPPLIES NOT ELSEWHERE CLASSIFIED
02/02/2015,http://opendatacommunities.org/id/county-council/surrey,Surrey,http://id.esd.org.uk/service/1465,Council expenditure,02/10/2014,PE/CDT MAINTENANCE OVERHEADS,WWW.NISSEN.UK.COM,210.00,EQUIPMENT,SPORTING GOODS STORES
02/02/2015,http://opendatacommunities.org/id/county-council/surrey,Surrey,http://id.esd.org.uk/service/1465,Council expenditure,03/10/2014,TRAINING AND DEVELOPMENT,TRAINING & CONFERENCE,-180.00,SUBSISTENCE AND CONFERENCE EXPENSES,"COLLEGES, UNIV, PRO SCHOOLS, JUNIOR COLLEGES"
02/02/2015,http://opendatacommunities.org/id/county-council/surrey,Surrey,http://id.esd.org.uk/service/1465,Council expenditure,03/10/2014,ASYLUM SEEKERS 18+,TVLICENSING.CO.UK,145.50,EQUIPMENT,"CONSULTING, MANAGEMENT, AND PUBLIC RELATIONS SVCS"
02/02/2015,http://opendatacommunities.org/id/county-council/surrey,Surrey,http://id.esd.org.uk/service/1465,Council expenditure,03/10/2014,TARGETED INTERVENTION,TOP GOLF ADDLESTON,42.00,EDUC VISITS/HOLS/CAMPS/TOYS,"CLUBS-CNTRY,MBRSHIP(ATHLET,REC,SPRTS,PRIVATE GOLF"
02/02/2015,http://opendatacommunities.org/id/county-council/surrey,Surrey,http://id.esd.org.uk/service/1465,Council expenditure,03/10/2014,NE CARE - CP AND COURT LAC ,KENT COUNTY COUNCIL,11.00,FEES,GOVERNMENT SERVICES-NOT ELSEWHERE CLASSIFIED
02/02/2015,http://opendatacommunities.org/id/county-council/surrey,Surrey,http://id.esd.org.uk/service/1465,Council expenditure,03/10/2014,ACL CENTRAL EXPENDITURE,CURRYS ONLINE,369.98,E25 CATERING EQUIPMENT,ELECTRONIC SALES
02/02/2015,http://opendatacommunities.org/id/county-council/surrey,Surrey,http://id.esd.org.uk/service/1465,Council expenditure,03/10/2014,PE/CDT MAINTENANCE OVERHEADS,WWW.CONCEPT2.CO.UK,54.49,EQUIPMENT,SPORTING GOODS STORES
02/02/2015,http://opendatacommunities.org/id/county-council/surrey,Surrey,http://id.esd.org.uk/service/1465,Council expenditure,03/10/2014,SFRS TRANSPORT,PP ANSON U.K. LTD,412.06,OPERATIONAL FIRE EQUIPMENT,DENTAL/LAB/MED/OPHTHALMIC HOSP EQUIP & SUPPLIES
02/02/2015,http://opendatacommunities.org/id/county-council/surrey,Surrey,http://id.esd.org.uk/service/1465,Council expenditure,03/10/2014,SOUTH WEST AREA TEAM,AMAZON  MKTPLCE EU-UK,26.50,EDUC VISITS/HOLS/CAMPS/TOYS,BOOK STORES
02/02/2015,http://opendatacommunities.org/id/county-council/surrey,Surrey,http://id.esd.org.uk/service/1465,Council expenditure,03/10/2014,CLOSED LANDFILL,SAINSBURYS SACAT 0661,8.60,PURCHASE OF FOOD (RAW MATERIALS),"GROCERY STORES, SUPERMARKETS"
02/02/2015,http://opendatacommunities.org/id/county-council/surrey,Surrey,http://id.esd.org.uk/service/1465,Council expenditure,03/10/2014,WORKING TOGETHER,AMAZON  MKTPLCE EU-UK,8.98,STATIONERY,BOOK STORES
02/02/2015,http://opendatacommunities.org/id/county-council/surrey,Surrey,http://id.esd.org.uk/service/1465,Council expenditure,03/10/2014,ENSURE PROVI INCLUSIVE - SEN AND INCLUSI,AMAZON EU,78.99,BOOKS,DIRECT MARKETING-OTHER DIRECT MARKETERS/NOT ELSEW.
02/02/2015,http://opendatacommunities.org/id/county-council/surrey,Surrey,http://id.esd.org.uk/service/1465,Council expenditure,03/10/2014,TRAINING AND DEVELOPMENT,TRAINING & CONFERENCE,360.00,SUBSISTENCE AND CONFERENCE EXPENSES,"COLLEGES, UNIV, PRO SCHOOLS, JUNIOR COLLEGES"
02/02/2015,http://opendatacommunities.org/id/county-council/surrey,Surrey,http://id.esd.org.uk/service/1465,Council expenditure,03/10/2014,CENTRAL COMMS - PUBLIC HEALTH CAMPAIGNS,GOOGLE  SVCSAPPS_SUPER,30.52,PUBLICITY,DIRECT MARKETING-CONTINUITY/SUBSCRIPTION MERCHANTS
02/02/2015,http://opendatacommunities.org/id/county-council/surrey,Surrey,http://id.esd.org.uk/service/1465,Council expenditure,03/10/2014,ED WELFARE ENFORCEMENT TEAM,AMAZON  MKTPLCE EU-UK,9.31,EQUIPMENT,BOOK STORES
02/02/2015,http://opendatacommunities.org/id/county-council/surrey,Surrey,http://id.esd.org.uk/service/1465,Council expenditure,03/10/2014,TRANSPORT,BTME GROUP LTD,144.30,"CLOTHING, UNIFORM AND LAUNDRY","HEALTH PRACTITIONERS, MEDICAL SRVCS-NOT ELSEWHERE"
02/02/2015,http://opendatacommunities.org/id/county-council/surrey,Surrey,http://id.esd.org.uk/service/1465,Council expenditure,03/10/2014,HILLSIDE,SAINSBURYS SACAT 0675,50.34,PURCHASE OF FOOD (RAW MATERIALS),"GROCERY STORES, SUPERMARKETS"
02/02/2015,http://opendatacommunities.org/id/county-council/surrey,Surrey,http://id.esd.org.uk/service/1465,Council expenditure,03/10/2014,NORTH EAST AREA TEAM,VUE NCS CITB HS&E TEST,17.50,EDUC VISITS/HOLS/CAMPS/TOYS,SCHOOLS & EDUCATIONAL SVC-NOT ELSEWHERE CLASSIFIED
02/02/2015,http://opendatacommunities.org/id/county-council/surrey,Surrey,http://id.esd.org.uk/service/1465,Council expenditure,03/10/2014,HERITAGE ENTERPRISE (SCAU),AZPACK LTD,178.08,EQUIPMENT,ELECTRICAL PARTS AND EQUIPMENT
02/02/2015,http://opendatacommunities.org/id/county-council/surrey,Surrey,http://id.esd.org.uk/service/1465,Council expenditure,03/10/2014,ACL CENTRAL EXPENDITURE,AMAZON  MKTPLCE EU-UK,27.98,EQUIPMENT,BOOK STORES
02/02/2015,http://opendatacommunities.org/id/county-council/surrey,Surrey,http://id.esd.org.uk/service/1465,Council expenditure,03/10/2014,LEGAL SUPPORT TEAM,AMAZON  MKTPLCE EU-UK,17.43,EQUIPMENT,BOOK STORES
02/02/2015,http://opendatacommunities.org/id/county-council/surrey,Surrey,http://id.esd.org.uk/service/1465,Council expenditure,03/10/2014,LONGFIELD RESIDENTIAL CARE,DAVID MANN & SONS LTD,59.89,EQUIPMENT,HARDWARE STORES
02/02/2015,http://opendatacommunities.org/id/county-council/surrey,Surrey,http://id.esd.org.uk/service/1465,Council expenditure,03/10/2014,TARGETED INTERVENTION,HOBBYCRAFT,45.10,EDUC VISITS/HOLS/CAMPS/TOYS,"ARTIST SUPPLY STORES, CRAFT SHOPS"
02/02/2015,http://opendatacommunities.org/id/county-council/surrey,Surrey,http://id.esd.org.uk/service/1465,Council expenditure,03/10/2014,NIL RECOURSE PUBLIC FNDG 18+ ASYLUM SKR,TRAVELODGE WEBSITE,622.00,3RD PARTY PAYMENTS PRIVATE INDIV,TRAVELODGE
02/02/2015,http://opendatacommunities.org/id/county-council/surrey,Surrey,http://id.esd.org.uk/service/1465,Council expenditure,03/10/2014,CENTRAL COMMS - PUBLIC HEALTH CAMPAIGNS,FACEBK  PFASU6J9K2,27.77,PUBLICITY,ADVERTISING SERVICES
02/02/2015,http://opendatacommunities.org/id/county-council/surrey,Surrey,http://id.esd.org.uk/service/1465,Council expenditure,03/10/2014,ACL CENTRAL EXPENDITURE,AMAZON  MKTPLCE EU-UK,15.00,EQUIPMENT,BOOK STORES
02/02/2015,http://opendatacommunities.org/id/county-council/surrey,Surrey,http://id.esd.org.uk/service/1465,Council expenditure,03/10/2014,RUTH HOUSE,LAIDLAWS,136.34,EQUIPMENT,HARDWARE STORES
02/02/2015,http://opendatacommunities.org/id/county-council/surrey,Surrey,http://id.esd.org.uk/service/1465,Council expenditure,03/10/2014,LEAVING CARE PACKAGES,TRAVELODGE WEBSITE,233.00,3RD PARTY PAYMENTS PRIVATE INDIV,TRAVELODGE
02/02/2015,http://opendatacommunities.org/id/county-council/surrey,Surrey,http://id.esd.org.uk/service/1465,Council expenditure,03/10/2014,ASSISTANT DIRECTOR - HIGHWAYS,WWW.CARTRIDGESAVE.CO.U,223.81,PRINTING,"OFFICE, SCHOOL SUPPLY, AND STATIONERY STORES"
02/02/2015,http://opendatacommunities.org/id/county-council/surrey,Surrey,http://id.esd.org.uk/service/1465,Council expenditure,03/10/2014,LOCAL PREVENTION FRAMEWORK SPELTHORNE,U OF IL ONLINE PAYMENT,25.54,EQUIPMENT,"COLLEGES, UNIV, PRO SCHOOLS, JUNIOR COLLEGES"
02/02/2015,http://opendatacommunities.org/id/county-council/surrey,Surrey,http://id.esd.org.uk/service/1465,Council expenditure,03/10/2014,SFRS TRANSPORT,AMAZON  MKTPLCE EU-UK,15.31,OPERATIONAL FIRE EQUIPMENT,BOOK STORES
02/02/2015,http://opendatacommunities.org/id/county-council/surrey,Surrey,http://id.esd.org.uk/service/1465,Council expenditure,03/10/2014,COMMISSIONING AND DEVELOPMENT TEAM,USB2U,861.17,COMPUTER CONSUMABLES,MISCELLANEOUS PUBLISHING AND PRINTING
02/02/2015,http://opendatacommunities.org/id/county-council/surrey,Surrey,http://id.esd.org.uk/service/1465,Council expenditure,03/10/2014,BROOMFIELD (LIBERTAS),SAINSBURYS TO YOU 0652,149.03,PURCHASE OF FOOD (RAW MATERIALS),"GROCERY STORES, SUPERMARKETS"
02/02/2015,http://opendatacommunities.org/id/county-council/surrey,Surrey,http://id.esd.org.uk/service/1465,Council expenditure,03/10/2014,WAVERLEY BOROUGH TEAM,WWW.BLACKROSE.CO.UK,36.45,EQUIPMENT,WOMEN'S ACCESSORY AND SPECIALTY STORES
02/02/2015,http://opendatacommunities.org/id/county-council/surrey,Surrey,http://id.esd.org.uk/service/1465,Council expenditure,03/10/2014,COUNTY HALL,NATIONAL TYRE SERV,348.54,VEHICLE REPAIRS AND MAINTENANCE,"AUTOMOTIVE PARTS, ACCESSORIES STORES"
02/02/2015,http://opendatacommunities.org/id/county-council/surrey,Surrey,http://id.esd.org.uk/service/1465,Council expenditure,03/10/2014,CS BUSINESS SUPPORT EAST,WWW.BRACKETFINDER.CO.U,28.00,EQUIPMENT,DIRECT MARKETING-CONTINUITY/SUBSCRIPTION MERCHANTS
02/02/2015,http://opendatacommunities.org/id/county-council/surrey,Surrey,http://id.esd.org.uk/service/1465,Council expenditure,03/10/2014,FAIRCROFT COMMUNITY HOME,TICKETOFFICESALE,21.30,EDUC VISITS/HOLS/CAMPS/TOYS,PASSENGER RAILWAYS
02/02/2015,http://opendatacommunities.org/id/county-council/surrey,Surrey,http://id.esd.org.uk/service/1465,Council expenditure,03/10/2014,MALLOW CRESCENT,COTTON TRADERS LTD,23.99,"CLOTHING, UNIFORM AND LAUNDRY",MEN'S AND WOMEN'S CLOTHING STORES
02/02/2015,http://opendatacommunities.org/id/county-council/surrey,Surrey,http://id.esd.org.uk/service/1465,Council expenditure,03/10/2014,CENTRAL COMMS - PUBLIC HEALTH CAMPAIGNS,FACEBOOK HTK2W6J2S2,39.84,PUBLICITY,ADVERTISING SERVICES
02/02/2015,http://opendatacommunities.org/id/county-council/surrey,Surrey,http://id.esd.org.uk/service/1465,Council expenditure,03/10/2014,FAIRCROFT COMMUNITY HOME,HOMEBASE LTD 305,16.99,EQUIPMENT,"BUILDING MATERIALS, LUMBER STORES"
02/02/2015,http://opendatacommunities.org/id/county-council/surrey,Surrey,http://id.esd.org.uk/service/1465,Council expenditure,03/10/2014,ROW VOLUNTEERS EAST,AMAZON  MKTPLCE EU-UK,101.50,EQUIPMENT,BOOK STORES
02/02/2015,http://opendatacommunities.org/id/county-council/surrey,Surrey,http://id.esd.org.uk/service/1465,Council expenditure,03/10/2014,OCCUPATIONAL HEALTH,WWW.WMSPLC.CO.UK,78.46,EQUIPMENT,DENTAL/LAB/MED/OPHTHALMIC HOSP EQUIP & SUPPLIES
02/02/2015,http://opendatacommunities.org/id/county-council/surrey,Surrey,http://id.esd.org.uk/service/1465,Council expenditure,03/10/2014,CHEYNE WALK COMMUNITY HOME,WAITROSE 233,26.95,PURCHASE OF FOOD (RAW MATERIALS),"GROCERY STORES, SUPERMARKETS"
02/02/2015,http://opendatacommunities.org/id/county-council/surrey,Surrey,http://id.esd.org.uk/service/1465,Council expenditure,03/10/2014,ASSET PLANNING - OPERATIONS,BSI STANDARDS,103.20,BOOKS,BUSINESS SERVICES-NOT ELSEWHERE CLASSIFIED
02/02/2015,http://opendatacommunities.org/id/county-council/surrey,Surrey,http://id.esd.org.uk/service/1465,Council expenditure,03/10/2014,OUTDOOR EDUCATION CENTRE OPERATIONS,B & Q,29.33,EQUIPMENT,"BUILDING MATERIALS, LUMBER STORES"
02/02/2015,http://opendatacommunities.org/id/county-council/surrey,Surrey,http://id.esd.org.uk/service/1465,Council expenditure,03/10/2014,ACL CENTRAL EXPENDITURE,AMAZON  MKTPLCE EU-UK,74.90,EQUIPMENT,BOOK STORES
02/02/2015,http://opendatacommunities.org/id/county-council/surrey,Surrey,http://id.esd.org.uk/service/1465,Council expenditure,03/10/2014,PE/CDT MAINTENANCE OVERHEADS,MARGNOR FASTENERS,228.01,EQUIPMENT,MISCELLANEOUS AND SPECIALTY RETAIL STORES
02/02/2015,http://opendatacommunities.org/id/county-council/surrey,Surrey,http://id.esd.org.uk/service/1465,Council expenditure,03/10/2014,IMT SUPPORT SERVICE DESK,AMAZON  MKTPLCE EU-UK,13.98,EQUIPMENT,BOOK STORES
02/02/2015,http://opendatacommunities.org/id/county-council/surrey,Surrey,http://id.esd.org.uk/service/1465,Council expenditure,03/10/2014,HILLSIDE,ARGOS RETAIL GROUP,188.94,EQUIPMENT,DISCOUNT STORES
02/02/2015,http://opendatacommunities.org/id/county-council/surrey,Surrey,http://id.esd.org.uk/service/1465,Council expenditure,03/10/2014,ARUNDEL,FOOD FOR SERVICE USERS (94.32%),132.79,REFRESHMENT COSTS,"GROCERY STORES, SUPERMARKETS"
02/02/2015,http://opendatacommunities.org/id/county-council/surrey,Surrey,http://id.esd.org.uk/service/1465,Council expenditure,03/10/2014,ARUNDEL,FOOD FOR SERVICE USERS (5.68%),8.00,REFRESHMENT COSTS,"GROCERY STORES, SUPERMARKETS"
02/02/2015,http://opendatacommunities.org/id/county-council/surrey,Surrey,http://id.esd.org.uk/service/1465,Council expenditure,04/10/2014,ROW VOLUNTEERS EAST,AMAZON EU,27.99,EQUIPMENT,DIRECT MARKETING-OTHER DIRECT MARKETERS/NOT ELSEW.
02/02/2015,http://opendatacommunities.org/id/county-council/surrey,Surrey,http://id.esd.org.uk/service/1465,Council expenditure,04/10/2014,SW TEACHERS,AMAZON EU,12.66,BOOKS,DIRECT MARKETING-OTHER DIRECT MARKETERS/NOT ELSEW.
02/02/2015,http://opendatacommunities.org/id/county-council/surrey,Surrey,http://id.esd.org.uk/service/1465,Council expenditure,04/10/2014,ROW VOLUNTEERS EAST,AMAZON EU,27.99,EQUIPMENT,DIRECT MARKETING-OTHER DIRECT MARKETERS/NOT ELSEW.
02/02/2015,http://opendatacommunities.org/id/county-council/surrey,Surrey,http://id.esd.org.uk/service/1465,Council expenditure,04/10/2014,LOCAL PREVENTION FRAMEWORK SPELTHORNE,WWW.DOMINOS.CO.UK,24.00,REFRESHMENT COSTS,"EATING PLACES, RESTAURANTS"
02/02/2015,http://opendatacommunities.org/id/county-council/surrey,Surrey,http://id.esd.org.uk/service/1465,Council expenditure,04/10/2014,ENSURE PROVI INCLUSIVE - SEN AND INCLUSI,AMAZON EU,71.00,BOOKS,DIRECT MARKETING-OTHER DIRECT MARKETERS/NOT ELSEW.
02/02/2015,http://opendatacommunities.org/id/county-council/surrey,Surrey,http://id.esd.org.uk/service/1465,Council expenditure,04/10/2014,HILLSIDE,SAINSBURYS 0675,154.74,PURCHASE OF FOOD (RAW MATERIALS),"GROCERY STORES, SUPERMARKETS"
02/02/2015,http://opendatacommunities.org/id/county-council/surrey,Surrey,http://id.esd.org.uk/service/1465,Council expenditure,04/10/2014,MEADOWVIEW COMMUNITY HOME,CLEANING MATERIALS (92%),23.00,CLEANING MATERIALS,"GROCERY STORES, SUPERMARKETS"
02/02/2015,http://opendatacommunities.org/id/county-council/surrey,Surrey,http://id.esd.org.uk/service/1465,Council expenditure,04/10/2014,MEADOWVIEW COMMUNITY HOME,PROVISIONS (8%),2.00,CLEANING MATERIALS,"GROCERY STORES, SUPERMARKETS"
02/02/2015,http://opendatacommunities.org/id/county-council/surrey,Surrey,http://id.esd.org.uk/service/1465,Council expenditure,04/10/2014,CENTRAL COMMS - PUBLIC HEALTH CAMPAIGNS,FACEBOOK AGUMW6NZR2,47.34,PUBLICITY,ADVERTISING SERVICES
02/02/2015,http://opendatacommunities.org/id/county-council/surrey,Surrey,http://id.esd.org.uk/service/1465,Council expenditure,04/10/2014,CENTRAL COMMS - PUBLIC HEALTH CAMPAIGNS,FACEBK  SK8YY6W9K2,31.34,PUBLICITY,ADVERTISING SERVICES
02/02/2015,http://opendatacommunities.org/id/county-council/surrey,Surrey,http://id.esd.org.uk/service/1465,Council expenditure,04/10/2014,BADGERS WOOD,SAINSBURYS TO YOU 0686,182.70,PURCHASE OF FOOD (RAW MATERIALS),"GROCERY STORES, SUPERMARKETS"
02/02/2015,http://opendatacommunities.org/id/county-council/surrey,Surrey,http://id.esd.org.uk/service/1465,Council expenditure,04/10/2014,SFRS-SERVICE DELIVERY,AMAZON  MKTPLCE EU-UK,45.90,EQUIPMENT,BOOK STORES
02/02/2015,http://opendatacommunities.org/id/county-council/surrey,Surrey,http://id.esd.org.uk/service/1465,Council expenditure,04/10/2014,KARIBU COMMUNITY HOME,TESCO STORE 2812,66.30,PURCHASE OF FOOD (RAW MATERIALS),"GROCERY STORES, SUPERMARKETS"
02/02/2015,http://opendatacommunities.org/id/county-council/surrey,Surrey,http://id.esd.org.uk/service/1465,Council expenditure,04/10/2014,ROW VOLUNTEERS EAST,AMAZON EU,27.99,EQUIPMENT,DIRECT MARKETING-OTHER DIRECT MARKETERS/NOT ELSEW.
02/02/2015,http://opendatacommunities.org/id/county-council/surrey,Surrey,http://id.esd.org.uk/service/1465,Council expenditure,04/10/2014,POLICY AND PERFORMANCE TEAM,GOOGLE  SVCSAPPS_SHIFT,52.77,COMPUTER SOFTWARE,DIRECT MARKETING-CONTINUITY/SUBSCRIPTION MERCHANTS
02/02/2015,http://opendatacommunities.org/id/county-council/surrey,Surrey,http://id.esd.org.uk/service/1465,Council expenditure,04/10/2014,COMMISSIONING AND DEVELOPMENT TEAM,TESCO STORE 2812,56.54,REFRESHMENT COSTS,"GROCERY STORES, SUPERMARKETS"
02/02/2015,http://opendatacommunities.org/id/county-council/surrey,Surrey,http://id.esd.org.uk/service/1465,Council expenditure,04/10/2014,ROW VOLUNTEERS EAST,AMAZON EU,27.99,EQUIPMENT,DIRECT MARKETING-OTHER DIRECT MARKETERS/NOT ELSEW.
02/02/2015,http://opendatacommunities.org/id/county-council/surrey,Surrey,http://id.esd.org.uk/service/1465,Council expenditure,04/10/2014,ROW VOLUNTEERS EAST,AMAZON EU,27.99,EQUIPMENT,DIRECT MARKETING-OTHER DIRECT MARKETERS/NOT ELSEW.
02/02/2015,http://opendatacommunities.org/id/county-council/surrey,Surrey,http://id.esd.org.uk/service/1465,Council expenditure,05/10/2014,CENTRAL COMMS - PUBLIC HEALTH CAMPAIGNS,FACEBK  TLCS672AK2,47.00,PUBLICITY,ADVERTISING SERVICES
02/02/2015,http://opendatacommunities.org/id/county-council/surrey,Surrey,http://id.esd.org.uk/service/1465,Council expenditure,05/10/2014,KARIBU COMMUNITY HOME,WILKO RETAIL LIMIT,3.95,PURCHASE OF FOOD (RAW MATERIALS),HOUSEHOLD APPLIANCE STORES
02/02/2015,http://opendatacommunities.org/id/county-council/surrey,Surrey,http://id.esd.org.uk/service/1465,Council expenditure,05/10/2014,KARIBU COMMUNITY HOME,MCDONALDS,9.45,PURCHASE OF FOOD (RAW MATERIALS),FAST FOOD RESTAURANTS
02/02/2015,http://opendatacommunities.org/id/county-council/surrey,Surrey,http://id.esd.org.uk/service/1465,Council expenditure,05/10/2014,CENTRAL COMMS - PUBLIC HEALTH CAMPAIGNS,GOOGLE  ADWS2060179426,500.00,PUBLICITY,DIRECT MARKETING-CONTINUITY/SUBSCRIPTION MERCHANTS
02/02/2015,http://opendatacommunities.org/id/county-council/surrey,Surrey,http://id.esd.org.uk/service/1465,Council expenditure,05/10/2014,CENTRAL COMMS - PUBLIC HEALTH CAMPAIGNS,FACEBOOK 49GHS6A2S2,23.41,PUBLICITY,ADVERTISING SERVICES
02/02/2015,http://opendatacommunities.org/id/county-council/surrey,Surrey,http://id.esd.org.uk/service/1465,Council expenditure,05/10/2014,KARIBU COMMUNITY HOME,ROBERT DYAS HOLDNG LTD,18.45,EQUIPMENT,HARDWARE STORES
02/02/2015,http://opendatacommunities.org/id/county-council/surrey,Surrey,http://id.esd.org.uk/service/1465,Council expenditure,05/10/2014,MEADOWVIEW COMMUNITY HOME,WICKES,30.66,DAY TO DAY MAINTENANCE,HOME SUPPLY WAREHOUSE STORES
02/02/2015,http://opendatacommunities.org/id/county-council/surrey,Surrey,http://id.esd.org.uk/service/1465,Council expenditure,06/10/2014,WORKPLACE ACTIVITY,WWW.SURREY-CHAMBERS.CO,24.00,PUBLICITY,"ORGANIZATIONS, MEMBERSHIP-NOT ELSEWHERE CLASSIFIED"
02/02/2015,http://opendatacommunities.org/id/county-council/surrey,Surrey,http://id.esd.org.uk/service/1465,Council expenditure,06/10/2014,CRITICAL ENVIRONMENT,WWW.HARDWARE.COM,"2,019.36",COMPUTER HARDWARE,"COMP PROGRAMING,DATA PRCSNG,INTGRTD SYS DSGN SRVS"
02/02/2015,http://opendatacommunities.org/id/county-council/surrey,Surrey,http://id.esd.org.uk/service/1465,Council expenditure,06/10/2014,KARIBU COMMUNITY HOME,HOMEBASE LTD 127,47.41,EQUIPMENT,"BUILDING MATERIALS, LUMBER STORES"
02/02/2015,http://opendatacommunities.org/id/county-council/surrey,Surrey,http://id.esd.org.uk/service/1465,Council expenditure,06/10/2014,ACL CENTRAL EXPENDITURE,GREAT ART,16.75,CURRICULUM EQUIPMENT AND FURNITURE,DIRECT MARKETING-OTHER DIRECT MARKETERS/NOT ELSEW.
02/02/2015,http://opendatacommunities.org/id/county-council/surrey,Surrey,http://id.esd.org.uk/service/1465,Council expenditure,06/10/2014,ASSET PLANNING - OPERATIONS,SAINSBURYS SACAT 0652,2.96,REFRESHMENT COSTS,"GROCERY STORES, SUPERMARKETS"
02/02/2015,http://opendatacommunities.org/id/county-council/surrey,Surrey,http://id.esd.org.uk/service/1465,Council expenditure,06/10/2014,BURBANK COMMUNITY HOME,KARNAC BOOKS,41.54,BOOKS,BOOK STORES
02/02/2015,http://opendatacommunities.org/id/county-council/surrey,Surrey,http://id.esd.org.uk/service/1465,Council expenditure,06/10/2014,LEAVING CARE PACKAGES,WAVERELY BOROUGH C,96.11,INDEPENDENT LIVING PLACEMENTS,GOVERNMENT SERVICES-NOT ELSEWHERE CLASSIFIED
02/02/2015,http://opendatacommunities.org/id/county-council/surrey,Surrey,http://id.esd.org.uk/service/1465,Council expenditure,06/10/2014,HOPE SERVICE WEST,TESCO-STORES 2590,28.25,PURCHASE OF FOOD (RAW MATERIALS),"GROCERY STORES, SUPERMARKETS"
02/02/2015,http://opendatacommunities.org/id/county-council/surrey,Surrey,http://id.esd.org.uk/service/1465,Council expenditure,06/10/2014,LIBERTAS COMMUNITY HOME,SPLIT - KITCHEN EQUIPMENT (17.02%),37.49,PURCHASE OF FOOD (RAW MATERIALS),"GROCERY STORES, SUPERMARKETS"
02/02/2015,http://opendatacommunities.org/id/county-council/surrey,Surrey,http://id.esd.org.uk/service/1465,Council expenditure,06/10/2014,LIBERTAS COMMUNITY HOME,SPLIT - KITCHEN FOIL (1.02%),2.25,PURCHASE OF FOOD (RAW MATERIALS),"GROCERY STORES, SUPERMARKETS"
02/02/2015,http://opendatacommunities.org/id/county-council/surrey,Surrey,http://id.esd.org.uk/service/1465,Council expenditure,06/10/2014,LIBERTAS COMMUNITY HOME,SPLIT - KICHEN FOIL (1.82%),4.00,PURCHASE OF FOOD (RAW MATERIALS),"GROCERY STORES, SUPERMARKETS"
02/02/2015,http://opendatacommunities.org/id/county-council/surrey,Surrey,http://id.esd.org.uk/service/1465,Council expenditure,06/10/2014,LIBERTAS COMMUNITY HOME,SPLIT - FOOD SHOPPING (80.15%),176.59,PURCHASE OF FOOD (RAW MATERIALS),"GROCERY STORES, SUPERMARKETS"
02/02/2015,http://opendatacommunities.org/id/county-council/surrey,Surrey,http://id.esd.org.uk/service/1465,Council expenditure,06/10/2014,CHEYNE WALK COMMUNITY HOME,WWW.ST-BEDES.SURREY.SC,50.00,PURCHASE OF FOOD (RAW MATERIALS),CATERERS
02/02/2015,http://opendatacommunities.org/id/county-council/surrey,Surrey,http://id.esd.org.uk/service/1465,Council expenditure,06/10/2014,HOPE SERVICE EAST,SAINSBURYS 0683,47.35,PURCHASE OF FOOD (RAW MATERIALS),"GROCERY STORES, SUPERMARKETS"
02/02/2015,http://opendatacommunities.org/id/county-council/surrey,Surrey,http://id.esd.org.uk/service/1465,Council expenditure,06/10/2014,STRATEGIC LEADERSHIP ( CEO AND ACEO),WWW.SOLACE.ORG.UK,467.00,SUBSCRIPTIONS,"ORGANIZATIONS, MEMBERSHIP-NOT ELSEWHERE CLASSIFIED"
02/02/2015,http://opendatacommunities.org/id/county-council/surrey,Surrey,http://id.esd.org.uk/service/1465,Council expenditure,06/10/2014,HOPE SERVICE EAST,COORDINATION GROUP PUB,12.25,CURRICULUM EQUIPMENT AND FURNITURE,MISCELLANEOUS AND SPECIALTY RETAIL STORES
02/02/2015,http://opendatacommunities.org/id/county-council/surrey,Surrey,http://id.esd.org.uk/service/1465,Council expenditure,06/10/2014,HOPE SERVICE - WEST,SAINSBURYS SACAT(4409),2.40,BOOKS,"GROCERY STORES, SUPERMARKETS"
02/02/2015,http://opendatacommunities.org/id/county-council/surrey,Surrey,http://id.esd.org.uk/service/1465,Council expenditure,06/10/2014,ACL CENTRAL EXPENDITURE,WWW.HEARTINTERNET.CO.U,515.99,COMPUTER SERVICES,COMPUTER NETWORK/INFORMATION SERVICES
02/02/2015,http://opendatacommunities.org/id/county-council/surrey,Surrey,http://id.esd.org.uk/service/1465,Council expenditure,06/10/2014,FAIRCROFT COMMUNITY HOME,WWW.CHELSEAFC.COM,65.00,EDUC VISITS/HOLS/CAMPS/TOYS,"ORGANIZATIONS, MEMBERSHIP-NOT ELSEWHERE CLASSIFIED"
02/02/2015,http://opendatacommunities.org/id/county-council/surrey,Surrey,http://id.esd.org.uk/service/1465,Council expenditure,06/10/2014,"SE REF, ASS & INT SERVICE - HUB 1",UKBA3520073899,184.00,FEES,GOVERNMENT SERVICES-NOT ELSEWHERE CLASSIFIED
02/02/2015,http://opendatacommunities.org/id/county-council/surrey,Surrey,http://id.esd.org.uk/service/1465,Council expenditure,06/10/2014,LOCAL PREVENTION FRAMEWORK SPELTHORNE,SHELL ASHFORD,40.00,MISCELLANEOUS STAFF TRAVEL,SERVICE STATIONS WITH OR WITHOUT ANCILLARY SERVICE
02/02/2015,http://opendatacommunities.org/id/county-council/surrey,Surrey,http://id.esd.org.uk/service/1465,Council expenditure,06/10/2014,HOPE SERVICE WEST,SAINSBURYS 0652,45.63,PURCHASE OF FOOD (RAW MATERIALS),"GROCERY STORES, SUPERMARKETS"
02/02/2015,http://opendatacommunities.org/id/county-council/surrey,Surrey,http://id.esd.org.uk/service/1465,Council expenditure,06/10/2014,EPSOM AND EWELL BOROUGH TEAM,STUDENT PHOTOCARD,10.00,EQUIPMENT,PASSENGER RAILWAYS
02/02/2015,http://opendatacommunities.org/id/county-council/surrey,Surrey,http://id.esd.org.uk/service/1465,Council expenditure,06/10/2014,SUSTAINABILITY GROUP,LTT LTD,134.40,FEES,MISCELLANEOUS PUBLISHING AND PRINTING
02/02/2015,http://opendatacommunities.org/id/county-council/surrey,Surrey,http://id.esd.org.uk/service/1465,Council expenditure,06/10/2014,PROPERTY OPERATIONS TEAM,SCREWFIX DIRECT,16.29,PURCHASE OF BUILDING MATERIALS,"BUILDING MATERIALS, LUMBER STORES"
02/02/2015,http://opendatacommunities.org/id/county-council/surrey,Surrey,http://id.esd.org.uk/service/1465,Council expenditure,06/10/2014,CENTRAL COMMS - PUBLIC HEALTH CAMPAIGNS,FACEBK  MXBLW6E9K2,42.97,PUBLICITY,ADVERTISING SERVICES
02/02/2015,http://opendatacommunities.org/id/county-council/surrey,Surrey,http://id.esd.org.uk/service/1465,Council expenditure,06/10/2014,PROPERTY OPERATIONS TEAM,SCREWFIX,32.58,PURCHASE OF BUILDING MATERIALS,"BUILDING MATERIALS, LUMBER STORES"
02/02/2015,http://opendatacommunities.org/id/county-council/surrey,Surrey,http://id.esd.org.uk/service/1465,Council expenditure,06/10/2014,ISPSB ADAPTATIONS AND IMPROVEMENTS,AMAZON EU,40.00,EQUIPMENT,DIRECT MARKETING-OTHER DIRECT MARKETERS/NOT ELSEW.
02/02/2015,http://opendatacommunities.org/id/county-council/surrey,Surrey,http://id.esd.org.uk/service/1465,Council expenditure,06/10/2014,TARGETED INTERVENTION,SAINSBURYS SACAT 0680,33.95,EDUC VISITS/HOLS/CAMPS/TOYS,"GROCERY STORES, SUPERMARKETS"
02/02/2015,http://opendatacommunities.org/id/county-council/surrey,Surrey,http://id.esd.org.uk/service/1465,Council expenditure,06/10/2014,SE SECTION 17 CARE,WP-SCOACH ETICKET,43.50,NON-STAFF RELATED TRANSPORT COSTS,BUS LINES
02/02/2015,http://opendatacommunities.org/id/county-council/surrey,Surrey,http://id.esd.org.uk/service/1465,Council expenditure,06/10/2014,S.D. EAST AREA MANAGEMENT TEAM,WWW.EQUIP4WORK.CO.UK,14.40,DAY TO DAY MAINTENANCE,"OFFICE, SCHOOL SUPPLY, AND STATIONERY STORES"
02/02/2015,http://opendatacommunities.org/id/county-council/surrey,Surrey,http://id.esd.org.uk/service/1465,Council expenditure,06/10/2014,BURBANK COMMUNITY HOME,W M MORRISONS,17.86,PURCHASE OF FOOD (RAW MATERIALS),"GROCERY STORES, SUPERMARKETS"
02/02/2015,http://opendatacommunities.org/id/county-council/surrey,Surrey,http://id.esd.org.uk/service/1465,Council expenditure,06/10/2014,MEADOWVIEW COMMUNITY HOME,WICKES,63.24,UPKEEP OF GROUNDS,HOME SUPPLY WAREHOUSE STORES
02/02/2015,http://opendatacommunities.org/id/county-council/surrey,Surrey,http://id.esd.org.uk/service/1465,Council expenditure,06/10/2014,"NW REF, ASS & INT SERVICE - HUB 1",UKBA3520073165,184.00,FEES,GOVERNMENT SERVICES-NOT ELSEWHERE CLASSIFIED
02/02/2015,http://opendatacommunities.org/id/county-council/surrey,Surrey,http://id.esd.org.uk/service/1465,Council expenditure,06/10/2014,LEAVING CARE PACKAGES,TRAVELODGE WEBSITE,459.55,3RD PARTY PAYMENTS PRIVATE INDIV,TRAVELODGE
02/02/2015,http://opendatacommunities.org/id/county-council/surrey,Surrey,http://id.esd.org.uk/service/1465,Council expenditure,06/10/2014,FAIRCROFT COMMUNITY HOME,ARGOS LTD,84.99,3RD PARTY PAYMENTS PRIVATE INDIV,DISCOUNT STORES
02/02/2015,http://opendatacommunities.org/id/county-council/surrey,Surrey,http://id.esd.org.uk/service/1465,Council expenditure,06/10/2014,SFRS TRANSPORT,AMAZON  MKTPLCE EU-UK,60.78,OPERATIONAL FIRE EQUIPMENT,BOOK STORES
02/02/2015,http://opendatacommunities.org/id/county-council/surrey,Surrey,http://id.esd.org.uk/service/1465,Council expenditure,06/10/2014,COUNTYWIDE MANAGED PRINT,GALTEC SOLUTIONS LTD,568.80,COMPUTER CONSUMABLES,COMPUTER SOFTWARE STORES
02/02/2015,http://opendatacommunities.org/id/county-council/surrey,Surrey,http://id.esd.org.uk/service/1465,Council expenditure,06/10/2014,WORKPLACE ACTIVITY,PRINTED.COM,135.50,PRINTING,"QUICK COPY,REPRODUCTION AND BLUEPRINTING SERVICES"
02/02/2015,http://opendatacommunities.org/id/county-council/surrey,Surrey,http://id.esd.org.uk/service/1465,Council expenditure,06/10/2014,SW TEACHERS,WP-OPTIMUS PUBLISH,205.50,BOOKS,"BOOKS,PERIODICALS AND NEWSPAPERS"
02/02/2015,http://opendatacommunities.org/id/county-council/surrey,Surrey,http://id.esd.org.uk/service/1465,Council expenditure,06/10/2014,COUNTYWIDE MANAGED PRINT,GALTEC SOLUTIONS LTD,250.80,COMPUTER CONSUMABLES,COMPUTER SOFTWARE STORES
02/02/2015,http://opendatacommunities.org/id/county-council/surrey,Surrey,http://id.esd.org.uk/service/1465,Council expenditure,06/10/2014,HILLSIDE,FOOD FOR HILLSIDE (12.24%),40.21,PURCHASE OF FOOD (RAW MATERIALS),"GROCERY STORES, SUPERMARKETS"
02/02/2015,http://opendatacommunities.org/id/county-council/surrey,Surrey,http://id.esd.org.uk/service/1465,Council expenditure,06/10/2014,HILLSIDE,FOOD FOR HILLSIDE (87.76%),288.39,PURCHASE OF FOOD (RAW MATERIALS),"GROCERY STORES, SUPERMARKETS"
02/02/2015,http://opendatacommunities.org/id/county-council/surrey,Surrey,http://id.esd.org.uk/service/1465,Council expenditure,06/10/2014,ACL CENTRAL EXPENDITURE,AMAZON  MKTPLCE EU-UK,17.35,DAY TO DAY MAINTENANCE,BOOK STORES
02/02/2015,http://opendatacommunities.org/id/county-council/surrey,Surrey,http://id.esd.org.uk/service/1465,Council expenditure,06/10/2014,NE CP AND COURT TEAM,UKBA3520072072,184.00,FEES,GOVERNMENT SERVICES-NOT ELSEWHERE CLASSIFIED
02/02/2015,http://opendatacommunities.org/id/county-council/surrey,Surrey,http://id.esd.org.uk/service/1465,Council expenditure,06/10/2014,SFRS TRANSPORT,FOUR X NINETY LTD,309.00,STATIONERY,HARDWARE EQUIPMENT AND SUPPLIES
02/02/2015,http://opendatacommunities.org/id/county-council/surrey,Surrey,http://id.esd.org.uk/service/1465,Council expenditure,06/10/2014,SFRS TRANSPORT,AMAZON EU,10.00,DAY TO DAY MAINTENANCE,DIRECT MARKETING-OTHER DIRECT MARKETERS/NOT ELSEW.
02/02/2015,http://opendatacommunities.org/id/county-council/surrey,Surrey,http://id.esd.org.uk/service/1465,Council expenditure,06/10/2014,TRANSPORT,AMAZON EU,18.50,DAY TO DAY MAINTENANCE,DIRECT MARKETING-OTHER DIRECT MARKETERS/NOT ELSEW.
02/02/2015,http://opendatacommunities.org/id/county-council/surrey,Surrey,http://id.esd.org.uk/service/1465,Council expenditure,06/10/2014,PROPERTY OPERATIONS TEAM,WICKES,63.32,PURCHASE OF BUILDING MATERIALS,HOME SUPPLY WAREHOUSE STORES
02/02/2015,http://opendatacommunities.org/id/county-council/surrey,Surrey,http://id.esd.org.uk/service/1465,Council expenditure,06/10/2014,IMPROVING OUTCOMES - ECAT,AMAZON  MKTPLCE EU-UK,3.98,STATIONERY,BOOK STORES
02/02/2015,http://opendatacommunities.org/id/county-council/surrey,Surrey,http://id.esd.org.uk/service/1465,Council expenditure,06/10/2014,HOPE SERVICE WEST,HARRIS & HOOLE,5.10,REFRESHMENT COSTS,"EATING PLACES, RESTAURANTS"
02/02/2015,http://opendatacommunities.org/id/county-council/surrey,Surrey,http://id.esd.org.uk/service/1465,Council expenditure,06/10/2014,SFRS TRANSPORT,AMAZON EU,79.00,DAY TO DAY MAINTENANCE,DIRECT MARKETING-OTHER DIRECT MARKETERS/NOT ELSEW.
02/02/2015,http://opendatacommunities.org/id/county-council/surrey,Surrey,http://id.esd.org.uk/service/1465,Council expenditure,06/10/2014,COUNTY HALL,JCM LOCKSMITHS LTD,295.59,EQUIPMENT,HARDWARE STORES
02/02/2015,http://opendatacommunities.org/id/county-council/surrey,Surrey,http://id.esd.org.uk/service/1465,Council expenditure,06/10/2014,NW CARE CP ,TESCO DIRECT,159.00,CHILDREN ACT SEC 17 PAYMENTS,MISCELLANEOUS AND SPECIALTY RETAIL STORES
02/02/2015,http://opendatacommunities.org/id/county-council/surrey,Surrey,http://id.esd.org.uk/service/1465,Council expenditure,06/10/2014,,DIRECT DEBIT PAYMENT THANK YOU,"-2,007.00",,
02/02/2015,http://opendatacommunities.org/id/county-council/surrey,Surrey,http://id.esd.org.uk/service/1465,Council expenditure,07/10/2014,HOLLAND CLOSE RESIDENTIAL HOME,WWW REPAIRCARE CO UK,109.00,DAY TO DAY MAINTENANCE,HARDWARE EQUIPMENT AND SUPPLIES
02/02/2015,http://opendatacommunities.org/id/county-council/surrey,Surrey,http://id.esd.org.uk/service/1465,Council expenditure,07/10/2014,HOLLAND CLOSE RESIDENTIAL HOME,WWW REPAIRCARE CO UK,119.00,FIXTURES AND FITTINGS,HARDWARE EQUIPMENT AND SUPPLIES
02/02/2015,http://opendatacommunities.org/id/county-council/surrey,Surrey,http://id.esd.org.uk/service/1465,Council expenditure,07/10/2014,SFRS TRANSPORT,AUTO SMART,417.60,CLEANING MATERIALS,"AUTOMOTIVE PARTS, ACCESSORIES STORES"
02/02/2015,http://opendatacommunities.org/id/county-council/surrey,Surrey,http://id.esd.org.uk/service/1465,Council expenditure,07/10/2014,COUNTY HALL,SPORTSDIRECT 294,18.00,EQUIPMENT,SPORTING GOODS STORES
02/02/2015,http://opendatacommunities.org/id/county-council/surrey,Surrey,http://id.esd.org.uk/service/1465,Council expenditure,07/10/2014,ISPSB ADAPTATIONS AND IMPROVEMENTS,AMAZON  MKTPLCE EU-UK,5.94,EQUIPMENT,BOOK STORES
02/02/2015,http://opendatacommunities.org/id/county-council/surrey,Surrey,http://id.esd.org.uk/service/1465,Council expenditure,07/10/2014,ISPSB ADAPTATIONS AND IMPROVEMENTS,AMAZON  MKTPLCE EU-UK,38.70,EQUIPMENT,BOOK STORES
02/02/2015,http://opendatacommunities.org/id/county-council/surrey,Surrey,http://id.esd.org.uk/service/1465,Council expenditure,07/10/2014,SFRS TRANSPORT,AMAZON EU,57.48,OPERATIONAL FIRE EQUIPMENT,DIRECT MARKETING-OTHER DIRECT MARKETERS/NOT ELSEW.
02/02/2015,http://opendatacommunities.org/id/county-council/surrey,Surrey,http://id.esd.org.uk/service/1465,Council expenditure,07/10/2014,PRIMARY FESTIVALS,FABER MUSIC LTD,"1,578.76",CURRIC BOOKS,"MUSIC STORES-INSTRUMENTS, PIANOS, SHEET MUSIC"
02/02/2015,http://opendatacommunities.org/id/county-council/surrey,Surrey,http://id.esd.org.uk/service/1465,Council expenditure,07/10/2014,ASSET PLANNING - OPERATIONS,SAINSBURYS SACAT 0652,3.85,REFRESHMENT COSTS,"GROCERY STORES, SUPERMARKETS"
02/02/2015,http://opendatacommunities.org/id/county-council/surrey,Surrey,http://id.esd.org.uk/service/1465,Council expenditure,07/10/2014,EARLY YEARS EQUIPMENT,AMAZON  MKTPLCE EU-UK,17.99,CURRICULUM EQUIPMENT AND FURNITURE,BOOK STORES
02/02/2015,http://opendatacommunities.org/id/county-council/surrey,Surrey,http://id.esd.org.uk/service/1465,Council expenditure,07/10/2014,SFRS-SERVICE DELIVERY,JOHN PULSFORD ASSO,277.32,FURNITURE,"OFFICE, SCHOOL SUPPLY, AND STATIONERY STORES"
02/02/2015,http://opendatacommunities.org/id/county-council/surrey,Surrey,http://id.esd.org.uk/service/1465,Council expenditure,07/10/2014,ARUNDEL,MILK (9.85%),8.90,REFRESHMENT COSTS,"GROCERY STORES, SUPERMARKETS"
02/02/2015,http://opendatacommunities.org/id/county-council/surrey,Surrey,http://id.esd.org.uk/service/1465,Council expenditure,07/10/2014,ARUNDEL,KITCHEN/BATHROOM EQUIPMENT (90.15%),81.50,EQUIPMENT,"GROCERY STORES, SUPERMARKETS"
02/02/2015,http://opendatacommunities.org/id/county-council/surrey,Surrey,http://id.esd.org.uk/service/1465,Council expenditure,07/10/2014,TRAINING PROPERTY,REGUS,104.40,VENUE COSTS (INCLUDING HIRE OF ROOMS),PROFESSIONAL SERVICES-NOT ELSEWHERE CLASSIFIED
02/02/2015,http://opendatacommunities.org/id/county-council/surrey,Surrey,http://id.esd.org.uk/service/1465,Council expenditure,07/10/2014,SE CARE - CP AND COURT LAC,COUNTY COURT,215.00,LEGAL EXPENSES,FINES
02/02/2015,http://opendatacommunities.org/id/county-council/surrey,Surrey,http://id.esd.org.uk/service/1465,Council expenditure,07/10/2014,CLOSED LANDFILL,EUROFLO LTD,114.00,EQUIPMENT,PLUMBING AND HEATING EQUIPMENT
02/02/2015,http://opendatacommunities.org/id/county-council/surrey,Surrey,http://id.esd.org.uk/service/1465,Council expenditure,07/10/2014,APPLEWOOD,ASDA STORES 7134,124.24,PURCHASE OF FOOD (RAW MATERIALS),"GROCERY STORES, SUPERMARKETS"
02/02/2015,http://opendatacommunities.org/id/county-council/surrey,Surrey,http://id.esd.org.uk/service/1465,Council expenditure,07/10/2014,CENTRAL COMMS - PUBLIC HEALTH CAMPAIGNS,FACEBOOK 43G227SZR2,109.64,PUBLICITY,ADVERTISING SERVICES
02/02/2015,http://opendatacommunities.org/id/county-council/surrey,Surrey,http://id.esd.org.uk/service/1465,Council expenditure,07/10/2014,ISPSB ADAPTATIONS AND IMPROVEMENTS,AMAZON  MKTPLCE EU-UK,25.89,EQUIPMENT,BOOK STORES
02/02/2015,http://opendatacommunities.org/id/county-council/surrey,Surrey,http://id.esd.org.uk/service/1465,Council expenditure,07/10/2014,MISC EDCAT SUPPORT,WWW.VIDAHOST.COM,7.19,DAY TO DAY MAINTENANCE,COMPUTER MAIN./REPAIR/SERVICES NOT ELSEWHERE CLASS
02/02/2015,http://opendatacommunities.org/id/county-council/surrey,Surrey,http://id.esd.org.uk/service/1465,Council expenditure,07/10/2014,CANDC POLICY AND PARTNERSHIPS 1,GORSE HILL,174.00,TRAINING EXPENSES EXTERNAL GENERAL,"LODGING-HOTELS,MOTELS,RESORTS-NOT CLASSIFIED"
02/02/2015,http://opendatacommunities.org/id/county-council/surrey,Surrey,http://id.esd.org.uk/service/1465,Council expenditure,07/10/2014,SFRS TRANSPORT,AMAZON  MKTPLCE EU-UK,316.97,COMPUTER HARDWARE,BOOK STORES
02/02/2015,http://opendatacommunities.org/id/county-council/surrey,Surrey,http://id.esd.org.uk/service/1465,Council expenditure,07/10/2014,LEAVING CARE PACKAGES,TRAVELODGE WEBSITE,186.00,3RD PARTY PAYMENTS PRIVATE INDIV,TRAVELODGE
02/02/2015,http://opendatacommunities.org/id/county-council/surrey,Surrey,http://id.esd.org.uk/service/1465,Council expenditure,07/10/2014,EAST SUSSEX MGMT,TESCO STORES 3330,2.89,REFRESHMENT COSTS,"GROCERY STORES, SUPERMARKETS"
02/02/2015,http://opendatacommunities.org/id/county-council/surrey,Surrey,http://id.esd.org.uk/service/1465,Council expenditure,07/10/2014,TRANSPORT,AMAZON  MKTPLCE EU-UK,4.39,DAY TO DAY MAINTENANCE,BOOK STORES
02/02/2015,http://opendatacommunities.org/id/county-council/surrey,Surrey,http://id.esd.org.uk/service/1465,Council expenditure,07/10/2014,TRAINING PROPERTY,EVAC & CHAIR INT'L LTD,"1,152.00",TRAINING EXPENSES EXTERNAL GENERAL,HARDWARE EQUIPMENT AND SUPPLIES
02/02/2015,http://opendatacommunities.org/id/county-council/surrey,Surrey,http://id.esd.org.uk/service/1465,Council expenditure,07/10/2014,IMPROVING OUTCOMES - ECAT,AMAZON  MKTPLCE EU-UK,9.00,STATIONERY,BOOK STORES
02/02/2015,http://opendatacommunities.org/id/county-council/surrey,Surrey,http://id.esd.org.uk/service/1465,Council expenditure,07/10/2014,ISPSB ADAPTATIONS AND IMPROVEMENTS,AMAZON  MKTPLCE EU-UK,43.98,EQUIPMENT,BOOK STORES
02/02/2015,http://opendatacommunities.org/id/county-council/surrey,Surrey,http://id.esd.org.uk/service/1465,Council expenditure,07/10/2014,EARLY YEARS EQUIPMENT,DEMCO WORLDWIDE,150.60,CURRICULUM EQUIPMENT AND FURNITURE,OFFICE AND COMMERCIAL FURNITURE
02/02/2015,http://opendatacommunities.org/id/county-council/surrey,Surrey,http://id.esd.org.uk/service/1465,Council expenditure,07/10/2014,EARLY YEARS EQUIPMENT,SCREWFIX DIRECT,34.99,CURRICULUM EQUIPMENT AND FURNITURE,"BUILDING MATERIALS, LUMBER STORES"
02/02/2015,http://opendatacommunities.org/id/county-council/surrey,Surrey,http://id.esd.org.uk/service/1465,Council expenditure,07/10/2014,ACL CENTRAL EXPENDITURE,W P NOTCUTT LTD,42.12,CURRICULUM EQUIPMENT AND FURNITURE,"BUILDING MATERIALS, LUMBER STORES"
02/02/2015,http://opendatacommunities.org/id/county-council/surrey,Surrey,http://id.esd.org.uk/service/1465,Council expenditure,07/10/2014,DOWNLANDS COUNTRYSIDE PROJECT,ARMY SURPLUS,8.00,"CLOTHING, UNIFORM AND LAUNDRY",SPORTING GOODS STORES
02/02/2015,http://opendatacommunities.org/id/county-council/surrey,Surrey,http://id.esd.org.uk/service/1465,Council expenditure,07/10/2014,SFRS-SERVICE DELIVERY,JOHN PULSFORD ASSO,360.00,FURNITURE,"OFFICE, SCHOOL SUPPLY, AND STATIONERY STORES"
02/02/2015,http://opendatacommunities.org/id/county-council/surrey,Surrey,http://id.esd.org.uk/service/1465,Council expenditure,07/10/2014,OTHER NON CWD HOME COSTS,TESCO-STORES 6647,150.17,PURCHASE OF FOOD (RAW MATERIALS),"GROCERY STORES, SUPERMARKETS"
02/02/2015,http://opendatacommunities.org/id/county-council/surrey,Surrey,http://id.esd.org.uk/service/1465,Council expenditure,07/10/2014,EARLY YEARS EQUIPMENT,AMAZON  MKTPLCE EU-UK,9.20,CURRICULUM EQUIPMENT AND FURNITURE,BOOK STORES
02/02/2015,http://opendatacommunities.org/id/county-council/surrey,Surrey,http://id.esd.org.uk/service/1465,Council expenditure,07/10/2014,SE EDUCATION PSYCHOLOGISTS,AMAZON EU,105.25,BOOKS,DIRECT MARKETING-OTHER DIRECT MARKETERS/NOT ELSEW.
02/02/2015,http://opendatacommunities.org/id/county-council/surrey,Surrey,http://id.esd.org.uk/service/1465,Council expenditure,07/10/2014,CONSORT HOUSE REDHILL,WILKO RETAIL LIMIT,4.98,EQUIPMENT,HOUSEHOLD APPLIANCE STORES
02/02/2015,http://opendatacommunities.org/id/county-council/surrey,Surrey,http://id.esd.org.uk/service/1465,Council expenditure,07/10/2014,PLANNING POLICY TEAM,AMAZON EU,36.99,EQUIPMENT,DIRECT MARKETING-OTHER DIRECT MARKETERS/NOT ELSEW.
02/02/2015,http://opendatacommunities.org/id/county-council/surrey,Surrey,http://id.esd.org.uk/service/1465,Council expenditure,07/10/2014,TARGETED INTERVENTION,CINEWORLD CRA CP,32.97,EDUC VISITS/HOLS/CAMPS/TOYS,"THEATRICAL PRODUCERS(EXCL MOTION PIX),TICKET AGNCY"
02/02/2015,http://opendatacommunities.org/id/county-council/surrey,Surrey,http://id.esd.org.uk/service/1465,Council expenditure,07/10/2014,OTHER NON CWD HOME COSTS,HOLIDAY INN WOKING,127.00,MISCELLANEOUS STAFF TRAVEL,"LODGING-HOTELS,MOTELS,RESORTS-NOT CLASSIFIED"
02/02/2015,http://opendatacommunities.org/id/county-council/surrey,Surrey,http://id.esd.org.uk/service/1465,Council expenditure,07/10/2014,HEAD OF PROCUREMENT,FTA MOTO,50.00,SUBSCRIPTIONS,PROFESSIONAL SERVICES-NOT ELSEWHERE CLASSIFIED
02/02/2015,http://opendatacommunities.org/id/county-council/surrey,Surrey,http://id.esd.org.uk/service/1465,Council expenditure,07/10/2014,PROPERTY OPERATIONS TEAM,ROBERT DYAS HOLDNG LTD,14.98,PURCHASE OF BUILDING MATERIALS,HARDWARE STORES
02/02/2015,http://opendatacommunities.org/id/county-council/surrey,Surrey,http://id.esd.org.uk/service/1465,Council expenditure,07/10/2014,TRAINING PROPERTY,RICS COM GBP CYBS,354.00,TRAINING EXPENSES EXTERNAL GENERAL,"ORGANIZATIONS, MEMBERSHIP-NOT ELSEWHERE CLASSIFIED"
02/02/2015,http://opendatacommunities.org/id/county-council/surrey,Surrey,http://id.esd.org.uk/service/1465,Council expenditure,07/10/2014,ISPSB ADAPTATIONS AND IMPROVEMENTS,AMAZON EU,10.77,EQUIPMENT,DIRECT MARKETING-OTHER DIRECT MARKETERS/NOT ELSEW.
02/02/2015,http://opendatacommunities.org/id/county-council/surrey,Surrey,http://id.esd.org.uk/service/1465,Council expenditure,07/10/2014,OUTDOOR EDUCATION CENTRE ESTATES,ESSO BELLFIELDS SSTN,77.87,PETROL/DIESEL ALL OFF BUSINESS,SERVICE STATIONS WITH OR WITHOUT ANCILLARY SERVICE
02/02/2015,http://opendatacommunities.org/id/county-council/surrey,Surrey,http://id.esd.org.uk/service/1465,Council expenditure,07/10/2014,SURREY ARTS GENERAL,JUNE EMERSON WIND,18.00,CURRIC BOOKS,"MUSIC STORES-INSTRUMENTS, PIANOS, SHEET MUSIC"
02/02/2015,http://opendatacommunities.org/id/county-council/surrey,Surrey,http://id.esd.org.uk/service/1465,Council expenditure,07/10/2014,DOWNLANDS COUNTRYSIDE PROJECT,JOHNS ARMY SURPLUS,84.00,"CLOTHING, UNIFORM AND LAUNDRY",MEN'S AND WOMEN'S CLOTHING STORES
02/02/2015,http://opendatacommunities.org/id/county-council/surrey,Surrey,http://id.esd.org.uk/service/1465,Council expenditure,07/10/2014,FAIRCROFT COMMUNITY HOME,TESCO STORE 2160,304.55,PURCHASE OF FOOD (RAW MATERIALS),"GROCERY STORES, SUPERMARKETS"
02/02/2015,http://opendatacommunities.org/id/county-council/surrey,Surrey,http://id.esd.org.uk/service/1465,Council expenditure,07/10/2014,BURBANK COMMUNITY HOME,SAINSBURYS SACAT 0686,40.00,"CLOTHING, UNIFORM AND LAUNDRY","GROCERY STORES, SUPERMARKETS"
02/02/2015,http://opendatacommunities.org/id/county-council/surrey,Surrey,http://id.esd.org.uk/service/1465,Council expenditure,07/10/2014,ACL CENTRAL EXPENDITURE,AMAZON EU,113.26,BOOKS,DIRECT MARKETING-OTHER DIRECT MARKETERS/NOT ELSEW.
02/02/2015,http://opendatacommunities.org/id/county-council/surrey,Surrey,http://id.esd.org.uk/service/1465,Council expenditure,07/10/2014,BASINGSTOKE CANAL,ENVIROMENT AGENCY,270.00,FEES,GOVERNMENT SERVICES-NOT ELSEWHERE CLASSIFIED
02/02/2015,http://opendatacommunities.org/id/county-council/surrey,Surrey,http://id.esd.org.uk/service/1465,Council expenditure,07/10/2014,MEMBERS ALLOWANCES,FARNHAM CASTLE NEWSPAP,95.00,NEWSPAPER AND PERIODICALS,ADVERTISING SERVICES
02/02/2015,http://opendatacommunities.org/id/county-council/surrey,Surrey,http://id.esd.org.uk/service/1465,Council expenditure,07/10/2014,CENTRAL COMMS - PUBLIC HEALTH CAMPAIGNS,FACEBK  EC7AV6J9K2,27.77,PUBLICITY,ADVERTISING SERVICES
02/02/2015,http://opendatacommunities.org/id/county-council/surrey,Surrey,http://id.esd.org.uk/service/1465,Council expenditure,07/10/2014,WASTE MINIMISATION,MAIL BOXES ETC,105.31,PRINTING,"OFFICE, SCHOOL SUPPLY, AND STATIONERY STORES"
02/02/2015,http://opendatacommunities.org/id/county-council/surrey,Surrey,http://id.esd.org.uk/service/1465,Council expenditure,07/10/2014,LIBRARIES,KIRKLEES.GOV.UK,175.00,TRAINING EXPENSES EXTERNAL GENERAL,GOVERNMENT SERVICES-NOT ELSEWHERE CLASSIFIED
02/02/2015,http://opendatacommunities.org/id/county-council/surrey,Surrey,http://id.esd.org.uk/service/1465,Council expenditure,07/10/2014,CONSORT HOUSE REDHILL,SCREWFIX DIRECT,64.53,EQUIPMENT,"BUILDING MATERIALS, LUMBER STORES"
02/02/2015,http://opendatacommunities.org/id/county-council/surrey,Surrey,http://id.esd.org.uk/service/1465,Council expenditure,07/10/2014,SE CARE - LAC,EASYJET00 000EN8WRQP,254.71,MISCELLANEOUS STAFF TRAVEL,EASYJET
02/02/2015,http://opendatacommunities.org/id/county-council/surrey,Surrey,http://id.esd.org.uk/service/1465,Council expenditure,07/10/2014,ROW VOLUNTEERS WEST,JEWSON LTD,30.49,PURCHASE OF BUILDING MATERIALS,"BUILDING MATERIALS, LUMBER STORES"
02/02/2015,http://opendatacommunities.org/id/county-council/surrey,Surrey,http://id.esd.org.uk/service/1465,Council expenditure,07/10/2014,PAL - DVD AND VIDEO,AMAZON EU,50.00,LIBRARY RESOURCES,DIRECT MARKETING-OTHER DIRECT MARKETERS/NOT ELSEW.
02/02/2015,http://opendatacommunities.org/id/county-council/surrey,Surrey,http://id.esd.org.uk/service/1465,Council expenditure,07/10/2014,RUTH HOUSE,SPLIT - SAINSBURY'S DELIVERY (10.3%),9.79,PURCHASE OF FOOD (RAW MATERIALS),"GROCERY STORES, SUPERMARKETS"
02/02/2015,http://opendatacommunities.org/id/county-council/surrey,Surrey,http://id.esd.org.uk/service/1465,Council expenditure,07/10/2014,RUTH HOUSE,SPLIT - SAINSBURY'S DELIVERY (89.7%),85.26,PURCHASE OF FOOD (RAW MATERIALS),"GROCERY STORES, SUPERMARKETS"
02/02/2015,http://opendatacommunities.org/id/county-council/surrey,Surrey,http://id.esd.org.uk/service/1465,Council expenditure,07/10/2014,ACL CENTRAL EXPENDITURE,SOUTH WESTERN IND PLAS,195.02,CURRICULUM CONSUMABLES,"INSULATION,MASONRY,PLSTER,STONEWRK,TILESET CNTRCTR"
02/02/2015,http://opendatacommunities.org/id/county-council/surrey,Surrey,http://id.esd.org.uk/service/1465,Council expenditure,07/10/2014,HOPE SERVICE WEST,SAINSBURYS SACAT(4409),19.64,PURCHASE OF FOOD (RAW MATERIALS),"GROCERY STORES, SUPERMARKETS"
02/02/2015,http://opendatacommunities.org/id/county-council/surrey,Surrey,http://id.esd.org.uk/service/1465,Council expenditure,07/10/2014,RUTH HOUSE,AMAZON  MKTPLCE EU-UK,30.00,EDUC VISITS/HOLS/CAMPS/TOYS,BOOK STORES
02/02/2015,http://opendatacommunities.org/id/county-council/surrey,Surrey,http://id.esd.org.uk/service/1465,Council expenditure,07/10/2014,EARLY YEARS EQUIPMENT,AMAZON  MKTPLCE EU-UK,4.99,CURRICULUM EQUIPMENT AND FURNITURE,BOOK STORES
02/02/2015,http://opendatacommunities.org/id/county-council/surrey,Surrey,http://id.esd.org.uk/service/1465,Council expenditure,08/10/2014,FAIRCROFT COMMUNITY HOME,NANDOS GUILDFORD,23.10,EDUC VISITS/HOLS/CAMPS/TOYS,"EATING PLACES, RESTAURANTS"
02/02/2015,http://opendatacommunities.org/id/county-council/surrey,Surrey,http://id.esd.org.uk/service/1465,Council expenditure,08/10/2014,FAIRCROFT COMMUNITY HOME,NANDOS GUILDFORD,8.30,EDUC VISITS/HOLS/CAMPS/TOYS,"EATING PLACES, RESTAURANTS"
02/02/2015,http://opendatacommunities.org/id/county-council/surrey,Surrey,http://id.esd.org.uk/service/1465,Council expenditure,08/10/2014,NW CARE CP ,LOGITRAVEL,517.49,CHILDREN ACT SEC 17 PAYMENTS,TRAVEL AGENCIES AND TOUR OPERATORS
02/02/2015,http://opendatacommunities.org/id/county-council/surrey,Surrey,http://id.esd.org.uk/service/1465,Council expenditure,08/10/2014,ARUNDEL,ASDA STORES 7134,111.71,REFRESHMENT COSTS,"GROCERY STORES, SUPERMARKETS"
02/02/2015,http://opendatacommunities.org/id/county-council/surrey,Surrey,http://id.esd.org.uk/service/1465,Council expenditure,08/10/2014,APPLEWOOD,TVLICENSING.CO.UK,145.50,EDUC VISITS/HOLS/CAMPS/TOYS,"CONSULTING, MANAGEMENT, AND PUBLIC RELATIONS SVCS"
02/02/2015,http://opendatacommunities.org/id/county-council/surrey,Surrey,http://id.esd.org.uk/service/1465,Council expenditure,08/10/2014,CAE CHANGE TEAM TRAINING,WWW.PMGLTD.CO.UK,534.00,TRAINING EXPENSES EXTERNAL GENERAL,BUSINESS SERVICES-NOT ELSEWHERE CLASSIFIED
02/02/2015,http://opendatacommunities.org/id/county-council/surrey,Surrey,http://id.esd.org.uk/service/1465,Council expenditure,08/10/2014,COMMUNICATIONS - SURREY MATTERS,PAYPAL  HOOTSUITE,9.59,COMPUTER SERVICES,COMPUTER NETWORK/INFORMATION SERVICES
02/02/2015,http://opendatacommunities.org/id/county-council/surrey,Surrey,http://id.esd.org.uk/service/1465,Council expenditure,08/10/2014,TRAINING SERVS FOR YOUNG PEOPLE,WWW.WESTMINSTER-BRIEFI,258.00,TRAINING EXPENSES EXTERNAL GENERAL,"SCHOOLS, BUSINESS AND SECRETARIAL"
02/02/2015,http://opendatacommunities.org/id/county-council/surrey,Surrey,http://id.esd.org.uk/service/1465,Council expenditure,08/10/2014,TRANSPORT,MORTONS THE PADLOC,12.00,DAY TO DAY MAINTENANCE,HARDWARE STORES
02/02/2015,http://opendatacommunities.org/id/county-council/surrey,Surrey,http://id.esd.org.uk/service/1465,Council expenditure,08/10/2014,TRANSPORT,AMAZON  MKTPLCE EU-UK,1.95,DAY TO DAY MAINTENANCE,BOOK STORES
02/02/2015,http://opendatacommunities.org/id/county-council/surrey,Surrey,http://id.esd.org.uk/service/1465,Council expenditure,08/10/2014,NE TEACHERS,THE PRINCESS ALICE,95.00,TRAINING EXPENSES EXTERNAL GENERAL,"ORGANIZATIONS, CHARITABLE AND SOCIAL SERVICES"
02/02/2015,http://opendatacommunities.org/id/county-council/surrey,Surrey,http://id.esd.org.uk/service/1465,Council expenditure,08/10/2014,SFRS TRANSPORT,FIRMIN & SONS LTD,293.40,"CLOTHING, UNIFORM AND LAUNDRY",MISCELLANEOUS AND SPECIALTY RETAIL STORES
02/02/2015,http://opendatacommunities.org/id/county-council/surrey,Surrey,http://id.esd.org.uk/service/1465,Council expenditure,08/10/2014,CENTRAL COMMS - PUBLIC HEALTH CAMPAIGNS,FACEBOOK MXABX6E2S2,84.77,PUBLICITY,ADVERTISING SERVICES
02/02/2015,http://opendatacommunities.org/id/county-council/surrey,Surrey,http://id.esd.org.uk/service/1465,Council expenditure,08/10/2014,MALLOW CRESCENT,SAINSBURYS SACAT 0652,12.28,REFRESHMENT COSTS,"GROCERY STORES, SUPERMARKETS"
02/02/2015,http://opendatacommunities.org/id/county-council/surrey,Surrey,http://id.esd.org.uk/service/1465,Council expenditure,08/10/2014,EARLY YEARS EQUIPMENT,AMAZON  MKTPLCE EU-UK,7.59,CURRICULUM EQUIPMENT AND FURNITURE,BOOK STORES
02/02/2015,http://opendatacommunities.org/id/county-council/surrey,Surrey,http://id.esd.org.uk/service/1465,Council expenditure,08/10/2014,FAIRCROFT COMMUNITY HOME,SAINSBURYS SACAT 0687,16.46,3RD PARTY PAYMENTS PRIVATE INDIV,"GROCERY STORES, SUPERMARKETS"
02/02/2015,http://opendatacommunities.org/id/county-council/surrey,Surrey,http://id.esd.org.uk/service/1465,Council expenditure,08/10/2014,IMT TECHNICAL DELIVERY,AMAZON  MKTPLCE EU-UK,5.99,EQUIPMENT,BOOK STORES
02/02/2015,http://opendatacommunities.org/id/county-council/surrey,Surrey,http://id.esd.org.uk/service/1465,Council expenditure,08/10/2014,ISPSB ADAPTATIONS AND IMPROVEMENTS,AMAZON EU,80.00,EQUIPMENT,DIRECT MARKETING-OTHER DIRECT MARKETERS/NOT ELSEW.
02/02/2015,http://opendatacommunities.org/id/county-council/surrey,Surrey,http://id.esd.org.uk/service/1465,Council expenditure,08/10/2014,ASSET PLANNING GROUP,CABLING4LESS,13.02,EQUIPMENT,ELECTRICAL PARTS AND EQUIPMENT
02/02/2015,http://opendatacommunities.org/id/county-council/surrey,Surrey,http://id.esd.org.uk/service/1465,Council expenditure,08/10/2014,KARIBU COMMUNITY HOME,AMAZON  MKTPLCE EU-UK,24.98,EDUC VISITS/HOLS/CAMPS/TOYS,BOOK STORES
02/02/2015,http://opendatacommunities.org/id/county-council/surrey,Surrey,http://id.esd.org.uk/service/1465,Council expenditure,08/10/2014,HOPE SERVICE WEST,GLS EDUCATIONAL,33.78,CURRICULUM CONSUMABLES,"COLLEGES, UNIV, PRO SCHOOLS, JUNIOR COLLEGES"
02/02/2015,http://opendatacommunities.org/id/county-council/surrey,Surrey,http://id.esd.org.uk/service/1465,Council expenditure,08/10/2014,SAP COMPETENCY CENTRE,VIRGINTRAINS.CO.UK,75.20,TRAINING EXPENSES EXTERNAL GENERAL,PASSENGER RAILWAYS
02/02/2015,http://opendatacommunities.org/id/county-council/surrey,Surrey,http://id.esd.org.uk/service/1465,Council expenditure,08/10/2014,PROPERTY OPERATIONS TEAM,TOOLSTATION LTD,15.68,PURCHASE OF BUILDING MATERIALS,HARDWARE STORES
02/02/2015,http://opendatacommunities.org/id/county-council/surrey,Surrey,http://id.esd.org.uk/service/1465,Council expenditure,08/10/2014,LOCAL PREVENTION FRAMEWORK - TANDRIDGE,DOMINOS PIZZA,18.99,REFRESHMENT COSTS,FAST FOOD RESTAURANTS
02/02/2015,http://opendatacommunities.org/id/county-council/surrey,Surrey,http://id.esd.org.uk/service/1465,Council expenditure,08/10/2014,IMPROVING OUTCOMES - ECAT,AMAZON  MKTPLCE EU-UK,11.25,STATIONERY,BOOK STORES
02/02/2015,http://opendatacommunities.org/id/county-council/surrey,Surrey,http://id.esd.org.uk/service/1465,Council expenditure,08/10/2014,MAYFORD CENTRE - BUSINESS,C&E ELECTRICAL WHO,31.56,DAY TO DAY MAINTENANCE,ELECTRICAL AND SMALL APPLIANCE REPAIR SHOPS
02/02/2015,http://opendatacommunities.org/id/county-council/surrey,Surrey,http://id.esd.org.uk/service/1465,Council expenditure,08/10/2014,HOPE SERVICE WEST,SAINSBURYS SACAT(4409),8.25,PURCHASE OF FOOD (RAW MATERIALS),"GROCERY STORES, SUPERMARKETS"
02/02/2015,http://opendatacommunities.org/id/county-council/surrey,Surrey,http://id.esd.org.uk/service/1465,Council expenditure,08/10/2014,TRAINING AND DEVELOPMENT,LEE WOOD HOTEL,68.00,SUBSISTENCE AND CONFERENCE EXPENSES,"LODGING-HOTELS,MOTELS,RESORTS-NOT CLASSIFIED"
02/02/2015,http://opendatacommunities.org/id/county-council/surrey,Surrey,http://id.esd.org.uk/service/1465,Council expenditure,08/10/2014,SAP COMPETENCY CENTRE,VIRGINTRAINS.CO.UK,23.50,TRAINING EXPENSES EXTERNAL GENERAL,PASSENGER RAILWAYS
02/02/2015,http://opendatacommunities.org/id/county-council/surrey,Surrey,http://id.esd.org.uk/service/1465,Council expenditure,08/10/2014,PE/CDT MAINTENANCE OVERHEADS,AW CHAMPION LTD,271.94,EQUIPMENT,"BUILDING MATERIALS, LUMBER STORES"
02/02/2015,http://opendatacommunities.org/id/county-council/surrey,Surrey,http://id.esd.org.uk/service/1465,Council expenditure,08/10/2014,HOPE SERVICE EAST,SAINSBURYS 0683,41.23,PURCHASE OF FOOD (RAW MATERIALS),"GROCERY STORES, SUPERMARKETS"
02/02/2015,http://opendatacommunities.org/id/county-council/surrey,Surrey,http://id.esd.org.uk/service/1465,Council expenditure,08/10/2014,COUNTY HALL,PLUMB CENTER DBD,19.73,EQUIPMENT,"HEATING, PLUMBING, AIR CONDITIONING CONTRACTORS"
02/02/2015,http://opendatacommunities.org/id/county-council/surrey,Surrey,http://id.esd.org.uk/service/1465,Council expenditure,08/10/2014,LOCAL PREVENTION FRAMEWORK - TANDRIDGE,THE SOUTHERN CO-OP,4.00,REFRESHMENT COSTS,DEPARTMENT STORES
02/02/2015,http://opendatacommunities.org/id/county-council/surrey,Surrey,http://id.esd.org.uk/service/1465,Council expenditure,08/10/2014,HOPE SERVICE WEST,ROKERS GOLF CLUB,6.00,EDUC VISITS/HOLS/CAMPS/TOYS,GOLF COURSES-PUBLIC
02/02/2015,http://opendatacommunities.org/id/county-council/surrey,Surrey,http://id.esd.org.uk/service/1465,Council expenditure,08/10/2014,EARLY YEARS EQUIPMENT,AMAZON  MKTPLCE EU-UK,6.46,CURRICULUM EQUIPMENT AND FURNITURE,BOOK STORES
02/02/2015,http://opendatacommunities.org/id/county-council/surrey,Surrey,http://id.esd.org.uk/service/1465,Council expenditure,08/10/2014,EARLY YEARS EQUIPMENT,AMAZON  MKTPLCE EU-UK,32.66,CURRICULUM EQUIPMENT AND FURNITURE,BOOK STORES
02/02/2015,http://opendatacommunities.org/id/county-council/surrey,Surrey,http://id.esd.org.uk/service/1465,Council expenditure,08/10/2014,HILLSIDE,SAINSBURYS 0675,60.10,PURCHASE OF FOOD (RAW MATERIALS),"GROCERY STORES, SUPERMARKETS"
02/02/2015,http://opendatacommunities.org/id/county-council/surrey,Surrey,http://id.esd.org.uk/service/1465,Council expenditure,08/10/2014,ASSET PLANNING - OPERATIONS,BOC GASES,180.36,EQUIPMENT,CHEMICALS/ALLIED PRODUCTS NOT ELSEWHERE CLASSIFIED
02/02/2015,http://opendatacommunities.org/id/county-council/surrey,Surrey,http://id.esd.org.uk/service/1465,Council expenditure,08/10/2014,AREA EXCLUSIONS (NE),GRANADA LEARNING,133.32,BOOKS,DIRECT MARKETING-COMBINATION CATALOG/RETAIL MERCH.
02/02/2015,http://opendatacommunities.org/id/county-council/surrey,Surrey,http://id.esd.org.uk/service/1465,Council expenditure,08/10/2014,WOKING LIBRARY,AMAZON  MKTPLCE EU-UK,37.09,EQUIPMENT,BOOK STORES
02/02/2015,http://opendatacommunities.org/id/county-council/surrey,Surrey,http://id.esd.org.uk/service/1465,Council expenditure,08/10/2014,BOOKS - ADULT NON-FICTION,AMAZON EU,-0.05,LIBRARY RESOURCES,DIRECT MARKETING-OTHER DIRECT MARKETERS/NOT ELSEW.
02/02/2015,http://opendatacommunities.org/id/county-council/surrey,Surrey,http://id.esd.org.uk/service/1465,Council expenditure,08/10/2014,SOLD TRAINING,DSA,115.00,TRAINING EXPENSES EXTERNAL GENERAL,GOVERNMENT SERVICES-NOT ELSEWHERE CLASSIFIED
02/02/2015,http://opendatacommunities.org/id/county-council/surrey,Surrey,http://id.esd.org.uk/service/1465,Council expenditure,08/10/2014,MALLOW CRESCENT,ON LINE GROCERY SHOPPING (8.09%),9.75,PURCHASE OF FOOD (RAW MATERIALS),"GROCERY STORES, SUPERMARKETS"
02/02/2015,http://opendatacommunities.org/id/county-council/surrey,Surrey,http://id.esd.org.uk/service/1465,Council expenditure,08/10/2014,MALLOW CRESCENT,ON LINE GROCERY SHOPPING (91.91%),110.77,PURCHASE OF FOOD (RAW MATERIALS),"GROCERY STORES, SUPERMARKETS"
02/02/2015,http://opendatacommunities.org/id/county-council/surrey,Surrey,http://id.esd.org.uk/service/1465,Council expenditure,08/10/2014,KARIBU COMMUNITY HOME,AMAZON  MKTPLCE EU-UK,36.36,LIBRARY RESOURCES,BOOK STORES
02/02/2015,http://opendatacommunities.org/id/county-council/surrey,Surrey,http://id.esd.org.uk/service/1465,Council expenditure,08/10/2014,SE EDUCATION PSYCHOLOGISTS,AMAZON EU,526.25,BOOKS,DIRECT MARKETING-OTHER DIRECT MARKETERS/NOT ELSEW.
02/02/2015,http://opendatacommunities.org/id/county-council/surrey,Surrey,http://id.esd.org.uk/service/1465,Council expenditure,08/10/2014,ACL CENTRAL EXPENDITURE,MEADOWS & PASSMORE LTD,273.98,EQUIPMENT,"CLOCK, JEWELRY, AND WATCH REPAIR SHOPS"
02/02/2015,http://opendatacommunities.org/id/county-council/surrey,Surrey,http://id.esd.org.uk/service/1465,Council expenditure,08/10/2014,EAST SUSSEX MGMT,LCC TELEPHONE PAYMENT,10.00,REFRESHMENT COSTS,GOVERNMENT SERVICES-NOT ELSEWHERE CLASSIFIED
02/02/2015,http://opendatacommunities.org/id/county-council/surrey,Surrey,http://id.esd.org.uk/service/1465,Council expenditure,08/10/2014,IMT TECHNICAL DELIVERY,AMAZON  MKTPLCE EU-UK,26.85,EQUIPMENT,BOOK STORES
02/02/2015,http://opendatacommunities.org/id/county-council/surrey,Surrey,http://id.esd.org.uk/service/1465,Council expenditure,08/10/2014,HILLSIDE,KFC,92.57,REFRESHMENT COSTS,FAST FOOD RESTAURANTS
02/02/2015,http://opendatacommunities.org/id/county-council/surrey,Surrey,http://id.esd.org.uk/service/1465,Council expenditure,08/10/2014,BUSINESS UNIT,EB  INTEGRATED CARE SU,378.00,TRAINING EXPENSES EXTERNAL GENERAL,BUSINESS SERVICES-NOT ELSEWHERE CLASSIFIED
02/02/2015,http://opendatacommunities.org/id/county-council/surrey,Surrey,http://id.esd.org.uk/service/1465,Council expenditure,08/10/2014,COUNTY HALL,B & Q NEW PLC,44.79,EQUIPMENT,"BUILDING MATERIALS, LUMBER STORES"
02/02/2015,http://opendatacommunities.org/id/county-council/surrey,Surrey,http://id.esd.org.uk/service/1465,Council expenditure,08/10/2014,CENTRAL COMMS - PUBLIC HEALTH CAMPAIGNS,FACEBK  MKEAV6J9K2,27.77,PUBLICITY,ADVERTISING SERVICES
02/02/2015,http://opendatacommunities.org/id/county-council/surrey,Surrey,http://id.esd.org.uk/service/1465,Council expenditure,08/10/2014,HOPE SERVICE EAST,DENBIES WINE ESTAT,6.70,REFRESHMENT COSTS,"EATING PLACES, RESTAURANTS"
02/02/2015,http://opendatacommunities.org/id/county-council/surrey,Surrey,http://id.esd.org.uk/service/1465,Council expenditure,08/10/2014,PROPERTY OPERATIONS TEAM,TOOLSTATION LTD,17.63,PURCHASE OF BUILDING MATERIALS,HARDWARE STORES
02/02/2015,http://opendatacommunities.org/id/county-council/surrey,Surrey,http://id.esd.org.uk/service/1465,Council expenditure,08/10/2014,KARIBU COMMUNITY HOME,WAITROSE 104,35.79,PURCHASE OF FOOD (RAW MATERIALS),"GROCERY STORES, SUPERMARKETS"
02/02/2015,http://opendatacommunities.org/id/county-council/surrey,Surrey,http://id.esd.org.uk/service/1465,Council expenditure,08/10/2014,ISPSB - ADAPTATIONS & IMPROVEMENTS,AMAZON  MKTPLCE EU-UK,25.38,TRAINING EXPENSES EXTERNAL GENERAL,BOOK STORES
02/02/2015,http://opendatacommunities.org/id/county-council/surrey,Surrey,http://id.esd.org.uk/service/1465,Council expenditure,08/10/2014,WOKING LIBRARY,AMAZON  MKTPLCE EU-UK,22.48,EQUIPMENT,BOOK STORES
02/02/2015,http://opendatacommunities.org/id/county-council/surrey,Surrey,http://id.esd.org.uk/service/1465,Council expenditure,08/10/2014,CHEYNE WALK COMMUNITY HOME,SURFDOME,15.99,"CLOTHING, UNIFORM AND LAUNDRY",MEN'S AND WOMEN'S CLOTHING STORES
02/02/2015,http://opendatacommunities.org/id/county-council/surrey,Surrey,http://id.esd.org.uk/service/1465,Council expenditure,08/10/2014,TRAINING SERVS FOR YOUNG PEOPLE,THE COURTLANDS HOTEL,80.00,TRAINING EXPENSES EXTERNAL GENERAL,"LODGING-HOTELS,MOTELS,RESORTS-NOT CLASSIFIED"
02/02/2015,http://opendatacommunities.org/id/county-council/surrey,Surrey,http://id.esd.org.uk/service/1465,Council expenditure,08/10/2014,EARLY YEARS EQUIPMENT,AMAZON  MKTPLCE EU-UK,12.91,CURRICULUM EQUIPMENT AND FURNITURE,BOOK STORES
02/02/2015,http://opendatacommunities.org/id/county-council/surrey,Surrey,http://id.esd.org.uk/service/1465,Council expenditure,08/10/2014,BROOMFIELD (LIBERTAS),DUNELM ONLINE ORDER,39.92,EQUIPMENT,"DRAPERY, UPOLSTERY, AND WINDOW COVERINGS STORES"
02/02/2015,http://opendatacommunities.org/id/county-council/surrey,Surrey,http://id.esd.org.uk/service/1465,Council expenditure,08/10/2014,LIBRARIES CENTRAL,BUILDASIGN,45.05,EQUIPMENT,COMPUTER NETWORK/INFORMATION SERVICES
02/02/2015,http://opendatacommunities.org/id/county-council/surrey,Surrey,http://id.esd.org.uk/service/1465,Council expenditure,08/10/2014,SOLD TRAINING,DSA,115.00,TRAINING EXPENSES EXTERNAL GENERAL,GOVERNMENT SERVICES-NOT ELSEWHERE CLASSIFIED
02/02/2015,http://opendatacommunities.org/id/county-council/surrey,Surrey,http://id.esd.org.uk/service/1465,Council expenditure,08/10/2014,RUTH HOUSE,W M MORRISONS,43.99,EDUC VISITS/HOLS/CAMPS/TOYS,"GROCERY STORES, SUPERMARKETS"
02/02/2015,http://opendatacommunities.org/id/county-council/surrey,Surrey,http://id.esd.org.uk/service/1465,Council expenditure,08/10/2014,PROPERTY OPERATIONS TEAM,WICKES,14.19,PURCHASE OF BUILDING MATERIALS,HOME SUPPLY WAREHOUSE STORES
02/02/2015,http://opendatacommunities.org/id/county-council/surrey,Surrey,http://id.esd.org.uk/service/1465,Council expenditure,08/10/2014,FAIRCROFT COMMUNITY HOME,SAINSBURYS SACAT 0687,8.95,CLEANING AND DOMESTIC SUPPLIES,"GROCERY STORES, SUPERMARKETS"
02/02/2015,http://opendatacommunities.org/id/county-council/surrey,Surrey,http://id.esd.org.uk/service/1465,Council expenditure,08/10/2014,WORKPLACE ACTIVITY,THE SIMPLY GROUP,62.99,ITEMS PURCHASED FOR RE-SALE,SPORTING GOODS STORES
02/02/2015,http://opendatacommunities.org/id/county-council/surrey,Surrey,http://id.esd.org.uk/service/1465,Council expenditure,08/10/2014,LEAVING CARE PACKAGES,TRAVELODGE WEBSITE,64.00,3RD PARTY PAYMENTS PRIVATE INDIV,TRAVELODGE
02/02/2015,http://opendatacommunities.org/id/county-council/surrey,Surrey,http://id.esd.org.uk/service/1465,Council expenditure,08/10/2014,SURREY ARTS GENERAL,AMAZON  MKTPLCE EU-UK,4.49,EQUIPMENT,BOOK STORES
02/02/2015,http://opendatacommunities.org/id/county-council/surrey,Surrey,http://id.esd.org.uk/service/1465,Council expenditure,08/10/2014,BROOMFIELD (LIBERTAS),CAPITAL RESOLVE LTD,20.00,NON-STAFF RELATED TRANSPORT COSTS,OTHER SERVICES (NOT ELSEWHERE CLASSIFIED)
02/02/2015,http://opendatacommunities.org/id/county-council/surrey,Surrey,http://id.esd.org.uk/service/1465,Council expenditure,08/10/2014,ENSURE PROVI INCLUSIVE - SEN AND INCLUSI,AMAZON EU,29.01,BOOKS,DIRECT MARKETING-OTHER DIRECT MARKETERS/NOT ELSEW.
02/02/2015,http://opendatacommunities.org/id/county-council/surrey,Surrey,http://id.esd.org.uk/service/1465,Council expenditure,08/10/2014,TRANSPORT,AMAZON  MKTPLCE EU-UK,1.28,DAY TO DAY MAINTENANCE,BOOK STORES
02/02/2015,http://opendatacommunities.org/id/county-council/surrey,Surrey,http://id.esd.org.uk/service/1465,Council expenditure,08/10/2014,SW CARE - LAC,AMAZON EU,17.09,CHILDREN ACT SEC 17 PAYMENTS,DIRECT MARKETING-OTHER DIRECT MARKETERS/NOT ELSEW.
02/02/2015,http://opendatacommunities.org/id/county-council/surrey,Surrey,http://id.esd.org.uk/service/1465,Council expenditure,08/10/2014,EARLY YEARS EQUIPMENT,AMAZON  MKTPLCE EU-UK,19.99,CURRICULUM EQUIPMENT AND FURNITURE,BOOK STORES
02/02/2015,http://opendatacommunities.org/id/county-council/surrey,Surrey,http://id.esd.org.uk/service/1465,Council expenditure,09/10/2014,MALLOW CRESCENT,ARGOS LTD,225.99,EQUIPMENT,DISCOUNT STORES
02/02/2015,http://opendatacommunities.org/id/county-council/surrey,Surrey,http://id.esd.org.uk/service/1465,Council expenditure,09/10/2014,SERVICE DELIVERY RESOURCES,RPH HIRE SERVICES,221.40,CLEANING MATERIALS,"EQUIPMENT RENTAL&LEASING SVS, FURNTURE/TOOL RENTAL"
02/02/2015,http://opendatacommunities.org/id/county-council/surrey,Surrey,http://id.esd.org.uk/service/1465,Council expenditure,09/10/2014,POLICY AND PERFORMANCE TEAM,EBUYER (UK) LTD,109.55,COMPUTER HARDWARE,HOUSEHOLD APPLIANCE STORES
02/02/2015,http://opendatacommunities.org/id/county-council/surrey,Surrey,http://id.esd.org.uk/service/1465,Council expenditure,09/10/2014,ARUNDEL,ASDA STORES 7134,95.43,REFRESHMENT COSTS,"GROCERY STORES, SUPERMARKETS"
02/02/2015,http://opendatacommunities.org/id/county-council/surrey,Surrey,http://id.esd.org.uk/service/1465,Council expenditure,09/10/2014,BADGERS WOOD,SAINSBURYS TO YOU 0686,-3.00,PURCHASE OF FOOD (RAW MATERIALS),"GROCERY STORES, SUPERMARKETS"
02/02/2015,http://opendatacommunities.org/id/county-council/surrey,Surrey,http://id.esd.org.uk/service/1465,Council expenditure,09/10/2014,WORKING TOGETHER,AMAZON  MKTPLCE EU-UK,18.95,EQUIPMENT,BOOK STORES
02/02/2015,http://opendatacommunities.org/id/county-council/surrey,Surrey,http://id.esd.org.uk/service/1465,Council expenditure,09/10/2014,SW CARE CP COURT LAC ,SURREY CC CARD PAY,25.00,NON-STAFF RELATED TRANSPORT COSTS,COMPUTER NETWORK/INFORMATION SERVICES
02/02/2015,http://opendatacommunities.org/id/county-council/surrey,Surrey,http://id.esd.org.uk/service/1465,Council expenditure,09/10/2014,OUTDOOR EDUCATION CENTRE OPERATIONS,HALFORDS 0763,19.98,EQUIPMENT,BICYCLE SHOPS-SALES AND SERVICE
02/02/2015,http://opendatacommunities.org/id/county-council/surrey,Surrey,http://id.esd.org.uk/service/1465,Council expenditure,09/10/2014,SFRS TRANSPORT,HALFORDS 0725,9.99,VEHICLE REPAIRS AND MAINTENANCE,BICYCLE SHOPS-SALES AND SERVICE
02/02/2015,http://opendatacommunities.org/id/county-council/surrey,Surrey,http://id.esd.org.uk/service/1465,Council expenditure,09/10/2014,LEAVING CARE PACKAGES,TRAVELODGE WEBSITE,69.00,3RD PARTY PAYMENTS PRIVATE INDIV,TRAVELODGE
02/02/2015,http://opendatacommunities.org/id/county-council/surrey,Surrey,http://id.esd.org.uk/service/1465,Council expenditure,09/10/2014,TS SERVICE MANAGEMENT,INTERCONNECTIVE,36.00,"CLOTHING, UNIFORM AND LAUNDRY","DETECTVE/PROTECTVE AGNCY,SECURITY SRVS, ARMOR CARS"
02/02/2015,http://opendatacommunities.org/id/county-council/surrey,Surrey,http://id.esd.org.uk/service/1465,Council expenditure,09/10/2014,IMT TECHNICAL DELIVERY,AMAZON  MKTPLCE EU-UK,25.99,EQUIPMENT,BOOK STORES
02/02/2015,http://opendatacommunities.org/id/county-council/surrey,Surrey,http://id.esd.org.uk/service/1465,Council expenditure,09/10/2014,SF1-EARLY BIRD TRAINING,AMAZON EU,7.48,EQUIPMENT,DIRECT MARKETING-OTHER DIRECT MARKETERS/NOT ELSEW.
02/02/2015,http://opendatacommunities.org/id/county-council/surrey,Surrey,http://id.esd.org.uk/service/1465,Council expenditure,09/10/2014,CENTRAL COMMS - PUBLIC HEALTH CAMPAIGNS,FACEBK  NT8957EAK2,27.77,PUBLICITY,ADVERTISING SERVICES
02/02/2015,http://opendatacommunities.org/id/county-council/surrey,Surrey,http://id.esd.org.uk/service/1465,Council expenditure,09/10/2014,NW CARE CP ,DURHAM COUNTY COUNCIL,11.73,FEES,GOVERNMENT SERVICES-NOT ELSEWHERE CLASSIFIED
02/02/2015,http://opendatacommunities.org/id/county-council/surrey,Surrey,http://id.esd.org.uk/service/1465,Council expenditure,09/10/2014,IMT TECHNICAL DELIVERY,AMAZON  MKTPLCE EU-UK,3.65,EQUIPMENT,BOOK STORES
02/02/2015,http://opendatacommunities.org/id/county-council/surrey,Surrey,http://id.esd.org.uk/service/1465,Council expenditure,09/10/2014,HOLLAND CLOSE RESIDENTIAL HOME,WILKO RETAIL LIMIT,1.99,FIXTURES AND FITTINGS,HOUSEHOLD APPLIANCE STORES
02/02/2015,http://opendatacommunities.org/id/county-council/surrey,Surrey,http://id.esd.org.uk/service/1465,Council expenditure,09/10/2014,EARLY YEARS EQUIPMENT,AMAZON  MKTPLCE EU-UK,12.01,CURRICULUM EQUIPMENT AND FURNITURE,BOOK STORES
02/02/2015,http://opendatacommunities.org/id/county-council/surrey,Surrey,http://id.esd.org.uk/service/1465,Council expenditure,09/10/2014,COUNTY HALL,PAYPAL  JUSTSAYNET,20.00,PUBLICITY,COMPUTER NETWORK/INFORMATION SERVICES
02/02/2015,http://opendatacommunities.org/id/county-council/surrey,Surrey,http://id.esd.org.uk/service/1465,Council expenditure,09/10/2014,TARGETED INTERVENTION,DIJO DELICATESSEN LIMI,5.60,EDUC VISITS/HOLS/CAMPS/TOYS,FAST FOOD RESTAURANTS
02/02/2015,http://opendatacommunities.org/id/county-council/surrey,Surrey,http://id.esd.org.uk/service/1465,Council expenditure,09/10/2014,CORE ACTIVITY,FREEDOM LEISURE,41.40,REFRESHMENT COSTS,GOVERNMENT SERVICES-NOT ELSEWHERE CLASSIFIED
02/02/2015,http://opendatacommunities.org/id/county-council/surrey,Surrey,http://id.esd.org.uk/service/1465,Council expenditure,09/10/2014,NE TEACHERS,WWW.ANNARBOR.CO.UK,160.00,BOOKS,DIRECT MARKETING-CATALOG MERCHANTS
02/02/2015,http://opendatacommunities.org/id/county-council/surrey,Surrey,http://id.esd.org.uk/service/1465,Council expenditure,09/10/2014,ASSET PLANNING - OPERATIONS,SAINSBURYS SACAT 0652,5.92,REFRESHMENT COSTS,"GROCERY STORES, SUPERMARKETS"
02/02/2015,http://opendatacommunities.org/id/county-council/surrey,Surrey,http://id.esd.org.uk/service/1465,Council expenditure,09/10/2014,IMT TECHNICAL DELIVERY,AMAZON  MKTPLCE EU-UK,8.99,EQUIPMENT,BOOK STORES
02/02/2015,http://opendatacommunities.org/id/county-council/surrey,Surrey,http://id.esd.org.uk/service/1465,Council expenditure,09/10/2014,CRITICAL ENVIRONMENT,AMAZON EU,28.50,REFRESHMENT COSTS,DIRECT MARKETING-OTHER DIRECT MARKETERS/NOT ELSEW.
02/02/2015,http://opendatacommunities.org/id/county-council/surrey,Surrey,http://id.esd.org.uk/service/1465,Council expenditure,09/10/2014,COMMUNICATIONS TEAM,ITUNES.COM/BILL,6.99,SUBSCRIPTIONS,RECORD SHOPS
02/02/2015,http://opendatacommunities.org/id/county-council/surrey,Surrey,http://id.esd.org.uk/service/1465,Council expenditure,09/10/2014,INCLUSION VIRTUAL LEARNING ENVIRONMENT,HAMILTON EDUCATION,144.00,COMPUTER SERVICES,DIRECT MARKETING-OTHER DIRECT MARKETERS/NOT ELSEW.
02/02/2015,http://opendatacommunities.org/id/county-council/surrey,Surrey,http://id.esd.org.uk/service/1465,Council expenditure,09/10/2014,TARGETED INTERVENTION,STARBUCKS,4.90,EDUC VISITS/HOLS/CAMPS/TOYS,"EATING PLACES, RESTAURANTS"
02/02/2015,http://opendatacommunities.org/id/county-council/surrey,Surrey,http://id.esd.org.uk/service/1465,Council expenditure,09/10/2014,PROPERTY OPERATIONS TEAM,B & Q,55.94,PURCHASE OF BUILDING MATERIALS,"BUILDING MATERIALS, LUMBER STORES"
02/02/2015,http://opendatacommunities.org/id/county-council/surrey,Surrey,http://id.esd.org.uk/service/1465,Council expenditure,09/10/2014,TRAINING AND DEVELOPMENT,LEE VALLEY WHITE WATER,288.60,REFRESHMENT COSTS,"CLUBS-CNTRY,MBRSHIP(ATHLET,REC,SPRTS,PRIVATE GOLF"
02/02/2015,http://opendatacommunities.org/id/county-council/surrey,Surrey,http://id.esd.org.uk/service/1465,Council expenditure,09/10/2014,HOLLAND CLOSE RESIDENTIAL HOME,CEX,32.00,EQUIPMENT,ELECTRONIC SALES
02/02/2015,http://opendatacommunities.org/id/county-council/surrey,Surrey,http://id.esd.org.uk/service/1465,Council expenditure,09/10/2014,PAL - SOUND RECORDINGS - MUSIC,AMAZON EU,8.70,LIBRARY RESOURCES,DIRECT MARKETING-OTHER DIRECT MARKETERS/NOT ELSEW.
02/02/2015,http://opendatacommunities.org/id/county-council/surrey,Surrey,http://id.esd.org.uk/service/1465,Council expenditure,09/10/2014,YSS MANAGEMENT PRACTICE AND SUPPORT,THE STANAGE B AND B,57.00,TRAINING EXPENSES EXTERNAL GENERAL,"LODGING-HOTELS,MOTELS,RESORTS-NOT CLASSIFIED"
02/02/2015,http://opendatacommunities.org/id/county-council/surrey,Surrey,http://id.esd.org.uk/service/1465,Council expenditure,09/10/2014,HILLSIDE,SAINSBURYS SACAT 0675,6.00,PURCHASE OF FOOD (RAW MATERIALS),"GROCERY STORES, SUPERMARKETS"
02/02/2015,http://opendatacommunities.org/id/county-council/surrey,Surrey,http://id.esd.org.uk/service/1465,Council expenditure,09/10/2014,TRAINING ENVIRONMENT SERVICES,IN-SITU EUROPE LTD,270.00,TRAINING EXPENSES EXTERNAL GENERAL,HARDWARE EQUIPMENT AND SUPPLIES
02/02/2015,http://opendatacommunities.org/id/county-council/surrey,Surrey,http://id.esd.org.uk/service/1465,Council expenditure,09/10/2014,EARLY YEARS EQUIPMENT,AMAZON  MKTPLCE EU-UK,7.25,CURRICULUM EQUIPMENT AND FURNITURE,BOOK STORES
02/02/2015,http://opendatacommunities.org/id/county-council/surrey,Surrey,http://id.esd.org.uk/service/1465,Council expenditure,09/10/2014,CLOSED LANDFILL,WWW.HALL-FAST.COM,27.00,EQUIPMENT,INDUSTRIAL SUPPLIES NOT ELSEWHERE CLASSIFIED
02/02/2015,http://opendatacommunities.org/id/county-council/surrey,Surrey,http://id.esd.org.uk/service/1465,Council expenditure,09/10/2014,IMPROVING OUTCOMES - ECAT,AMAZON  MKTPLCE EU-UK,0.87,EDUC VISITS/HOLS/CAMPS/TOYS,BOOK STORES
02/02/2015,http://opendatacommunities.org/id/county-council/surrey,Surrey,http://id.esd.org.uk/service/1465,Council expenditure,09/10/2014,IMT TECHNICAL DELIVERY,AMAZON  MKTPLCE EU-UK,5.99,EQUIPMENT,BOOK STORES
02/02/2015,http://opendatacommunities.org/id/county-council/surrey,Surrey,http://id.esd.org.uk/service/1465,Council expenditure,09/10/2014,SE NIL RECOURSE TO PUBLIC FUNDS CARE,SURREY CC CARD PAY,31.00,OTHER COMMUNITY CARE PRIV,COMPUTER NETWORK/INFORMATION SERVICES
02/02/2015,http://opendatacommunities.org/id/county-council/surrey,Surrey,http://id.esd.org.uk/service/1465,Council expenditure,09/10/2014,CENTRAL COMMS - PUBLIC HEALTH CAMPAIGNS,GOOGLE  ADWS2060179426,500.00,PUBLICITY,DIRECT MARKETING-CONTINUITY/SUBSCRIPTION MERCHANTS
02/02/2015,http://opendatacommunities.org/id/county-council/surrey,Surrey,http://id.esd.org.uk/service/1465,Council expenditure,09/10/2014,IMT TECHNICAL DELIVERY,AMAZON  MKTPLCE EU-UK,6.36,EQUIPMENT,BOOK STORES
02/02/2015,http://opendatacommunities.org/id/county-council/surrey,Surrey,http://id.esd.org.uk/service/1465,Council expenditure,09/10/2014,BOOKS - ADULT FICTION,AMAZON EU,10.00,LIBRARY RESOURCES,DIRECT MARKETING-OTHER DIRECT MARKETERS/NOT ELSEW.
02/02/2015,http://opendatacommunities.org/id/county-council/surrey,Surrey,http://id.esd.org.uk/service/1465,Council expenditure,09/10/2014,ASSET PLANNING GROUP,AMAZON  MKTPLCE EU-UK,11.20,"CLOTHING, UNIFORM AND LAUNDRY",BOOK STORES
02/02/2015,http://opendatacommunities.org/id/county-council/surrey,Surrey,http://id.esd.org.uk/service/1465,Council expenditure,09/10/2014,CHILDRENS RIGHTS TEAM,CHINA CHEF,113.90,REFRESHMENT COSTS,"EATING PLACES, RESTAURANTS"
02/02/2015,http://opendatacommunities.org/id/county-council/surrey,Surrey,http://id.esd.org.uk/service/1465,Council expenditure,09/10/2014,BADGERS WOOD,SAINSBURYS TO YOU 0686,315.86,PURCHASE OF FOOD (RAW MATERIALS),"GROCERY STORES, SUPERMARKETS"
02/02/2015,http://opendatacommunities.org/id/county-council/surrey,Surrey,http://id.esd.org.uk/service/1465,Council expenditure,09/10/2014,HOPE SERVICE WEST,BOOKPOINT LIMITED,210.00,BOOKS,"BOOKS,PERIODICALS AND NEWSPAPERS"
02/02/2015,http://opendatacommunities.org/id/county-council/surrey,Surrey,http://id.esd.org.uk/service/1465,Council expenditure,09/10/2014,NE EDUCATION PSYCHOLOGISTS,AMAZON  MKTPLCE EU-UK,20.80,BOOKS,BOOK STORES
02/02/2015,http://opendatacommunities.org/id/county-council/surrey,Surrey,http://id.esd.org.uk/service/1465,Council expenditure,09/10/2014,TRANSPORT,BASELAYER,655.50,"CLOTHING, UNIFORM AND LAUNDRY",SPORTING GOODS STORES
02/02/2015,http://opendatacommunities.org/id/county-council/surrey,Surrey,http://id.esd.org.uk/service/1465,Council expenditure,09/10/2014,COMMUNICATIONS TEAM,ITUNES.COM/BILL,6.99,SUBSCRIPTIONS,RECORD SHOPS
02/02/2015,http://opendatacommunities.org/id/county-council/surrey,Surrey,http://id.esd.org.uk/service/1465,Council expenditure,09/10/2014,SE CARE - NON-LAC CP & COURT,SURREY CC CARD PAY,31.00,OTHER COMMUNITY CARE PRIV,COMPUTER NETWORK/INFORMATION SERVICES
02/02/2015,http://opendatacommunities.org/id/county-council/surrey,Surrey,http://id.esd.org.uk/service/1465,Council expenditure,09/10/2014,TARGETED INTERVENTION,SUNBURY TYRE CARE SPEC,20.46,VEHICLE REPAIRS AND MAINTENANCE,"AUTOMOTIVE PARTS, ACCESSORIES STORES"
02/02/2015,http://opendatacommunities.org/id/county-council/surrey,Surrey,http://id.esd.org.uk/service/1465,Council expenditure,09/10/2014,PROPERTY OPERATIONS TEAM,SCREWFIX GUILDFORD,22.96,PURCHASE OF BUILDING MATERIALS,"BUILDING MATERIALS, LUMBER STORES"
02/02/2015,http://opendatacommunities.org/id/county-council/surrey,Surrey,http://id.esd.org.uk/service/1465,Council expenditure,09/10/2014,EAST SUSSEX MGMT,TESCO STORES 3330,2.89,REFRESHMENT COSTS,"GROCERY STORES, SUPERMARKETS"
02/02/2015,http://opendatacommunities.org/id/county-council/surrey,Surrey,http://id.esd.org.uk/service/1465,Council expenditure,09/10/2014,SFRS TRANSPORT,AMAZON EU,11.28,FURNITURE,DIRECT MARKETING-OTHER DIRECT MARKETERS/NOT ELSEW.
02/02/2015,http://opendatacommunities.org/id/county-council/surrey,Surrey,http://id.esd.org.uk/service/1465,Council expenditure,09/10/2014,OUTDOOR EDUCATION CENTRE ESTATES,BURNTCOMMON CENTRE,28.45,VEHICLE RUNNING COSTS,AUTOMOTIVE SERVICE SHOPS
02/02/2015,http://opendatacommunities.org/id/county-council/surrey,Surrey,http://id.esd.org.uk/service/1465,Council expenditure,09/10/2014,EARLY YEARS EQUIPMENT,AMAZON  MKTPLCE EU-UK,4.58,CURRICULUM EQUIPMENT AND FURNITURE,BOOK STORES
02/02/2015,http://opendatacommunities.org/id/county-council/surrey,Surrey,http://id.esd.org.uk/service/1465,Council expenditure,09/10/2014,IMPROVING OUTCOMES - ECAT,AMAZON  MKTPLCE EU-UK,3.74,EDUC VISITS/HOLS/CAMPS/TOYS,BOOK STORES
02/02/2015,http://opendatacommunities.org/id/county-council/surrey,Surrey,http://id.esd.org.uk/service/1465,Council expenditure,10/10/2014,SW CARE - NON-LAC CIN,R COLLARD V/T,187.00,CLEANING AND DOMESTIC SUPPLIES,"BUILDING MATERIALS, LUMBER STORES"
02/02/2015,http://opendatacommunities.org/id/county-council/surrey,Surrey,http://id.esd.org.uk/service/1465,Council expenditure,10/10/2014,NW EDUCATION WELFARE OFFICERS,STRONGFAMILY.CO.UK,18.00,EDUC VISITS/HOLS/CAMPS/TOYS,"COLLEGES, UNIV, PRO SCHOOLS, JUNIOR COLLEGES"
02/02/2015,http://opendatacommunities.org/id/county-council/surrey,Surrey,http://id.esd.org.uk/service/1465,Council expenditure,10/10/2014,SURREY TRAVEL SMART - LSTF,COSTA COFFEE,100.00,EQUIPMENT,"EATING PLACES, RESTAURANTS"
02/02/2015,http://opendatacommunities.org/id/county-council/surrey,Surrey,http://id.esd.org.uk/service/1465,Council expenditure,10/10/2014,MEADOWVIEW COMMUNITY HOME,PROVISIONS (20.92%),28.75,PURCHASE OF FOOD (RAW MATERIALS),"GROCERY STORES, SUPERMARKETS"
02/02/2015,http://opendatacommunities.org/id/county-council/surrey,Surrey,http://id.esd.org.uk/service/1465,Council expenditure,10/10/2014,MEADOWVIEW COMMUNITY HOME,PROVISIONS (79.08%),108.68,PURCHASE OF FOOD (RAW MATERIALS),"GROCERY STORES, SUPERMARKETS"
02/02/2015,http://opendatacommunities.org/id/county-council/surrey,Surrey,http://id.esd.org.uk/service/1465,Council expenditure,10/10/2014,OUTDOOR EDUCATION BUSINESS DEVELOPMENT,AMAZON EU,7.90,EQUIPMENT,DIRECT MARKETING-OTHER DIRECT MARKETERS/NOT ELSEW.
02/02/2015,http://opendatacommunities.org/id/county-council/surrey,Surrey,http://id.esd.org.uk/service/1465,Council expenditure,10/10/2014,AREA SCHOOLS OFFICER (NE),AMAZON EU,56.85,EQUIPMENT,DIRECT MARKETING-OTHER DIRECT MARKETERS/NOT ELSEW.
02/02/2015,http://opendatacommunities.org/id/county-council/surrey,Surrey,http://id.esd.org.uk/service/1465,Council expenditure,10/10/2014,NW TEACHERS,AMAZON EU,14.06,BOOKS,DIRECT MARKETING-OTHER DIRECT MARKETERS/NOT ELSEW.
02/02/2015,http://opendatacommunities.org/id/county-council/surrey,Surrey,http://id.esd.org.uk/service/1465,Council expenditure,10/10/2014,ROW VOLUNTEERS EAST,FAIRALLS,55.41,EQUIPMENT,CONSTRUCTION MATERIALS NOT ELSEWHERE CLASSIFIED
02/02/2015,http://opendatacommunities.org/id/county-council/surrey,Surrey,http://id.esd.org.uk/service/1465,Council expenditure,10/10/2014,COMMUNICATIONS TEAM,AMAZON  MKTPLCE EU-UK,58.00,EQUIPMENT,BOOK STORES
02/02/2015,http://opendatacommunities.org/id/county-council/surrey,Surrey,http://id.esd.org.uk/service/1465,Council expenditure,10/10/2014,HILLSIDE,TESCO STORE 3149,45.13,PURCHASE OF FOOD (RAW MATERIALS),"GROCERY STORES, SUPERMARKETS"
02/02/2015,http://opendatacommunities.org/id/county-council/surrey,Surrey,http://id.esd.org.uk/service/1465,Council expenditure,10/10/2014,SECTOR MANAGER,EVERYTHING-ID,232.44,EQUIPMENT,MISCELLANEOUS AND SPECIALTY RETAIL STORES
02/02/2015,http://opendatacommunities.org/id/county-council/surrey,Surrey,http://id.esd.org.uk/service/1465,Council expenditure,10/10/2014,IMPROVING OUTCOMES - ECAT,AMAZON  MKTPLCE EU-UK,1.70,EDUC VISITS/HOLS/CAMPS/TOYS,BOOK STORES
02/02/2015,http://opendatacommunities.org/id/county-council/surrey,Surrey,http://id.esd.org.uk/service/1465,Council expenditure,10/10/2014,TARGETED INTERVENTION,WOKING BOROUGH COUNCIL,2.60,EDUC VISITS/HOLS/CAMPS/TOYS,AUTOMOBILE PARKING LOTS AND GARAGES
02/02/2015,http://opendatacommunities.org/id/county-council/surrey,Surrey,http://id.esd.org.uk/service/1465,Council expenditure,10/10/2014,SUSTAINABILITY GROUP,PAYPAL  CARBONTRUST,9.99,BOOKS,"CONSULTING, MANAGEMENT, AND PUBLIC RELATIONS SVCS"
02/02/2015,http://opendatacommunities.org/id/county-council/surrey,Surrey,http://id.esd.org.uk/service/1465,Council expenditure,10/10/2014,BURBANK COMMUNITY HOME,"BOOTS,WOKING",2.28,PURCHASE OF FOOD (RAW MATERIALS),"DRUG STORES, PHARMACIES"
02/02/2015,http://opendatacommunities.org/id/county-council/surrey,Surrey,http://id.esd.org.uk/service/1465,Council expenditure,10/10/2014,ASSET PLANNING - OPERATIONS,POST OFFICE COUNTER,12.98,POSTAGE AND COURIER CHARGES,POSTAL SERVICES-GOVERNMENT ONLY
02/02/2015,http://opendatacommunities.org/id/county-council/surrey,Surrey,http://id.esd.org.uk/service/1465,Council expenditure,10/10/2014,WORKING TOGETHER,AMAZON  MKTPLCE EU-UK,19.25,EQUIPMENT,BOOK STORES
02/02/2015,http://opendatacommunities.org/id/county-council/surrey,Surrey,http://id.esd.org.uk/service/1465,Council expenditure,10/10/2014,ARUNDEL,FOOD FOR SERVICE USERS (92.42%),60.95,REFRESHMENT COSTS,"GROCERY STORES, SUPERMARKETS"
02/02/2015,http://opendatacommunities.org/id/county-council/surrey,Surrey,http://id.esd.org.uk/service/1465,Council expenditure,10/10/2014,ARUNDEL,FOOD FOR SERVICE USERS (7.58%),5.00,REFRESHMENT COSTS,"GROCERY STORES, SUPERMARKETS"
02/02/2015,http://opendatacommunities.org/id/county-council/surrey,Surrey,http://id.esd.org.uk/service/1465,Council expenditure,10/10/2014,ACL CENTRAL EXPENDITURE,SCARVA POTTERY SUPPLIE,73.66,CURRICULUM CONSUMABLES,"ARTIST SUPPLY STORES, CRAFT SHOPS"
02/02/2015,http://opendatacommunities.org/id/county-council/surrey,Surrey,http://id.esd.org.uk/service/1465,Council expenditure,10/10/2014,HOPE SERVICE EAST,LAKELAND LIMITED,6.99,EQUIPMENT,HOUSEHOLD APPLIANCE STORES
02/02/2015,http://opendatacommunities.org/id/county-council/surrey,Surrey,http://id.esd.org.uk/service/1465,Council expenditure,10/10/2014,BURBANK COMMUNITY HOME,NATIONAL TYRE SERVICE,126.00,VEHICLE REPAIRS AND MAINTENANCE,"AUTOMOTIVE PARTS, ACCESSORIES STORES"
02/02/2015,http://opendatacommunities.org/id/county-council/surrey,Surrey,http://id.esd.org.uk/service/1465,Council expenditure,10/10/2014,NE EDUCATION PSYCHOLOGISTS,AMAZON EU,23.96,BOOKS,DIRECT MARKETING-OTHER DIRECT MARKETERS/NOT ELSEW.
02/02/2015,http://opendatacommunities.org/id/county-council/surrey,Surrey,http://id.esd.org.uk/service/1465,Council expenditure,10/10/2014,ACL CENTRAL EXPENDITURE,POST OFFICE COUNTER,421.40,POSTAGE AND COURIER CHARGES,POSTAL SERVICES-GOVERNMENT ONLY
02/02/2015,http://opendatacommunities.org/id/county-council/surrey,Surrey,http://id.esd.org.uk/service/1465,Council expenditure,10/10/2014,HOPE SERVICE WEST,TESCO-STORES 2590,18.00,CLEANING MATERIALS,"GROCERY STORES, SUPERMARKETS"
02/02/2015,http://opendatacommunities.org/id/county-council/surrey,Surrey,http://id.esd.org.uk/service/1465,Council expenditure,10/10/2014,APPLEWOOD,ASDA STORES 7134,72.54,PURCHASE OF FOOD (RAW MATERIALS),"GROCERY STORES, SUPERMARKETS"
02/02/2015,http://opendatacommunities.org/id/county-council/surrey,Surrey,http://id.esd.org.uk/service/1465,Council expenditure,10/10/2014,HEAD OF PROCUREMENT,WWW.PMGLTD.CO.UK,426.00,TRAINING EXPENSES EXTERNAL GENERAL,BUSINESS SERVICES-NOT ELSEWHERE CLASSIFIED
02/02/2015,http://opendatacommunities.org/id/county-council/surrey,Surrey,http://id.esd.org.uk/service/1465,Council expenditure,10/10/2014,RUTH HOUSE,THE FARM SHOP-,104.38,PURCHASE OF FOOD (RAW MATERIALS),"CLOCK, JEWELRY, WATCH, AND SILVERWARE STORE"
02/02/2015,http://opendatacommunities.org/id/county-council/surrey,Surrey,http://id.esd.org.uk/service/1465,Council expenditure,10/10/2014,SFRS TRANSPORT,SPORTSDIRECT.COM,21.98,OPERATIONAL FIRE EQUIPMENT,SPORTING GOODS STORES
02/02/2015,http://opendatacommunities.org/id/county-council/surrey,Surrey,http://id.esd.org.uk/service/1465,Council expenditure,10/10/2014,PE/CDT MAINTENANCE OVERHEADS,HARROD UK SPORT,168.69,EQUIPMENT,"SPORTS APPAREL, RIDING APPAREL STORES"
02/02/2015,http://opendatacommunities.org/id/county-council/surrey,Surrey,http://id.esd.org.uk/service/1465,Council expenditure,10/10/2014,PROPERTY OPERATIONS TEAM,WICKES,19.86,PURCHASE OF BUILDING MATERIALS,HOME SUPPLY WAREHOUSE STORES
02/02/2015,http://opendatacommunities.org/id/county-council/surrey,Surrey,http://id.esd.org.uk/service/1465,Council expenditure,10/10/2014,OUTDOOR EDUCATION CENTRE OPERATIONS,AMAZON  MKTPLCE EU-UK,33.61,EQUIPMENT,BOOK STORES
02/02/2015,http://opendatacommunities.org/id/county-council/surrey,Surrey,http://id.esd.org.uk/service/1465,Council expenditure,10/10/2014,KARIBU COMMUNITY HOME,VIAGOGO EVENT TICKETS,133.64,EDUC VISITS/HOLS/CAMPS/TOYS,"THEATRICAL PRODUCERS(EXCL MOTION PIX),TICKET AGNCY"
02/02/2015,http://opendatacommunities.org/id/county-council/surrey,Surrey,http://id.esd.org.uk/service/1465,Council expenditure,10/10/2014,RUTH HOUSE,THE FARM SHOP-,494.57,PURCHASE OF FOOD (RAW MATERIALS),"CLOCK, JEWELRY, WATCH, AND SILVERWARE STORE"
02/02/2015,http://opendatacommunities.org/id/county-council/surrey,Surrey,http://id.esd.org.uk/service/1465,Council expenditure,10/10/2014,CRITICAL ENVIRONMENT,WWW.TOOLSTATION.COM,16.18,EQUIPMENT,HARDWARE STORES
02/02/2015,http://opendatacommunities.org/id/county-council/surrey,Surrey,http://id.esd.org.uk/service/1465,Council expenditure,10/10/2014,DEMOCRATIC SERVICES TEAM,ATLANTIS EUROPEAN,414.02,STATIONERY,"ARTIST SUPPLY STORES, CRAFT SHOPS"
02/02/2015,http://opendatacommunities.org/id/county-council/surrey,Surrey,http://id.esd.org.uk/service/1465,Council expenditure,10/10/2014,SFRS TRANSPORT,WHITBY HYDRAULICS LTD,204.00,VEHICLE REPAIRS AND MAINTENANCE,INDUSTRIAL SUPPLIES NOT ELSEWHERE CLASSIFIED
02/02/2015,http://opendatacommunities.org/id/county-council/surrey,Surrey,http://id.esd.org.uk/service/1465,Council expenditure,10/10/2014,OUTDOOR EDUCATION CENTRE OPERATIONS,AMAZON  MKTPLCE EU-UK,149.97,EQUIPMENT,BOOK STORES
02/02/2015,http://opendatacommunities.org/id/county-council/surrey,Surrey,http://id.esd.org.uk/service/1465,Council expenditure,10/10/2014,PROPERTY OPERATIONS TEAM,WICKES,21.45,PURCHASE OF BUILDING MATERIALS,HOME SUPPLY WAREHOUSE STORES
02/02/2015,http://opendatacommunities.org/id/county-council/surrey,Surrey,http://id.esd.org.uk/service/1465,Council expenditure,10/10/2014,PROGRAMME TEAM,PAYPAL  READREADING,"1,041.72",PUBLICITY,"ORGANIZATIONS, CHARITABLE AND SOCIAL SERVICES"
02/02/2015,http://opendatacommunities.org/id/county-council/surrey,Surrey,http://id.esd.org.uk/service/1465,Council expenditure,10/10/2014,HOPE SERVICE WEST,SAINSBURYS SACAT 0652,37.66,PURCHASE OF FOOD (RAW MATERIALS),"GROCERY STORES, SUPERMARKETS"
02/02/2015,http://opendatacommunities.org/id/county-council/surrey,Surrey,http://id.esd.org.uk/service/1465,Council expenditure,10/10/2014,POLICY AND OPERATIONS TEAM,HOOTSUITE MEDIA INC.,82.81,SUBSCRIPTIONS,BUSINESS SERVICES-NOT ELSEWHERE CLASSIFIED
02/02/2015,http://opendatacommunities.org/id/county-council/surrey,Surrey,http://id.esd.org.uk/service/1465,Council expenditure,10/10/2014,TARGETED INTERVENTION,STARBUCKS,6.15,EDUC VISITS/HOLS/CAMPS/TOYS,"EATING PLACES, RESTAURANTS"
02/02/2015,http://opendatacommunities.org/id/county-council/surrey,Surrey,http://id.esd.org.uk/service/1465,Council expenditure,10/10/2014,SW LOOKED AFTER TEAM,PREMIER INN44521700,74.00,MISCELLANEOUS STAFF TRAVEL,PREMIER INN
02/02/2015,http://opendatacommunities.org/id/county-council/surrey,Surrey,http://id.esd.org.uk/service/1465,Council expenditure,10/10/2014,TARGETED INTERVENTION,COSTA COFFEE 43037185,6.35,EDUC VISITS/HOLS/CAMPS/TOYS,"EATING PLACES, RESTAURANTS"
02/02/2015,http://opendatacommunities.org/id/county-council/surrey,Surrey,http://id.esd.org.uk/service/1465,Council expenditure,10/10/2014,ROW VOLUNTEERS EAST,OLD OXTED SERVICE,4.56,PETROL/DIESEL ALL OFF BUSINESS,SERVICE STATIONS WITH OR WITHOUT ANCILLARY SERVICE
02/02/2015,http://opendatacommunities.org/id/county-council/surrey,Surrey,http://id.esd.org.uk/service/1465,Council expenditure,10/10/2014,BROOMFIELD (LIBERTAS),SPLIT - PROVISIONS (18.93%),28.09,PURCHASE OF FOOD (RAW MATERIALS),"MISC FOOD STORE-CONVENIENCE,MRKT,SPLTY,VENDNG MACS"
02/02/2015,http://opendatacommunities.org/id/county-council/surrey,Surrey,http://id.esd.org.uk/service/1465,Council expenditure,10/10/2014,BROOMFIELD (LIBERTAS),SPLIT - PROVISIONS (81.07%),120.28,PURCHASE OF FOOD (RAW MATERIALS),"MISC FOOD STORE-CONVENIENCE,MRKT,SPLTY,VENDNG MACS"
02/02/2015,http://opendatacommunities.org/id/county-council/surrey,Surrey,http://id.esd.org.uk/service/1465,Council expenditure,10/10/2014,OUTDOOR EDUCATION CENTRE OPERATIONS,AMAZON  MKTPLCE EU-UK,16.96,EQUIPMENT,BOOK STORES
02/02/2015,http://opendatacommunities.org/id/county-council/surrey,Surrey,http://id.esd.org.uk/service/1465,Council expenditure,10/10/2014,LEAVING CARE PACKAGES,TRAVELODGE WEBSITE,171.00,3RD PARTY PAYMENTS PRIVATE INDIV,TRAVELODGE
02/02/2015,http://opendatacommunities.org/id/county-council/surrey,Surrey,http://id.esd.org.uk/service/1465,Council expenditure,10/10/2014,CENTRAL COMMS - PUBLIC HEALTH CAMPAIGNS,FACEBOOK AAEPW6J2S2,32.84,PUBLICITY,ADVERTISING SERVICES
02/02/2015,http://opendatacommunities.org/id/county-council/surrey,Surrey,http://id.esd.org.uk/service/1465,Council expenditure,10/10/2014,NW EDUCATION WELFARE OFFICERS,AMAZON  MKTPLCE EU-UK,27.95,EQUIPMENT,BOOK STORES
02/02/2015,http://opendatacommunities.org/id/county-council/surrey,Surrey,http://id.esd.org.uk/service/1465,Council expenditure,10/10/2014,PE/CDT MAINTENANCE OVERHEADS,TECHNOGYM UK LTD,54.33,EQUIPMENT,SPORTING GOODS STORES
02/02/2015,http://opendatacommunities.org/id/county-council/surrey,Surrey,http://id.esd.org.uk/service/1465,Council expenditure,10/10/2014,CENTRAL COMMS - PUBLIC HEALTH CAMPAIGNS,FACEBK  FB9X672AK2,27.77,PUBLICITY,ADVERTISING SERVICES
02/02/2015,http://opendatacommunities.org/id/county-council/surrey,Surrey,http://id.esd.org.uk/service/1465,Council expenditure,10/10/2014,BADGERS WOOD,WWW.STUFF-UK.NET,50.88,STATIONERY,"COMP PROGRAMING,DATA PRCSNG,INTGRTD SYS DSGN SRVS"
02/02/2015,http://opendatacommunities.org/id/county-council/surrey,Surrey,http://id.esd.org.uk/service/1465,Council expenditure,10/10/2014,COUNTY HALL,FAIRFIELD HALLS-ADMIN,100.00,ADAPTATIONS,"EATING PLACES, RESTAURANTS"
02/02/2015,http://opendatacommunities.org/id/county-council/surrey,Surrey,http://id.esd.org.uk/service/1465,Council expenditure,10/10/2014,EARLY YEARS EQUIPMENT,AMAZON  MKTPLCE EU-UK,72.18,CURRICULUM EQUIPMENT AND FURNITURE,BOOK STORES
02/02/2015,http://opendatacommunities.org/id/county-council/surrey,Surrey,http://id.esd.org.uk/service/1465,Council expenditure,10/10/2014,TARGETED INTERVENTION,FREEDOM LEISURE,10.00,EDUC VISITS/HOLS/CAMPS/TOYS,GOVERNMENT SERVICES-NOT ELSEWHERE CLASSIFIED
02/02/2015,http://opendatacommunities.org/id/county-council/surrey,Surrey,http://id.esd.org.uk/service/1465,Council expenditure,10/10/2014,FIRE & RESCUE COMMUNITY SAFETY,SAINSBURYS TO YOU 0679,101.55,PURCHASE OF FOOD (RAW MATERIALS),"GROCERY STORES, SUPERMARKETS"
02/02/2015,http://opendatacommunities.org/id/county-council/surrey,Surrey,http://id.esd.org.uk/service/1465,Council expenditure,10/10/2014,BURBANK COMMUNITY HOME,WM MORRISONS DRY C,22.00,EQUIPMENT,"GROCERY STORES, SUPERMARKETS"
02/02/2015,http://opendatacommunities.org/id/county-council/surrey,Surrey,http://id.esd.org.uk/service/1465,Council expenditure,11/10/2014,BOOKS - ADULT FICTION,AMAZON EU,12.74,LIBRARY RESOURCES,DIRECT MARKETING-OTHER DIRECT MARKETERS/NOT ELSEW.
02/02/2015,http://opendatacommunities.org/id/county-council/surrey,Surrey,http://id.esd.org.uk/service/1465,Council expenditure,11/10/2014,TS SERVICE MANAGEMENT,AMAZON EU,99.57,EQUIPMENT,DIRECT MARKETING-OTHER DIRECT MARKETERS/NOT ELSEW.
02/02/2015,http://opendatacommunities.org/id/county-council/surrey,Surrey,http://id.esd.org.uk/service/1465,Council expenditure,11/10/2014,FAIRCROFT COMMUNITY HOME,FOOD SUPPLIES (97.93%),46.80,PURCHASE OF FOOD (RAW MATERIALS),"GROCERY STORES, SUPERMARKETS"
02/02/2015,http://opendatacommunities.org/id/county-council/surrey,Surrey,http://id.esd.org.uk/service/1465,Council expenditure,11/10/2014,FAIRCROFT COMMUNITY HOME,EQUIPMENT (2.07%),0.99,EQUIPMENT,"GROCERY STORES, SUPERMARKETS"
02/02/2015,http://opendatacommunities.org/id/county-council/surrey,Surrey,http://id.esd.org.uk/service/1465,Council expenditure,11/10/2014,OUTDOOR EDUCATION CENTRE OPERATIONS,AMAZON  MKTPLCE EU-UK,12.87,EQUIPMENT,BOOK STORES
02/02/2015,http://opendatacommunities.org/id/county-council/surrey,Surrey,http://id.esd.org.uk/service/1465,Council expenditure,11/10/2014,ENSURE PROVI INCLUSIVE - SEN AND INCLUSI,AMAZON EU,44.85,BOOKS,DIRECT MARKETING-OTHER DIRECT MARKETERS/NOT ELSEW.
02/02/2015,http://opendatacommunities.org/id/county-council/surrey,Surrey,http://id.esd.org.uk/service/1465,Council expenditure,11/10/2014,CENTRAL COMMS - PUBLIC HEALTH CAMPAIGNS,FACEBK  HQEX672AK2,37.08,PUBLICITY,ADVERTISING SERVICES
02/02/2015,http://opendatacommunities.org/id/county-council/surrey,Surrey,http://id.esd.org.uk/service/1465,Council expenditure,11/10/2014,SURREY ARTS GENERAL,AMAZON  MKTPLCE EU-UK,55.44,EQUIPMENT,BOOK STORES
02/02/2015,http://opendatacommunities.org/id/county-council/surrey,Surrey,http://id.esd.org.uk/service/1465,Council expenditure,11/10/2014,HOPE SERVICE WEST,ROBERT DYAS HOLDNG LTD,3.39,CURRICULUM EQUIPMENT AND FURNITURE,HARDWARE STORES
02/02/2015,http://opendatacommunities.org/id/county-council/surrey,Surrey,http://id.esd.org.uk/service/1465,Council expenditure,11/10/2014,NW EDUCATION WELFARE OFFICERS,AMAZON EU,12.59,BOOKS,DIRECT MARKETING-OTHER DIRECT MARKETERS/NOT ELSEW.
02/02/2015,http://opendatacommunities.org/id/county-council/surrey,Surrey,http://id.esd.org.uk/service/1465,Council expenditure,11/10/2014,SURREY ARTS GENERAL,AMAZON  MKTPLCE EU-UK,20.90,EQUIPMENT,BOOK STORES
02/02/2015,http://opendatacommunities.org/id/county-council/surrey,Surrey,http://id.esd.org.uk/service/1465,Council expenditure,11/10/2014,CENTRAL COMMS - PUBLIC HEALTH CAMPAIGNS,FACEBOOK M8VZY6N2S2,43.62,PUBLICITY,ADVERTISING SERVICES
02/02/2015,http://opendatacommunities.org/id/county-council/surrey,Surrey,http://id.esd.org.uk/service/1465,Council expenditure,11/10/2014,ENSURE PROVI INCLUSIVE - SEN AND INCLUSI,AMAZON EU,9.85,BOOKS,DIRECT MARKETING-OTHER DIRECT MARKETERS/NOT ELSEW.
02/02/2015,http://opendatacommunities.org/id/county-council/surrey,Surrey,http://id.esd.org.uk/service/1465,Council expenditure,11/10/2014,HILLSIDE,SAINSBURYS 0675,133.28,PURCHASE OF FOOD (RAW MATERIALS),"GROCERY STORES, SUPERMARKETS"
02/02/2015,http://opendatacommunities.org/id/county-council/surrey,Surrey,http://id.esd.org.uk/service/1465,Council expenditure,11/10/2014,KARIBU COMMUNITY HOME,TESCO STORE 2812,298.31,PURCHASE OF FOOD (RAW MATERIALS),"GROCERY STORES, SUPERMARKETS"
02/02/2015,http://opendatacommunities.org/id/county-council/surrey,Surrey,http://id.esd.org.uk/service/1465,Council expenditure,11/10/2014,TS SERVICE MANAGEMENT,AMAZON EU,6.19,EQUIPMENT,DIRECT MARKETING-OTHER DIRECT MARKETERS/NOT ELSEW.
02/02/2015,http://opendatacommunities.org/id/county-council/surrey,Surrey,http://id.esd.org.uk/service/1465,Council expenditure,12/10/2014,FAIRCROFT COMMUNITY HOME,BROOKLANDS EXTRA,8.97,EDUC VISITS/HOLS/CAMPS/TOYS,"OFFICE, SCHOOL SUPPLY, AND STATIONERY STORES"
02/02/2015,http://opendatacommunities.org/id/county-council/surrey,Surrey,http://id.esd.org.uk/service/1465,Council expenditure,12/10/2014,FAIRCROFT COMMUNITY HOME,TESCO STORES-2160,4.00,PURCHASE OF FOOD (RAW MATERIALS),"GROCERY STORES, SUPERMARKETS"
02/02/2015,http://opendatacommunities.org/id/county-council/surrey,Surrey,http://id.esd.org.uk/service/1465,Council expenditure,12/10/2014,OUTDOOR EDUCATION CENTRE OPERATIONS,AMAZON  MKTPLCE EU-UK,24.97,EQUIPMENT,BOOK STORES
02/02/2015,http://opendatacommunities.org/id/county-council/surrey,Surrey,http://id.esd.org.uk/service/1465,Council expenditure,12/10/2014,FAIRCROFT COMMUNITY HOME,ARGOS LTD,199.99,EQUIPMENT,DISCOUNT STORES
02/02/2015,http://opendatacommunities.org/id/county-council/surrey,Surrey,http://id.esd.org.uk/service/1465,Council expenditure,12/10/2014,CENTRAL COMMS - PUBLIC HEALTH CAMPAIGNS,FACEBK  HYHKX6S9K2,49.07,PUBLICITY,ADVERTISING SERVICES
02/02/2015,http://opendatacommunities.org/id/county-council/surrey,Surrey,http://id.esd.org.uk/service/1465,Council expenditure,12/10/2014,CENTRAL COMMS - PUBLIC HEALTH CAMPAIGNS,FACEBOOK 44ACX6E2S2,39.01,PUBLICITY,ADVERTISING SERVICES
02/02/2015,http://opendatacommunities.org/id/county-council/surrey,Surrey,http://id.esd.org.uk/service/1465,Council expenditure,12/10/2014,OUTDOOR EDUCATION CENTRE OPERATIONS,FW EVANS CYCLES,22.49,EQUIPMENT,BICYCLE SHOPS-SALES AND SERVICE
02/02/2015,http://opendatacommunities.org/id/county-council/surrey,Surrey,http://id.esd.org.uk/service/1465,Council expenditure,12/10/2014,FAIRCROFT COMMUNITY HOME,ROKERS LTD,10.50,"CLOTHING, UNIFORM AND LAUNDRY",PET SHOPS - PET FOODS AND SUPPLIES
02/02/2015,http://opendatacommunities.org/id/county-council/surrey,Surrey,http://id.esd.org.uk/service/1465,Council expenditure,12/10/2014,FAIRCROFT COMMUNITY HOME,CLOTHING (64.86%),18.00,"CLOTHING, UNIFORM AND LAUNDRY","GROCERY STORES, SUPERMARKETS"
02/02/2015,http://opendatacommunities.org/id/county-council/surrey,Surrey,http://id.esd.org.uk/service/1465,Council expenditure,12/10/2014,FAIRCROFT COMMUNITY HOME,EQUIPMENT (35.14%),9.75,EQUIPMENT,"GROCERY STORES, SUPERMARKETS"
02/02/2015,http://opendatacommunities.org/id/county-council/surrey,Surrey,http://id.esd.org.uk/service/1465,Council expenditure,12/10/2014,ARUNDEL,WILKO RETAIL LIMIT,62.44,EQUIPMENT,HOUSEHOLD APPLIANCE STORES
02/02/2015,http://opendatacommunities.org/id/county-council/surrey,Surrey,http://id.esd.org.uk/service/1465,Council expenditure,13/10/2014,COBGATES RESIDENTIAL CARE,PRIMARK STORES 657,110.00,EQUIPMENT,FAMILY CLOTHING STORES
02/02/2015,http://opendatacommunities.org/id/county-council/surrey,Surrey,http://id.esd.org.uk/service/1465,Council expenditure,13/10/2014,SFRS TRANSPORT,1&1 INTERNET LIMITED,41.99,COMPUTER SOFTWARE,COMPUTER NETWORK/INFORMATION SERVICES
02/02/2015,http://opendatacommunities.org/id/county-council/surrey,Surrey,http://id.esd.org.uk/service/1465,Council expenditure,13/10/2014,BURBANK COMMUNITY HOME,WOKING BOROUGH COUNCIL,2.60,VEHICLE RUNNING COSTS,AUTOMOBILE PARKING LOTS AND GARAGES
02/02/2015,http://opendatacommunities.org/id/county-council/surrey,Surrey,http://id.esd.org.uk/service/1465,Council expenditure,13/10/2014,RUTH HOUSE,WWW.VETUK.CO.UK,25.26,EQUIPMENT,VETERINARY SERVICES
02/02/2015,http://opendatacommunities.org/id/county-council/surrey,Surrey,http://id.esd.org.uk/service/1465,Council expenditure,13/10/2014,FAIRCROFT COMMUNITY HOME,TESCO STORE 2160,257.60,PURCHASE OF FOOD (RAW MATERIALS),"GROCERY STORES, SUPERMARKETS"
02/02/2015,http://opendatacommunities.org/id/county-council/surrey,Surrey,http://id.esd.org.uk/service/1465,Council expenditure,13/10/2014,HOPE SERVICE EAST,COSTA COFFEE,2.70,REFRESHMENT COSTS,"EATING PLACES, RESTAURANTS"
02/02/2015,http://opendatacommunities.org/id/county-council/surrey,Surrey,http://id.esd.org.uk/service/1465,Council expenditure,13/10/2014,HILLSIDE,POUNDLAND LTD 1357,4.00,PURCHASE OF FOOD (RAW MATERIALS),DISCOUNT STORES
02/02/2015,http://opendatacommunities.org/id/county-council/surrey,Surrey,http://id.esd.org.uk/service/1465,Council expenditure,13/10/2014,ASSET PLANNING - OPERATIONS,SAINSBURYS SACAT 0652,2.96,REFRESHMENT COSTS,"GROCERY STORES, SUPERMARKETS"
02/02/2015,http://opendatacommunities.org/id/county-council/surrey,Surrey,http://id.esd.org.uk/service/1465,Council expenditure,13/10/2014,PROPERTY OPERATIONS TEAM,HOMEBASE LTD 067,29.99,PURCHASE OF BUILDING MATERIALS,"BUILDING MATERIALS, LUMBER STORES"
02/02/2015,http://opendatacommunities.org/id/county-council/surrey,Surrey,http://id.esd.org.uk/service/1465,Council expenditure,13/10/2014,ROW VOLUNTEERS EAST,TESCO STORES 2683,10.62,REFRESHMENT COSTS,"GROCERY STORES, SUPERMARKETS"
02/02/2015,http://opendatacommunities.org/id/county-council/surrey,Surrey,http://id.esd.org.uk/service/1465,Council expenditure,13/10/2014,PROPERTY OPERATIONS TEAM,WICKES,30.48,ADAPTATIONS,HOME SUPPLY WAREHOUSE STORES
02/02/2015,http://opendatacommunities.org/id/county-council/surrey,Surrey,http://id.esd.org.uk/service/1465,Council expenditure,13/10/2014,MENTAL HLTH CAPACITY ACT GRT EXPENDITURE,BT BILL PAYMENT 1,300.00,DAY TO DAY MAINTENANCE,TELECOMMUNICATION EQUIPMENT INCL TELEPHONE SALES
02/02/2015,http://opendatacommunities.org/id/county-council/surrey,Surrey,http://id.esd.org.uk/service/1465,Council expenditure,13/10/2014,SERVICE DELIVERY RESOURCES,PARMA INDUSTRIES,48.00,CLEANING MATERIALS,MOTOR VEHICLE SUPPLIES AND NEW PARTS
02/02/2015,http://opendatacommunities.org/id/county-council/surrey,Surrey,http://id.esd.org.uk/service/1465,Council expenditure,13/10/2014,PROPERTY OPERATIONS TEAM,HOMEBASE LTD 067,29.98,PURCHASE OF BUILDING MATERIALS,"BUILDING MATERIALS, LUMBER STORES"
02/02/2015,http://opendatacommunities.org/id/county-council/surrey,Surrey,http://id.esd.org.uk/service/1465,Council expenditure,13/10/2014,WORKING TOGETHER,AMAZON  MKTPLCE EU-UK,11.16,EQUIPMENT,BOOK STORES
02/02/2015,http://opendatacommunities.org/id/county-council/surrey,Surrey,http://id.esd.org.uk/service/1465,Council expenditure,13/10/2014,HOPE SERVICE WEST,SAINSBURYS TO YOU 0686,-3.99,PURCHASE OF FOOD (RAW MATERIALS),"GROCERY STORES, SUPERMARKETS"
02/02/2015,http://opendatacommunities.org/id/county-council/surrey,Surrey,http://id.esd.org.uk/service/1465,Council expenditure,13/10/2014,HILLSIDE,OAKFURNITURELAND.C,299.88,FURNITURE,"EQUIP, FURNITURE, HOME FURNSHNGS STRS (EXCPT APPL)"
02/02/2015,http://opendatacommunities.org/id/county-council/surrey,Surrey,http://id.esd.org.uk/service/1465,Council expenditure,13/10/2014,PROPERTY OPERATIONS TEAM,JCM LOCKSMITHS LTD,37.94,PURCHASE OF BUILDING MATERIALS,HARDWARE STORES
02/02/2015,http://opendatacommunities.org/id/county-council/surrey,Surrey,http://id.esd.org.uk/service/1465,Council expenditure,13/10/2014,MAYFORD CENTRE - BUSINESS,GLASDON U K LTD,660.53,CLEANING AND DOMESTIC SUPPLIES,BUSINESS SERVICES-NOT ELSEWHERE CLASSIFIED
02/02/2015,http://opendatacommunities.org/id/county-council/surrey,Surrey,http://id.esd.org.uk/service/1465,Council expenditure,13/10/2014,NIL RECOURSE PUBLIC FNDG 18+ ASYLUM SKR,TRAVELODGE WEBSITE,223.00,3RD PARTY PAYMENTS PRIVATE INDIV,TRAVELODGE
02/02/2015,http://opendatacommunities.org/id/county-council/surrey,Surrey,http://id.esd.org.uk/service/1465,Council expenditure,13/10/2014,MALLOW CRESCENT,ON LINE GROCERY SHOPPING (5.08%),4.00,PURCHASE OF FOOD (RAW MATERIALS),"GROCERY STORES, SUPERMARKETS"
02/02/2015,http://opendatacommunities.org/id/county-council/surrey,Surrey,http://id.esd.org.uk/service/1465,Council expenditure,13/10/2014,MALLOW CRESCENT,ON LINE GROCERY SHOPPING (94.92%),74.73,PURCHASE OF FOOD (RAW MATERIALS),"GROCERY STORES, SUPERMARKETS"
02/02/2015,http://opendatacommunities.org/id/county-council/surrey,Surrey,http://id.esd.org.uk/service/1465,Council expenditure,13/10/2014,IMPROVING OUTCOMES - BABY ROOM,AMAZON  MKTPLCE EU-UK,94.56,STATIONERY,BOOK STORES
02/02/2015,http://opendatacommunities.org/id/county-council/surrey,Surrey,http://id.esd.org.uk/service/1465,Council expenditure,13/10/2014,SFRS TRANSPORT,INDESPENSION,2.52,VEHICLE REPAIRS AND MAINTENANCE,"CAMPER DEALERS, RECREATIONAL AND UTILITY TRAILERS"
02/02/2015,http://opendatacommunities.org/id/county-council/surrey,Surrey,http://id.esd.org.uk/service/1465,Council expenditure,13/10/2014,PROPERTY OPERATIONS TEAM,HOMEBASE LTD 067,-3.00,PURCHASE OF BUILDING MATERIALS,"BUILDING MATERIALS, LUMBER STORES"
02/02/2015,http://opendatacommunities.org/id/county-council/surrey,Surrey,http://id.esd.org.uk/service/1465,Council expenditure,13/10/2014,SFRS TRANSPORT,WW.HI-TEC.COM,110.23,"CLOTHING, UNIFORM AND LAUNDRY",SPORTING GOODS STORES
02/02/2015,http://opendatacommunities.org/id/county-council/surrey,Surrey,http://id.esd.org.uk/service/1465,Council expenditure,13/10/2014,TRAINING LEGAL SERVICES,MBL SEMINARS,600.00,TRAINING EXPENSES EXTERNAL GENERAL,SCHOOLS & EDUCATIONAL SVC-NOT ELSEWHERE CLASSIFIED
02/02/2015,http://opendatacommunities.org/id/county-council/surrey,Surrey,http://id.esd.org.uk/service/1465,Council expenditure,13/10/2014,HOPE SERVICE EAST,WWW.PENNINETEANDCOFFEE,60.50,REFRESHMENT COSTS,"GROCERY STORES, SUPERMARKETS"
02/02/2015,http://opendatacommunities.org/id/county-council/surrey,Surrey,http://id.esd.org.uk/service/1465,Council expenditure,13/10/2014,DORMERS DAY CARE,CARGO,64.50,EQUIPMENT,"EQUIP, FURNITURE, HOME FURNSHNGS STRS (EXCPT APPL)"
02/02/2015,http://opendatacommunities.org/id/county-council/surrey,Surrey,http://id.esd.org.uk/service/1465,Council expenditure,13/10/2014,HOPE SERVICE WEST,SAINSBURYS SACAT(4409),2.45,NEWSPAPER AND PERIODICALS,"GROCERY STORES, SUPERMARKETS"
02/02/2015,http://opendatacommunities.org/id/county-council/surrey,Surrey,http://id.esd.org.uk/service/1465,Council expenditure,13/10/2014,HOPE SERVICE WEST,SAINSBURYS SACAT 0652,12.61,PURCHASE OF FOOD (RAW MATERIALS),"GROCERY STORES, SUPERMARKETS"
02/02/2015,http://opendatacommunities.org/id/county-council/surrey,Surrey,http://id.esd.org.uk/service/1465,Council expenditure,13/10/2014,HOPE SERVICE EAST,SAINSBURYS 0683,41.57,PURCHASE OF FOOD (RAW MATERIALS),"GROCERY STORES, SUPERMARKETS"
02/02/2015,http://opendatacommunities.org/id/county-council/surrey,Surrey,http://id.esd.org.uk/service/1465,Council expenditure,13/10/2014,PROPERTY OPERATIONS TEAM,TOOLSTATION LTD,10.92,PURCHASE OF BUILDING MATERIALS,HARDWARE STORES
02/02/2015,http://opendatacommunities.org/id/county-council/surrey,Surrey,http://id.esd.org.uk/service/1465,Council expenditure,13/10/2014,HILLSIDE,WWW.CASHS.CO.UK,10.20,"CLOTHING, UNIFORM AND LAUNDRY",MEN'S AND BOY'S CLOTHING AND ACCESSORIES STORES
02/02/2015,http://opendatacommunities.org/id/county-council/surrey,Surrey,http://id.esd.org.uk/service/1465,Council expenditure,13/10/2014,CENTRAL COMMS - PUBLIC HEALTH CAMPAIGNS,FACEBK  F5QHU6N9K2,48.62,PUBLICITY,ADVERTISING SERVICES
02/02/2015,http://opendatacommunities.org/id/county-council/surrey,Surrey,http://id.esd.org.uk/service/1465,Council expenditure,13/10/2014,HOPE SERVICE WEST,SAINSBURYS TO YOU 0686,72.74,PURCHASE OF FOOD (RAW MATERIALS),"GROCERY STORES, SUPERMARKETS"
02/02/2015,http://opendatacommunities.org/id/county-council/surrey,Surrey,http://id.esd.org.uk/service/1465,Council expenditure,13/10/2014,ENSURING SUFFICIENCY - CHILDMINDING,WWW.BAKERROSS.CO.UK,123.81,STATIONERY,"ARTIST SUPPLY STORES, CRAFT SHOPS"
02/02/2015,http://opendatacommunities.org/id/county-council/surrey,Surrey,http://id.esd.org.uk/service/1465,Council expenditure,13/10/2014,ASSET PLANNING - OPERATIONS,POST OFFICE COUNTER,20.90,POSTAGE AND COURIER CHARGES,POSTAL SERVICES-GOVERNMENT ONLY
02/02/2015,http://opendatacommunities.org/id/county-council/surrey,Surrey,http://id.esd.org.uk/service/1465,Council expenditure,13/10/2014,LIBERTAS COMMUNITY HOME,SAINSBURYS 0652,164.53,PURCHASE OF FOOD (RAW MATERIALS),"GROCERY STORES, SUPERMARKETS"
02/02/2015,http://opendatacommunities.org/id/county-council/surrey,Surrey,http://id.esd.org.uk/service/1465,Council expenditure,13/10/2014,TARGETED INTERVENTION,FREEDOM LEISURE,9.30,EDUC VISITS/HOLS/CAMPS/TOYS,GOVERNMENT SERVICES-NOT ELSEWHERE CLASSIFIED
02/02/2015,http://opendatacommunities.org/id/county-council/surrey,Surrey,http://id.esd.org.uk/service/1465,Council expenditure,13/10/2014,SAP COMPETENCY CENTRE,VIRGINTRAINS.CO.UK,143.10,TRAINING EXPENSES EXTERNAL GENERAL,PASSENGER RAILWAYS
02/02/2015,http://opendatacommunities.org/id/county-council/surrey,Surrey,http://id.esd.org.uk/service/1465,Council expenditure,13/10/2014,CENTRAL COMMS - PUBLIC HEALTH CAMPAIGNS,GOOGLE  ADWS2060179426,500.00,PUBLICITY,DIRECT MARKETING-CONTINUITY/SUBSCRIPTION MERCHANTS
02/02/2015,http://opendatacommunities.org/id/county-council/surrey,Surrey,http://id.esd.org.uk/service/1465,Council expenditure,13/10/2014,HILLSIDE,TESCO STORE 3149,102.82,PURCHASE OF FOOD (RAW MATERIALS),"GROCERY STORES, SUPERMARKETS"
02/02/2015,http://opendatacommunities.org/id/county-council/surrey,Surrey,http://id.esd.org.uk/service/1465,Council expenditure,13/10/2014,HILLSIDE,THE RANGE - ALDERSHOT,61.54,EQUIPMENT,MISCELLANEOUS GENERAL MERCHANDISE
02/02/2015,http://opendatacommunities.org/id/county-council/surrey,Surrey,http://id.esd.org.uk/service/1465,Council expenditure,13/10/2014,LONGFIELD RESIDENTIAL CARE,CURRYS ONLINE,249.00,EQUIPMENT,ELECTRONIC SALES
02/02/2015,http://opendatacommunities.org/id/county-council/surrey,Surrey,http://id.esd.org.uk/service/1465,Council expenditure,13/10/2014,BURBANK COMMUNITY HOME,MCDONALDS,2.58,REFRESHMENT COSTS,FAST FOOD RESTAURANTS
02/02/2015,http://opendatacommunities.org/id/county-council/surrey,Surrey,http://id.esd.org.uk/service/1465,Council expenditure,13/10/2014,EDUC CAT SOUTH EAST DISTRICT 24 OVERHDS,AO RETAIL LIMITED,253.97,EQUIPMENT,HOUSEHOLD APPLIANCE STORES
02/02/2015,http://opendatacommunities.org/id/county-council/surrey,Surrey,http://id.esd.org.uk/service/1465,Council expenditure,13/10/2014,HILLSIDE,SAINSBURYS 0784,26.10,PURCHASE OF FOOD (RAW MATERIALS),"GROCERY STORES, SUPERMARKETS"
02/02/2015,http://opendatacommunities.org/id/county-council/surrey,Surrey,http://id.esd.org.uk/service/1465,Council expenditure,13/10/2014,BROOMFIELD (LIBERTAS),EE LIMITED R483,12.49,3RD PARTY PAYMENTS PRIVATE INDIV,TELECOMMUNICATION EQUIPMENT INCL TELEPHONE SALES
02/02/2015,http://opendatacommunities.org/id/county-council/surrey,Surrey,http://id.esd.org.uk/service/1465,Council expenditure,13/10/2014,ROW VOLUNTEERS WEST,HONEY BROTHERS LTD,28.80,FEES,BUSINESS SERVICES-NOT ELSEWHERE CLASSIFIED
02/02/2015,http://opendatacommunities.org/id/county-council/surrey,Surrey,http://id.esd.org.uk/service/1465,Council expenditure,13/10/2014,SURREY ARTS GENERAL,BOOSEY AND HAWKES,20.98,CURRIC BOOKS,"MUSIC STORES-INSTRUMENTS, PIANOS, SHEET MUSIC"
02/02/2015,http://opendatacommunities.org/id/county-council/surrey,Surrey,http://id.esd.org.uk/service/1465,Council expenditure,13/10/2014,RUTH HOUSE,BT BILL PAYMENT 2,56.26,TELECOMMUNICATION CHARGES,TELECOMMUNICATION EQUIPMENT INCL TELEPHONE SALES
02/02/2015,http://opendatacommunities.org/id/county-council/surrey,Surrey,http://id.esd.org.uk/service/1465,Council expenditure,13/10/2014,HOPE SERVICE WEST,STARBUCKS,6.70,REFRESHMENT COSTS,"EATING PLACES, RESTAURANTS"
02/02/2015,http://opendatacommunities.org/id/county-council/surrey,Surrey,http://id.esd.org.uk/service/1465,Council expenditure,13/10/2014,CRITICAL ENVIRONMENT,AMAZON  MKTPLCE EU-UK,71.18,COMPUTER HARDWARE,BOOK STORES
02/02/2015,http://opendatacommunities.org/id/county-council/surrey,Surrey,http://id.esd.org.uk/service/1465,Council expenditure,13/10/2014,BROOMFIELD (LIBERTAS),EE LIMITED R483,12.49,3RD PARTY PAYMENTS PRIVATE INDIV,TELECOMMUNICATION EQUIPMENT INCL TELEPHONE SALES
02/02/2015,http://opendatacommunities.org/id/county-council/surrey,Surrey,http://id.esd.org.uk/service/1465,Council expenditure,13/10/2014,BURBANK COMMUNITY HOME,MCDONALDS,8.58,REFRESHMENT COSTS,FAST FOOD RESTAURANTS
02/02/2015,http://opendatacommunities.org/id/county-council/surrey,Surrey,http://id.esd.org.uk/service/1465,Council expenditure,13/10/2014,ENSURING SUFFICIENCY - CHILDMINDING,AMAZON  MKTPLCE EU-UK,94.56,EDUC VISITS/HOLS/CAMPS/TOYS,BOOK STORES
02/02/2015,http://opendatacommunities.org/id/county-council/surrey,Surrey,http://id.esd.org.uk/service/1465,Council expenditure,13/10/2014,HOPE SERVICE - WEST,AMAZON  MKTPLCE EU-UK,16.14,COMPUTER CONSUMABLES,BOOK STORES
02/02/2015,http://opendatacommunities.org/id/county-council/surrey,Surrey,http://id.esd.org.uk/service/1465,Council expenditure,13/10/2014,ARUNDEL,ASDA SUPERSTORE,45.00,EQUIPMENT,"GROCERY STORES, SUPERMARKETS"
02/02/2015,http://opendatacommunities.org/id/county-council/surrey,Surrey,http://id.esd.org.uk/service/1465,Council expenditure,13/10/2014,LEAVING CARE PACKAGES,TRAVELODGE WEBSITE,209.00,3RD PARTY PAYMENTS PRIVATE INDIV,TRAVELODGE
02/02/2015,http://opendatacommunities.org/id/county-council/surrey,Surrey,http://id.esd.org.uk/service/1465,Council expenditure,13/10/2014,ARUNDEL,IKEA,183.50,EQUIPMENT,MISCELLANEOUS HOUSE FURNISHING SPECIALTY SHOPS
02/02/2015,http://opendatacommunities.org/id/county-council/surrey,Surrey,http://id.esd.org.uk/service/1465,Council expenditure,13/10/2014,ACL CENTRAL EXPENDITURE,POST OFFICE COUNTER,75.95,POSTAGE AND COURIER CHARGES,POSTAL SERVICES-GOVERNMENT ONLY
02/02/2015,http://opendatacommunities.org/id/county-council/surrey,Surrey,http://id.esd.org.uk/service/1465,Council expenditure,13/10/2014,TRANSPORT,MR SNOB (REIGATE),5.50,DAY TO DAY MAINTENANCE,"HAT CLEANING SHOPS, SHOE REPAIR SHOPS, SHOE SHINE"
02/02/2015,http://opendatacommunities.org/id/county-council/surrey,Surrey,http://id.esd.org.uk/service/1465,Council expenditure,14/10/2014,HOPE SERVICE WEST,H&M ONLINE,39.81,CURRICULUM EQUIPMENT AND FURNITURE,MEN'S AND WOMEN'S CLOTHING STORES
02/02/2015,http://opendatacommunities.org/id/county-council/surrey,Surrey,http://id.esd.org.uk/service/1465,Council expenditure,14/10/2014,TS SERVICE MANAGEMENT,PREMIER INN44521000,96.75,SUBSISTENCE AND CONFERENCE EXPENSES,PREMIER INN
02/02/2015,http://opendatacommunities.org/id/county-council/surrey,Surrey,http://id.esd.org.uk/service/1465,Council expenditure,14/10/2014,CHEYNE WALK COMMUNITY HOME,BUDGENS,2.06,PURCHASE OF FOOD (RAW MATERIALS),"GROCERY STORES, SUPERMARKETS"
02/02/2015,http://opendatacommunities.org/id/county-council/surrey,Surrey,http://id.esd.org.uk/service/1465,Council expenditure,14/10/2014,TRAINING LEGAL SERVICES,MBL SEMINARS,600.00,TRAINING EXPENSES EXTERNAL GENERAL,SCHOOLS & EDUCATIONAL SVC-NOT ELSEWHERE CLASSIFIED
02/02/2015,http://opendatacommunities.org/id/county-council/surrey,Surrey,http://id.esd.org.uk/service/1465,Council expenditure,14/10/2014,COUNTRYSIDE HERITAGE SKILLS PROJECT,MATTHEW PRICE,777.65,TRAINING EXPENSES EXTERNAL GENERAL,PROFESSIONAL SERVICES-NOT ELSEWHERE CLASSIFIED
02/02/2015,http://opendatacommunities.org/id/county-council/surrey,Surrey,http://id.esd.org.uk/service/1465,Council expenditure,14/10/2014,SURREY ARTS GENERAL,SALVATIONIST PUBLISHIN,54.00,CURRIC BOOKS,VARIETY STORES
02/02/2015,http://opendatacommunities.org/id/county-council/surrey,Surrey,http://id.esd.org.uk/service/1465,Council expenditure,14/10/2014,EDUC CAT SOUTH WEST DISTRICT 28 OVERHDS,AO RETAIL LIMITED,268.99,EQUIPMENT,HOUSEHOLD APPLIANCE STORES
02/02/2015,http://opendatacommunities.org/id/county-council/surrey,Surrey,http://id.esd.org.uk/service/1465,Council expenditure,14/10/2014,SE CARE - LAC,SURREY CC CARD PAY,11.00,FEES,COMPUTER NETWORK/INFORMATION SERVICES
02/02/2015,http://opendatacommunities.org/id/county-council/surrey,Surrey,http://id.esd.org.uk/service/1465,Council expenditure,14/10/2014,TARGETED INTERVENTION,MCDONALDS REST,7.46,EDUC VISITS/HOLS/CAMPS/TOYS,FAST FOOD RESTAURANTS
02/02/2015,http://opendatacommunities.org/id/county-council/surrey,Surrey,http://id.esd.org.uk/service/1465,Council expenditure,14/10/2014,HOLLAND CLOSE SATELLITE 1,TESCO-STORES 6647,136.13,PURCHASE OF FOOD (RAW MATERIALS),"GROCERY STORES, SUPERMARKETS"
02/02/2015,http://opendatacommunities.org/id/county-council/surrey,Surrey,http://id.esd.org.uk/service/1465,Council expenditure,14/10/2014,SECTOR MANAGER,ROYAL MAIL,"1,447.20",ITEMS PURCHASED FOR RE-SALE,POSTAL SERVICES-GOVERNMENT ONLY
02/02/2015,http://opendatacommunities.org/id/county-council/surrey,Surrey,http://id.esd.org.uk/service/1465,Council expenditure,14/10/2014,TARGETED INTERVENTION,MOTORCARE (WOKING) LTD,200.00,VEHICLE REPAIRS AND MAINTENANCE,AUTOMOTIVE SERVICE SHOPS
02/02/2015,http://opendatacommunities.org/id/county-council/surrey,Surrey,http://id.esd.org.uk/service/1465,Council expenditure,14/10/2014,CENTRAL COMMS - PUBLIC HEALTH CAMPAIGNS,FACEBK  UU2K27W9K2,39.31,PUBLICITY,ADVERTISING SERVICES
02/02/2015,http://opendatacommunities.org/id/county-council/surrey,Surrey,http://id.esd.org.uk/service/1465,Council expenditure,14/10/2014,ACL CENTRAL EXPENDITURE,AMAZON EU,58.77,EQUIPMENT,DIRECT MARKETING-OTHER DIRECT MARKETERS/NOT ELSEW.
02/02/2015,http://opendatacommunities.org/id/county-council/surrey,Surrey,http://id.esd.org.uk/service/1465,Council expenditure,14/10/2014,HILLSIDE,TESCO STORE 3149,8.43,PURCHASE OF FOOD (RAW MATERIALS),"GROCERY STORES, SUPERMARKETS"
02/02/2015,http://opendatacommunities.org/id/county-council/surrey,Surrey,http://id.esd.org.uk/service/1465,Council expenditure,14/10/2014,SURREY TRAVEL SMART - LSTF,WWW.TRANSPORTXTRA.COM,134.40,SUBSISTENCE AND CONFERENCE EXPENSES,BUSINESS SERVICES-NOT ELSEWHERE CLASSIFIED
02/02/2015,http://opendatacommunities.org/id/county-council/surrey,Surrey,http://id.esd.org.uk/service/1465,Council expenditure,14/10/2014,SFRS TRANSPORT,NATIONALOFFICEFURN,270.46,FURNITURE,"OFFICE, SCHOOL SUPPLY, AND STATIONERY STORES"
02/02/2015,http://opendatacommunities.org/id/county-council/surrey,Surrey,http://id.esd.org.uk/service/1465,Council expenditure,14/10/2014,HERITAGE PUBLIC SERVICE,W M MORRISONS,26.05,REFRESHMENT COSTS,"GROCERY STORES, SUPERMARKETS"
02/02/2015,http://opendatacommunities.org/id/county-council/surrey,Surrey,http://id.esd.org.uk/service/1465,Council expenditure,14/10/2014,COMMUNITY PARTNERSHIP,AMAZON  MKTPLCE EU-UK,2.40,EQUIPMENT,BOOK STORES
02/02/2015,http://opendatacommunities.org/id/county-council/surrey,Surrey,http://id.esd.org.uk/service/1465,Council expenditure,14/10/2014,HILLSIDE,THE RANGE - ALDERSHOT,39.98,EQUIPMENT,MISCELLANEOUS GENERAL MERCHANDISE
02/02/2015,http://opendatacommunities.org/id/county-council/surrey,Surrey,http://id.esd.org.uk/service/1465,Council expenditure,14/10/2014,HERITAGE ENTERPRISE (SCAU),ENGLISH HERITAGE,66.00,FEES,TOURIST ATTRACTIONS AND EXHIBITS
02/02/2015,http://opendatacommunities.org/id/county-council/surrey,Surrey,http://id.esd.org.uk/service/1465,Council expenditure,14/10/2014,COUNTRYSIDE HERITAGE SKILLS PROJECT,MATTHEW PRICE,370.80,TRAINING EXPENSES EXTERNAL GENERAL,PROFESSIONAL SERVICES-NOT ELSEWHERE CLASSIFIED
02/02/2015,http://opendatacommunities.org/id/county-council/surrey,Surrey,http://id.esd.org.uk/service/1465,Council expenditure,14/10/2014,TRAINING ENVIRONMENT SERVICES,IWM BUSINESS SERVI,928.80,TRAINING EXPENSES EXTERNAL GENERAL,BUSINESS SERVICES-NOT ELSEWHERE CLASSIFIED
02/02/2015,http://opendatacommunities.org/id/county-council/surrey,Surrey,http://id.esd.org.uk/service/1465,Council expenditure,14/10/2014,SURREY ARTS GENERAL,STUDIO MUSIC LTD,36.90,CURRIC BOOKS,"MUSIC STORES-INSTRUMENTS, PIANOS, SHEET MUSIC"
02/02/2015,http://opendatacommunities.org/id/county-council/surrey,Surrey,http://id.esd.org.uk/service/1465,Council expenditure,14/10/2014,COMMUNITY PARTNERSHIP,AMAZON  MKTPLCE EU-UK,29.95,EQUIPMENT,BOOK STORES
02/02/2015,http://opendatacommunities.org/id/county-council/surrey,Surrey,http://id.esd.org.uk/service/1465,Council expenditure,14/10/2014,ENSURING SUFFICIENCY - CHILDMINDING,PAYPAL  EJARMANTLTD,248.10,BOOKS,"CONSULTING, MANAGEMENT, AND PUBLIC RELATIONS SVCS"
02/02/2015,http://opendatacommunities.org/id/county-council/surrey,Surrey,http://id.esd.org.uk/service/1465,Council expenditure,14/10/2014,LOWER MOLE COUNTRYSIDE PROJECT,WWW.PAYOCS.CO.UK,70.81,CLEANING AND DOMESTIC SUPPLIES,"CLEANING AND MAINTENANCE, JANITORIAL SERVICES"
02/02/2015,http://opendatacommunities.org/id/county-council/surrey,Surrey,http://id.esd.org.uk/service/1465,Council expenditure,14/10/2014,CHEYNE WALK COMMUNITY HOME,NEW SOUTHERN RAILW,17.10,NON-STAFF RELATED TRANSPORT COSTS,PASSENGER RAILWAYS
02/02/2015,http://opendatacommunities.org/id/county-council/surrey,Surrey,http://id.esd.org.uk/service/1465,Council expenditure,14/10/2014,ENSURING SUFFICIENCY - CHILDMINDING,WWW.AMPULLA.CO.UK,50.72,EDUC VISITS/HOLS/CAMPS/TOYS,INDUSTRIAL SUPPLIES NOT ELSEWHERE CLASSIFIED
02/02/2015,http://opendatacommunities.org/id/county-council/surrey,Surrey,http://id.esd.org.uk/service/1465,Council expenditure,14/10/2014,MEADOWVIEW COMMUNITY HOME,CLEANING MATERIALS (9.44%),12.10,CLEANING MATERIALS,"GROCERY STORES, SUPERMARKETS"
02/02/2015,http://opendatacommunities.org/id/county-council/surrey,Surrey,http://id.esd.org.uk/service/1465,Council expenditure,14/10/2014,MEADOWVIEW COMMUNITY HOME,PROVISIONS (16.07%),20.60,PURCHASE OF FOOD (RAW MATERIALS),"GROCERY STORES, SUPERMARKETS"
02/02/2015,http://opendatacommunities.org/id/county-council/surrey,Surrey,http://id.esd.org.uk/service/1465,Council expenditure,14/10/2014,MEADOWVIEW COMMUNITY HOME,PROVISIONS (74.48%),95.45,PURCHASE OF FOOD (RAW MATERIALS),"GROCERY STORES, SUPERMARKETS"
02/02/2015,http://opendatacommunities.org/id/county-council/surrey,Surrey,http://id.esd.org.uk/service/1465,Council expenditure,14/10/2014,TRAINING AND DEVELOPMENT,BUXTED INN,137.00,SUBSISTENCE AND CONFERENCE EXPENSES,"EATING PLACES, RESTAURANTS"
02/02/2015,http://opendatacommunities.org/id/county-council/surrey,Surrey,http://id.esd.org.uk/service/1465,Council expenditure,14/10/2014,PERFORMING ARTS LIBRARY,W M MORRISONS,31.75,REFRESHMENT COSTS,"GROCERY STORES, SUPERMARKETS"
02/02/2015,http://opendatacommunities.org/id/county-council/surrey,Surrey,http://id.esd.org.uk/service/1465,Council expenditure,14/10/2014,PROPERTY OPERATIONS TEAM,WICKES,21.98,PURCHASE OF BUILDING MATERIALS,"BUILDING MATERIALS, LUMBER STORES"
02/02/2015,http://opendatacommunities.org/id/county-council/surrey,Surrey,http://id.esd.org.uk/service/1465,Council expenditure,14/10/2014,HILLSIDE,TESCO STORE 3149,23.80,PURCHASE OF FOOD (RAW MATERIALS),"GROCERY STORES, SUPERMARKETS"
02/02/2015,http://opendatacommunities.org/id/county-council/surrey,Surrey,http://id.esd.org.uk/service/1465,Council expenditure,14/10/2014,CHILDRENS RIGHTS TEAM,VISTAPR VISTAPRINT.UK,294.24,PUBLICITY,"COMMERCIAL ART, GRAPHICS, PHOTOGRAPHY"
02/02/2015,http://opendatacommunities.org/id/county-council/surrey,Surrey,http://id.esd.org.uk/service/1465,Council expenditure,14/10/2014,BURBANK COMMUNITY HOME,SAINSBURYS,35.00,PURCHASE OF FOOD (RAW MATERIALS),"GROCERY STORES, SUPERMARKETS"
02/02/2015,http://opendatacommunities.org/id/county-council/surrey,Surrey,http://id.esd.org.uk/service/1465,Council expenditure,14/10/2014,RUTH HOUSE,SPLIT - KITCHEN FOILE AND ETC (15.21%),36.00,EQUIPMENT,"GROCERY STORES, SUPERMARKETS"
02/02/2015,http://opendatacommunities.org/id/county-council/surrey,Surrey,http://id.esd.org.uk/service/1465,Council expenditure,14/10/2014,RUTH HOUSE,SPLIT - FOOD (7.21%),17.06,PURCHASE OF FOOD (RAW MATERIALS),"GROCERY STORES, SUPERMARKETS"
02/02/2015,http://opendatacommunities.org/id/county-council/surrey,Surrey,http://id.esd.org.uk/service/1465,Council expenditure,14/10/2014,RUTH HOUSE,SPLIT - FOOD (77.59%),183.67,PURCHASE OF FOOD (RAW MATERIALS),"GROCERY STORES, SUPERMARKETS"
02/02/2015,http://opendatacommunities.org/id/county-council/surrey,Surrey,http://id.esd.org.uk/service/1465,Council expenditure,14/10/2014,CHEYNE WALK COMMUNITY HOME,WH SMITH,3.39,PURCHASE OF FOOD (RAW MATERIALS),NEWS DEALERS AND NEWSSTANDS
02/02/2015,http://opendatacommunities.org/id/county-council/surrey,Surrey,http://id.esd.org.uk/service/1465,Council expenditure,14/10/2014,ACL CENTRAL EXPENDITURE,CARDINAL EDUCATION,68.34,CURRICULUM CONSUMABLES,"GAME, TOY, AND HOBBY SHOPS"
02/02/2015,http://opendatacommunities.org/id/county-council/surrey,Surrey,http://id.esd.org.uk/service/1465,Council expenditure,14/10/2014,ROW VOLUNTEERS WEST,BRYANT FIXINGS LTD,124.20,FIXTURES AND FITTINGS,MISCELLANEOUS REPAIR SHOPS AND RELATED SERVICES
02/02/2015,http://opendatacommunities.org/id/county-council/surrey,Surrey,http://id.esd.org.uk/service/1465,Council expenditure,14/10/2014,TRAINING PROPERTY,VUE NCS CITB HS&E TEST,17.50,TRAINING EXPENSES EXTERNAL GENERAL,SCHOOLS & EDUCATIONAL SVC-NOT ELSEWHERE CLASSIFIED
02/02/2015,http://opendatacommunities.org/id/county-council/surrey,Surrey,http://id.esd.org.uk/service/1465,Council expenditure,14/10/2014,HILLSIDE,FOOD FOR HILLSIDE (16.69%),10.20,PURCHASE OF FOOD (RAW MATERIALS),"GROCERY STORES, SUPERMARKETS"
02/02/2015,http://opendatacommunities.org/id/county-council/surrey,Surrey,http://id.esd.org.uk/service/1465,Council expenditure,14/10/2014,HILLSIDE,FOOD FOR HILLSIDE (83.31%),50.90,PURCHASE OF FOOD (RAW MATERIALS),"GROCERY STORES, SUPERMARKETS"
02/02/2015,http://opendatacommunities.org/id/county-council/surrey,Surrey,http://id.esd.org.uk/service/1465,Council expenditure,14/10/2014,IMT MANAGEMENT TEAM,AMAZON  MKTPLCE EU-UK,17.95,REFRESHMENT COSTS,BOOK STORES
02/02/2015,http://opendatacommunities.org/id/county-council/surrey,Surrey,http://id.esd.org.uk/service/1465,Council expenditure,14/10/2014,HOLLAND CLOSE SATELLITE 1,J D SPORTS 624,60.00,"CLOTHING, UNIFORM AND LAUNDRY",SPORTING GOODS STORES
02/02/2015,http://opendatacommunities.org/id/county-council/surrey,Surrey,http://id.esd.org.uk/service/1465,Council expenditure,14/10/2014,SURREY HEATH BC OFFICE ACCOMMODATION,TPS (HMRC),109.04,FEES,TAX PAYMENTS
02/02/2015,http://opendatacommunities.org/id/county-council/surrey,Surrey,http://id.esd.org.uk/service/1465,Council expenditure,14/10/2014,OPS-FLEET/WORKSHOPS,BE-GE SEATING UK L,"1,156.18",CE03 CAPITAL VEHICLES AND PLANT,"AUTOMOTIVE PARTS, ACCESSORIES STORES"
02/02/2015,http://opendatacommunities.org/id/county-council/surrey,Surrey,http://id.esd.org.uk/service/1465,Council expenditure,14/10/2014,LEAVING CARE PACKAGES,TRAVELODGE WEBSITE,241.95,3RD PARTY PAYMENTS PRIVATE INDIV,TRAVELODGE
02/02/2015,http://opendatacommunities.org/id/county-council/surrey,Surrey,http://id.esd.org.uk/service/1465,Council expenditure,14/10/2014,HOPE SERVICE WEST,SAINSBURYS SACAT(4409),4.15,PURCHASE OF FOOD (RAW MATERIALS),"GROCERY STORES, SUPERMARKETS"
02/02/2015,http://opendatacommunities.org/id/county-council/surrey,Surrey,http://id.esd.org.uk/service/1465,Council expenditure,14/10/2014,HILLSIDE,SAINSBURYS SACAT 0784,15.75,PURCHASE OF FOOD (RAW MATERIALS),"GROCERY STORES, SUPERMARKETS"
02/02/2015,http://opendatacommunities.org/id/county-council/surrey,Surrey,http://id.esd.org.uk/service/1465,Council expenditure,14/10/2014,TRAINING PROPERTY,NCS VUE CITB HS&E REV,10.95,TRAINING EXPENSES EXTERNAL GENERAL,SCHOOLS & EDUCATIONAL SVC-NOT ELSEWHERE CLASSIFIED
02/02/2015,http://opendatacommunities.org/id/county-council/surrey,Surrey,http://id.esd.org.uk/service/1465,Council expenditure,14/10/2014,HILLSIDE,SAINSBURYS 2174,30.00,"CLOTHING, UNIFORM AND LAUNDRY","GROCERY STORES, SUPERMARKETS"
02/02/2015,http://opendatacommunities.org/id/county-council/surrey,Surrey,http://id.esd.org.uk/service/1465,Council expenditure,14/10/2014,APPLEWOOD,ASDA STORES 7134,142.53,PURCHASE OF FOOD (RAW MATERIALS),"GROCERY STORES, SUPERMARKETS"
02/02/2015,http://opendatacommunities.org/id/county-council/surrey,Surrey,http://id.esd.org.uk/service/1465,Council expenditure,14/10/2014,WALTON-ON-THAMES LIBRARY,AMAZON EU,77.36,EQUIPMENT,DIRECT MARKETING-OTHER DIRECT MARKETERS/NOT ELSEW.
02/02/2015,http://opendatacommunities.org/id/county-council/surrey,Surrey,http://id.esd.org.uk/service/1465,Council expenditure,14/10/2014,TARGETED INTERVENTION,MOTORCARE (WOKING) LTD,84.61,VEHICLE REPAIRS AND MAINTENANCE,AUTOMOTIVE SERVICE SHOPS
02/02/2015,http://opendatacommunities.org/id/county-council/surrey,Surrey,http://id.esd.org.uk/service/1465,Council expenditure,14/10/2014,LEAVING CARE PACKAGES,WWW.PORT.AC.UK,"1,577.84",CURRICULUM CONSUMABLES,SCHOOLS & EDUCATIONAL SVC-NOT ELSEWHERE CLASSIFIED
02/02/2015,http://opendatacommunities.org/id/county-council/surrey,Surrey,http://id.esd.org.uk/service/1465,Council expenditure,14/10/2014,SE EDUCATION PSYCHOLOGISTS,AMAZON  MKTPLCE EU-UK,47.05,BOOKS,BOOK STORES
02/02/2015,http://opendatacommunities.org/id/county-council/surrey,Surrey,http://id.esd.org.uk/service/1465,Council expenditure,14/10/2014,CHEYNE WALK COMMUNITY HOME,MADEIRA,33.61,PURCHASE OF FOOD (RAW MATERIALS),"EATING PLACES, RESTAURANTS"
02/02/2015,http://opendatacommunities.org/id/county-council/surrey,Surrey,http://id.esd.org.uk/service/1465,Council expenditure,14/10/2014,"NW REF, ASS & INT SERVICE - HUB 1",TRAVELODGE WEBSITE,78.45,OTHER COMMUNITY CARE PRIV,TRAVELODGE
02/02/2015,http://opendatacommunities.org/id/county-council/surrey,Surrey,http://id.esd.org.uk/service/1465,Council expenditure,14/10/2014,HILLSIDE,ACTIVITYTOSHARE,252.35,EDUC VISITS/HOLS/CAMPS/TOYS,DENTAL/LAB/MED/OPHTHALMIC HOSP EQUIP & SUPPLIES
02/02/2015,http://opendatacommunities.org/id/county-council/surrey,Surrey,http://id.esd.org.uk/service/1465,Council expenditure,14/10/2014,NORTH WEST AREA TEAM,AMAZON EU,55.25,BOOKS,DIRECT MARKETING-OTHER DIRECT MARKETERS/NOT ELSEW.
02/02/2015,http://opendatacommunities.org/id/county-council/surrey,Surrey,http://id.esd.org.uk/service/1465,Council expenditure,15/10/2014,ENSEMBLES,TICKETS 08712 301551,700.00,EQUIPMENT,"THEATRICAL PRODUCERS(EXCL MOTION PIX),TICKET AGNCY"
02/02/2015,http://opendatacommunities.org/id/county-council/surrey,Surrey,http://id.esd.org.uk/service/1465,Council expenditure,15/10/2014,PE/CDT MAINTENANCE OVERHEADS,WWW.ARCO.CO.UK,46.03,EQUIPMENT,INDUSTRIAL SUPPLIES NOT ELSEWHERE CLASSIFIED
02/02/2015,http://opendatacommunities.org/id/county-council/surrey,Surrey,http://id.esd.org.uk/service/1465,Council expenditure,15/10/2014,ARUNDEL,FOOD FOR SERVICE USERS (94.66%),124.11,REFRESHMENT COSTS,"GROCERY STORES, SUPERMARKETS"
02/02/2015,http://opendatacommunities.org/id/county-council/surrey,Surrey,http://id.esd.org.uk/service/1465,Council expenditure,15/10/2014,ARUNDEL,FOOD FOR SERVICE USERS (5.34%),7.00,REFRESHMENT COSTS,"GROCERY STORES, SUPERMARKETS"
02/02/2015,http://opendatacommunities.org/id/county-council/surrey,Surrey,http://id.esd.org.uk/service/1465,Council expenditure,15/10/2014,HILLSIDE,CARGO D2,179.00,EQUIPMENT,"EQUIP, FURNITURE, HOME FURNSHNGS STRS (EXCPT APPL)"
02/02/2015,http://opendatacommunities.org/id/county-council/surrey,Surrey,http://id.esd.org.uk/service/1465,Council expenditure,15/10/2014,HOPE SERVICE EAST,SAINSBURYS TO YOU 0683,49.03,PURCHASE OF FOOD (RAW MATERIALS),"GROCERY STORES, SUPERMARKETS"
02/02/2015,http://opendatacommunities.org/id/county-council/surrey,Surrey,http://id.esd.org.uk/service/1465,Council expenditure,15/10/2014,CHEYNE WALK COMMUNITY HOME,WAITROSE 233,181.23,PURCHASE OF FOOD (RAW MATERIALS),"GROCERY STORES, SUPERMARKETS"
02/02/2015,http://opendatacommunities.org/id/county-council/surrey,Surrey,http://id.esd.org.uk/service/1465,Council expenditure,15/10/2014,MALLOW CRESCENT,ON LINE GROCERY SHOPPING (13.81%),16.35,PURCHASE OF FOOD (RAW MATERIALS),"GROCERY STORES, SUPERMARKETS"
02/02/2015,http://opendatacommunities.org/id/county-council/surrey,Surrey,http://id.esd.org.uk/service/1465,Council expenditure,15/10/2014,MALLOW CRESCENT,ON LINE GROCERY SHOPPING (86.19%),102.06,PURCHASE OF FOOD (RAW MATERIALS),"GROCERY STORES, SUPERMARKETS"
02/02/2015,http://opendatacommunities.org/id/county-council/surrey,Surrey,http://id.esd.org.uk/service/1465,Council expenditure,15/10/2014,PROPERTY OPERATIONS TEAM,DW BURNS & PARTNER,5.74,PURCHASE OF BUILDING MATERIALS,"BUILDING MATERIALS, LUMBER STORES"
02/02/2015,http://opendatacommunities.org/id/county-council/surrey,Surrey,http://id.esd.org.uk/service/1465,Council expenditure,15/10/2014,CHEYNE WALK COMMUNITY HOME,WWW.MCMEXPOGROUP.COM,40.00,EDUC VISITS/HOLS/CAMPS/TOYS,MISCELLANEOUS AND SPECIALTY RETAIL STORES
02/02/2015,http://opendatacommunities.org/id/county-council/surrey,Surrey,http://id.esd.org.uk/service/1465,Council expenditure,15/10/2014,CHILDRENS RIGHTS TEAM,AMAZON  MKTPLCE EU-UK,67.35,STATIONERY,BOOK STORES
02/02/2015,http://opendatacommunities.org/id/county-council/surrey,Surrey,http://id.esd.org.uk/service/1465,Council expenditure,15/10/2014,HILLSIDE,ARGOS LTD,2.99,EQUIPMENT,DISCOUNT STORES
02/02/2015,http://opendatacommunities.org/id/county-council/surrey,Surrey,http://id.esd.org.uk/service/1465,Council expenditure,15/10/2014,LEAVING CARE PACKAGES,COLWALL PARK HOTEL,180.00,3RD PARTY PAYMENTS PRIVATE INDIV,"LODGING-HOTELS,MOTELS,RESORTS-NOT CLASSIFIED"
02/02/2015,http://opendatacommunities.org/id/county-council/surrey,Surrey,http://id.esd.org.uk/service/1465,Council expenditure,15/10/2014,ENSURING SUFFICIENCY - CHILDMINDING,AMAZON  MKTPLCE EU-UK,7.49,EDUC VISITS/HOLS/CAMPS/TOYS,BOOK STORES
02/02/2015,http://opendatacommunities.org/id/county-council/surrey,Surrey,http://id.esd.org.uk/service/1465,Council expenditure,15/10/2014,TARGETED INTERVENTION,CINEWORLD ALDERSHO,15.00,EDUC VISITS/HOLS/CAMPS/TOYS,"THEATRICAL PRODUCERS(EXCL MOTION PIX),TICKET AGNCY"
02/02/2015,http://opendatacommunities.org/id/county-council/surrey,Surrey,http://id.esd.org.uk/service/1465,Council expenditure,15/10/2014,HILLSIDE,FOOD FOR HILLSIDE (18.15%),9.68,PURCHASE OF FOOD (RAW MATERIALS),"GROCERY STORES, SUPERMARKETS"
02/02/2015,http://opendatacommunities.org/id/county-council/surrey,Surrey,http://id.esd.org.uk/service/1465,Council expenditure,15/10/2014,HILLSIDE,FOOD FOR HILLSIDE (81.85%),43.64,PURCHASE OF FOOD (RAW MATERIALS),"GROCERY STORES, SUPERMARKETS"
02/02/2015,http://opendatacommunities.org/id/county-council/surrey,Surrey,http://id.esd.org.uk/service/1465,Council expenditure,15/10/2014,MALLOW CRESCENT,ACTIVITYTOSHARE,110.65,PUBLICITY,DENTAL/LAB/MED/OPHTHALMIC HOSP EQUIP & SUPPLIES
02/02/2015,http://opendatacommunities.org/id/county-council/surrey,Surrey,http://id.esd.org.uk/service/1465,Council expenditure,15/10/2014,COMMUNICATIONS TEAM,ITUNES.COM/BILL,3.99,SUBSCRIPTIONS,RECORD SHOPS
02/02/2015,http://opendatacommunities.org/id/county-council/surrey,Surrey,http://id.esd.org.uk/service/1465,Council expenditure,15/10/2014,ACL CENTRAL EXPENDITURE,COOKSON PRECIOUS M,46.07,CURRICULUM CONSUMABLES,"PRECIOUS STONES AND METALS, WATCHES AND JEWELRY"
02/02/2015,http://opendatacommunities.org/id/county-council/surrey,Surrey,http://id.esd.org.uk/service/1465,Council expenditure,15/10/2014,ARUNDEL,BLUE BADGE PYMENT MOTO,30.00,FEES,GOVERNMENT SERVICES-NOT ELSEWHERE CLASSIFIED
02/02/2015,http://opendatacommunities.org/id/county-council/surrey,Surrey,http://id.esd.org.uk/service/1465,Council expenditure,15/10/2014,DEVELOPMENT TEAM,AMAZON EU,17.96,EQUIPMENT,DIRECT MARKETING-OTHER DIRECT MARKETERS/NOT ELSEW.
02/02/2015,http://opendatacommunities.org/id/county-council/surrey,Surrey,http://id.esd.org.uk/service/1465,Council expenditure,15/10/2014,NW CP COURT TEAM,AMAZON EU,69.99,EQUIPMENT,DIRECT MARKETING-OTHER DIRECT MARKETERS/NOT ELSEW.
02/02/2015,http://opendatacommunities.org/id/county-council/surrey,Surrey,http://id.esd.org.uk/service/1465,Council expenditure,15/10/2014,HOPE SERVICE WEST,SAINSBURYS SACAT(4409),11.25,PURCHASE OF FOOD (RAW MATERIALS),"GROCERY STORES, SUPERMARKETS"
02/02/2015,http://opendatacommunities.org/id/county-council/surrey,Surrey,http://id.esd.org.uk/service/1465,Council expenditure,15/10/2014,NW CARE - LAC,GRAVITY FORCE LTD,50.00,CHILDREN ACT SEC 17 PAYMENTS,RECREATION SERVICES (NOT ELSEWHERE CLASSIFIED)
02/02/2015,http://opendatacommunities.org/id/county-council/surrey,Surrey,http://id.esd.org.uk/service/1465,Council expenditure,15/10/2014,MALLOW CRESCENT,WWW.NRS.UK.CO.UK,49.75,EQUIPMENT,"HEALTH PRACTITIONERS, MEDICAL SRVCS-NOT ELSEWHERE"
02/02/2015,http://opendatacommunities.org/id/county-council/surrey,Surrey,http://id.esd.org.uk/service/1465,Council expenditure,15/10/2014,OUTDOOR EDUCATION CENTRE ESTATES,B & Q,13.00,DAY TO DAY MAINTENANCE,"BUILDING MATERIALS, LUMBER STORES"
02/02/2015,http://opendatacommunities.org/id/county-council/surrey,Surrey,http://id.esd.org.uk/service/1465,Council expenditure,15/10/2014,SFRS TRANSPORT,AMAZON EU,64.86,COMPUTER CONSUMABLES,DIRECT MARKETING-OTHER DIRECT MARKETERS/NOT ELSEW.
02/02/2015,http://opendatacommunities.org/id/county-council/surrey,Surrey,http://id.esd.org.uk/service/1465,Council expenditure,15/10/2014,COMMUNICATIONS TEAM,INDEPENDENT NS & MD LT,260.00,SUBSCRIPTIONS,"CLUBS-CNTRY,MBRSHIP(ATHLET,REC,SPRTS,PRIVATE GOLF"
02/02/2015,http://opendatacommunities.org/id/county-council/surrey,Surrey,http://id.esd.org.uk/service/1465,Council expenditure,15/10/2014,HOPE SERVICE EAST,HOLLYWOOD BOWL,7.95,EDUC VISITS/HOLS/CAMPS/TOYS,"CLUBS-CNTRY,MBRSHIP(ATHLET,REC,SPRTS,PRIVATE GOLF"
02/02/2015,http://opendatacommunities.org/id/county-council/surrey,Surrey,http://id.esd.org.uk/service/1465,Council expenditure,15/10/2014,MALLOW CRESCENT,FOOD FOR VP MEETING (53.87%),19.15,PURCHASE OF FOOD (RAW MATERIALS),"GROCERY STORES, SUPERMARKETS"
02/02/2015,http://opendatacommunities.org/id/county-council/surrey,Surrey,http://id.esd.org.uk/service/1465,Council expenditure,15/10/2014,MALLOW CRESCENT,FOOS FOR VP MEETING (46.13%),16.40,PURCHASE OF FOOD (RAW MATERIALS),"GROCERY STORES, SUPERMARKETS"
02/02/2015,http://opendatacommunities.org/id/county-council/surrey,Surrey,http://id.esd.org.uk/service/1465,Council expenditure,15/10/2014,PE/CDT MAINTENANCE OVERHEADS,COLCHESTER LATHE SPARE,637.92,EQUIPMENT,"AUTOMOTIVE PARTS, ACCESSORIES STORES"
02/02/2015,http://opendatacommunities.org/id/county-council/surrey,Surrey,http://id.esd.org.uk/service/1465,Council expenditure,15/10/2014,FAIRCROFT COMMUNITY HOME,FOOD (64.28%),76.20,PURCHASE OF FOOD (RAW MATERIALS),"GROCERY STORES, SUPERMARKETS"
02/02/2015,http://opendatacommunities.org/id/county-council/surrey,Surrey,http://id.esd.org.uk/service/1465,Council expenditure,15/10/2014,FAIRCROFT COMMUNITY HOME,CLOTHING (20.25%),24.00,"CLOTHING, UNIFORM AND LAUNDRY","GROCERY STORES, SUPERMARKETS"
02/02/2015,http://opendatacommunities.org/id/county-council/surrey,Surrey,http://id.esd.org.uk/service/1465,Council expenditure,15/10/2014,FAIRCROFT COMMUNITY HOME,EQUIPMENT (15.47%),18.34,EQUIPMENT,"GROCERY STORES, SUPERMARKETS"
02/02/2015,http://opendatacommunities.org/id/county-council/surrey,Surrey,http://id.esd.org.uk/service/1465,Council expenditure,15/10/2014,LOCAL PREVENTION FRAMEWORK SPELTHORNE,VUE NCS CITB HS&E TEST,17.50,EDUC VISITS/HOLS/CAMPS/TOYS,SCHOOLS & EDUCATIONAL SVC-NOT ELSEWHERE CLASSIFIED
02/02/2015,http://opendatacommunities.org/id/county-council/surrey,Surrey,http://id.esd.org.uk/service/1465,Council expenditure,15/10/2014,LONGFIELD RESIDENTIAL CARE,RUDGWICK PHARMACY,13.09,MEDICAL EXPENSES,"DRUG STORES, PHARMACIES"
02/02/2015,http://opendatacommunities.org/id/county-council/surrey,Surrey,http://id.esd.org.uk/service/1465,Council expenditure,15/10/2014,ENSURING SUFFICIENCY - CHILDMINDING,AMAZON  MKTPLCE EU-UK,6.98,EDUC VISITS/HOLS/CAMPS/TOYS,BOOK STORES
02/02/2015,http://opendatacommunities.org/id/county-council/surrey,Surrey,http://id.esd.org.uk/service/1465,Council expenditure,15/10/2014,CENTRAL COMMS - PUBLIC HEALTH CAMPAIGNS,FACEBOOK 3AYZX6J2S2,20.36,PUBLICITY,ADVERTISING SERVICES
02/02/2015,http://opendatacommunities.org/id/county-council/surrey,Surrey,http://id.esd.org.uk/service/1465,Council expenditure,15/10/2014,VIRTUAL SCHOOL FOR LAC PUPIL PREMIUM,WWW.THEWHOCARETRUST.OR,6.75,BOOKS,"ORGANIZATIONS, CHARITABLE AND SOCIAL SERVICES"
02/02/2015,http://opendatacommunities.org/id/county-council/surrey,Surrey,http://id.esd.org.uk/service/1465,Council expenditure,15/10/2014,RESOURCES STATIONERY,AMAZON  MKTPLCE EU-UK,42.04,LIBRARY RESOURCES,BOOK STORES
02/02/2015,http://opendatacommunities.org/id/county-council/surrey,Surrey,http://id.esd.org.uk/service/1465,Council expenditure,15/10/2014,SFRS TRANSPORT,INSULATED TOOLS LTD,55.70,OPERATIONAL FIRE EQUIPMENT,HARDWARE EQUIPMENT AND SUPPLIES
02/02/2015,http://opendatacommunities.org/id/county-council/surrey,Surrey,http://id.esd.org.uk/service/1465,Council expenditure,15/10/2014,LEGAL SUPPORT TEAM,LIGHT REPUBLIC PHOTOGR,393.75,PUBLICITY,PHOTOGRAPHIC STUDIOS
02/02/2015,http://opendatacommunities.org/id/county-council/surrey,Surrey,http://id.esd.org.uk/service/1465,Council expenditure,15/10/2014,SURREY ARTS GENERAL,THE TRAINLINE.CO,12.19,MISCELLANEOUS STAFF TRAVEL,PASSENGER RAILWAYS
02/02/2015,http://opendatacommunities.org/id/county-council/surrey,Surrey,http://id.esd.org.uk/service/1465,Council expenditure,15/10/2014,WORKING TOGETHER,THE BRITISH ASSOCIATIO,130.00,SUBSCRIPTIONS,"ORGANIZATIONS, CHARITABLE AND SOCIAL SERVICES"
02/02/2015,http://opendatacommunities.org/id/county-council/surrey,Surrey,http://id.esd.org.uk/service/1465,Council expenditure,15/10/2014,RUTH HOUSE,WWW.CARTRIDGESAVE.CO.U,76.78,EQUIPMENT,"OFFICE, SCHOOL SUPPLY, AND STATIONERY STORES"
02/02/2015,http://opendatacommunities.org/id/county-council/surrey,Surrey,http://id.esd.org.uk/service/1465,Council expenditure,15/10/2014,PROGRAMME TEAM,CENTRAL LIBRARY,90.00,TRAINING EXPENSES EXTERNAL GENERAL,MISCELLANEOUS GENERAL MERCHANDISE
02/02/2015,http://opendatacommunities.org/id/county-council/surrey,Surrey,http://id.esd.org.uk/service/1465,Council expenditure,15/10/2014,CHILDRENS CENTRAL REFERRAL UNIT,WWW.TONERGIANT.CO.UK,63.76,STATIONERY,"OFFICE, SCHOOL SUPPLY, AND STATIONERY STORES"
02/02/2015,http://opendatacommunities.org/id/county-council/surrey,Surrey,http://id.esd.org.uk/service/1465,Council expenditure,15/10/2014,HILLSIDE,CARGO D2,104.00,EQUIPMENT,"EQUIP, FURNITURE, HOME FURNSHNGS STRS (EXCPT APPL)"
02/02/2015,http://opendatacommunities.org/id/county-council/surrey,Surrey,http://id.esd.org.uk/service/1465,Council expenditure,15/10/2014,ACL CENTRAL EXPENDITURE,GOOGLE  ADWS3062151770,450.00,PUBLICITY,DIRECT MARKETING-CONTINUITY/SUBSCRIPTION MERCHANTS
02/02/2015,http://opendatacommunities.org/id/county-council/surrey,Surrey,http://id.esd.org.uk/service/1465,Council expenditure,15/10/2014,COBGATES RESIDENTIAL CARE,TESCO DIRECT,53.00,EQUIPMENT,MISCELLANEOUS AND SPECIALTY RETAIL STORES
02/02/2015,http://opendatacommunities.org/id/county-council/surrey,Surrey,http://id.esd.org.uk/service/1465,Council expenditure,15/10/2014,SE CP AND COURT TEAM,ARGOS LTD,108.93,EQUIPMENT,DISCOUNT STORES
02/02/2015,http://opendatacommunities.org/id/county-council/surrey,Surrey,http://id.esd.org.uk/service/1465,Council expenditure,15/10/2014,BUILD WORDCLASS WF - CHILDCARE TRAINING,WWW.SPECIALDIRECT.COM,71.94,STATIONERY,"OFFICE, SCHOOL SUPPLY, AND STATIONERY STORES"
02/02/2015,http://opendatacommunities.org/id/county-council/surrey,Surrey,http://id.esd.org.uk/service/1465,Council expenditure,15/10/2014,NE CARE - LAC,RB KINGSTON GUILDHALL2,10.00,FEES,GOVERNMENT SERVICES-NOT ELSEWHERE CLASSIFIED
02/02/2015,http://opendatacommunities.org/id/county-council/surrey,Surrey,http://id.esd.org.uk/service/1465,Council expenditure,15/10/2014,READY 4 WORK PROGRAMME,BROOKLANDS COLLEGE,400.00,TRAINING EXPENSES EXTERNAL GENERAL,"COLLEGES, UNIV, PRO SCHOOLS, JUNIOR COLLEGES"
02/02/2015,http://opendatacommunities.org/id/county-council/surrey,Surrey,http://id.esd.org.uk/service/1465,Council expenditure,15/10/2014,ACL CENTRAL EXPENDITURE,AMAZON  MKTPLCE EU-UK,27.50,ITEMS PURCHASED FOR RE-SALE,BOOK STORES
02/02/2015,http://opendatacommunities.org/id/county-council/surrey,Surrey,http://id.esd.org.uk/service/1465,Council expenditure,15/10/2014,PROPERTY OPERATIONS TEAM,JEWSON LTD,47.14,PURCHASE OF BUILDING MATERIALS,"BUILDING MATERIALS, LUMBER STORES"
02/02/2015,http://opendatacommunities.org/id/county-council/surrey,Surrey,http://id.esd.org.uk/service/1465,Council expenditure,15/10/2014,SURREY ARTS GENERAL,THE TRAINLINE.CO,10.76,MISCELLANEOUS STAFF TRAVEL,PASSENGER RAILWAYS
02/02/2015,http://opendatacommunities.org/id/county-council/surrey,Surrey,http://id.esd.org.uk/service/1465,Council expenditure,15/10/2014,HILLSIDE,NEXT RETAIL LTD,106.00,EQUIPMENT,FAMILY CLOTHING STORES
02/02/2015,http://opendatacommunities.org/id/county-council/surrey,Surrey,http://id.esd.org.uk/service/1465,Council expenditure,15/10/2014,HOPE SERVICE EAST,SQUIRES GARDEN CEN,6.70,REFRESHMENT COSTS,LAWN AND GARDEN SUPPLY STORES
02/02/2015,http://opendatacommunities.org/id/county-council/surrey,Surrey,http://id.esd.org.uk/service/1465,Council expenditure,15/10/2014,SFRS TRANSPORT,INTRAMARK,42.91,"CLOTHING, UNIFORM AND LAUNDRY",MEN'S/WOMEN'S/CHILDREN'S UNIFORMS/COMMERCIAL CLOTH
02/02/2015,http://opendatacommunities.org/id/county-council/surrey,Surrey,http://id.esd.org.uk/service/1465,Council expenditure,15/10/2014,ENSURING SUFFICIENCY - CHILDMINDING,AMAZON  MKTPLCE EU-UK,37.45,EDUC VISITS/HOLS/CAMPS/TOYS,BOOK STORES
02/02/2015,http://opendatacommunities.org/id/county-council/surrey,Surrey,http://id.esd.org.uk/service/1465,Council expenditure,15/10/2014,MALLOW CRESCENT,ON LINE SHOPPING (79.92%),84.00,CLEANING AND DOMESTIC SUPPLIES,"GROCERY STORES, SUPERMARKETS"
02/02/2015,http://opendatacommunities.org/id/county-council/surrey,Surrey,http://id.esd.org.uk/service/1465,Council expenditure,15/10/2014,MALLOW CRESCENT,ON LINE SHOPPING (20.08%),21.10,PURCHASE OF FOOD (RAW MATERIALS),"GROCERY STORES, SUPERMARKETS"
02/02/2015,http://opendatacommunities.org/id/county-council/surrey,Surrey,http://id.esd.org.uk/service/1465,Council expenditure,15/10/2014,OPS-FLEET/WORKSHOPS,LA SALLE,13.45,CE03 CAPITAL VEHICLES AND PLANT,"EATING PLACES, RESTAURANTS"
02/02/2015,http://opendatacommunities.org/id/county-council/surrey,Surrey,http://id.esd.org.uk/service/1465,Council expenditure,15/10/2014,TRAINING AND DEVELOPMENT,TRAVELODGE WEBSITE,121.30,SUBSISTENCE AND CONFERENCE EXPENSES,TRAVELODGE
02/02/2015,http://opendatacommunities.org/id/county-council/surrey,Surrey,http://id.esd.org.uk/service/1465,Council expenditure,15/10/2014,BROOMFIELD (LIBERTAS),AMAZON EU,10.57,BOOKS,DIRECT MARKETING-OTHER DIRECT MARKETERS/NOT ELSEW.
02/02/2015,http://opendatacommunities.org/id/county-council/surrey,Surrey,http://id.esd.org.uk/service/1465,Council expenditure,15/10/2014,CENTRAL COMMS - PUBLIC HEALTH CAMPAIGNS,FACEBK  7SFTY6S9K2,27.77,PUBLICITY,ADVERTISING SERVICES
02/02/2015,http://opendatacommunities.org/id/county-council/surrey,Surrey,http://id.esd.org.uk/service/1465,Council expenditure,15/10/2014,TRAINING SURREY HIGHWAYS,WWW.ICE.ORG.UK,213.00,TRAINING EXPENSES EXTERNAL GENERAL,"ORGANIZATIONS, MEMBERSHIP-NOT ELSEWHERE CLASSIFIED"
02/02/2015,http://opendatacommunities.org/id/county-council/surrey,Surrey,http://id.esd.org.uk/service/1465,Council expenditure,15/10/2014,NW CARE - LAC,WEST MIDLANDS TRAV,89.00,NON-STAFF RELATED TRANSPORT COSTS,BUS LINES
02/02/2015,http://opendatacommunities.org/id/county-council/surrey,Surrey,http://id.esd.org.uk/service/1465,Council expenditure,15/10/2014,BURBANK COMMUNITY HOME,WH SMITH,25.00,STATIONERY,NEWS DEALERS AND NEWSSTANDS
02/02/2015,http://opendatacommunities.org/id/county-council/surrey,Surrey,http://id.esd.org.uk/service/1465,Council expenditure,15/10/2014,COUNTRYSIDE HERITAGE SKILLS PROJECT,AMAZON  MKTPLCE EU-UK,5.54,EQUIPMENT,BOOK STORES
02/02/2015,http://opendatacommunities.org/id/county-council/surrey,Surrey,http://id.esd.org.uk/service/1465,Council expenditure,15/10/2014,SURREY ARTS GENERAL,THE TRAINLINE.CO,12.19,MISCELLANEOUS STAFF TRAVEL,PASSENGER RAILWAYS
02/02/2015,http://opendatacommunities.org/id/county-council/surrey,Surrey,http://id.esd.org.uk/service/1465,Council expenditure,15/10/2014,OUTDOOR EDUCATION CENTRE ESTATES,SCREWFIX DIRECT,25.62,DAY TO DAY MAINTENANCE,"BUILDING MATERIALS, LUMBER STORES"
02/02/2015,http://opendatacommunities.org/id/county-council/surrey,Surrey,http://id.esd.org.uk/service/1465,Council expenditure,15/10/2014,PROPERTY OPERATIONS TEAM,SCREWFIX,7.47,PURCHASE OF BUILDING MATERIALS,"BUILDING MATERIALS, LUMBER STORES"
02/02/2015,http://opendatacommunities.org/id/county-council/surrey,Surrey,http://id.esd.org.uk/service/1465,Council expenditure,15/10/2014,BUILD WORDCLASS WF - CHILDCARE TRAINING,AMAZON  MKTPLCE EU-UK,36.04,EDUC VISITS/HOLS/CAMPS/TOYS,BOOK STORES
02/02/2015,http://opendatacommunities.org/id/county-council/surrey,Surrey,http://id.esd.org.uk/service/1465,Council expenditure,15/10/2014,SURREY ARTS GENERAL,THE TRAINLINE.CO,10.76,MISCELLANEOUS STAFF TRAVEL,PASSENGER RAILWAYS
02/02/2015,http://opendatacommunities.org/id/county-council/surrey,Surrey,http://id.esd.org.uk/service/1465,Council expenditure,15/10/2014,BADGERS WOOD,SAINSBURYS TO YOU 0686,249.52,PURCHASE OF FOOD (RAW MATERIALS),"GROCERY STORES, SUPERMARKETS"
02/02/2015,http://opendatacommunities.org/id/county-council/surrey,Surrey,http://id.esd.org.uk/service/1465,Council expenditure,15/10/2014,NE EDUCATION WELFARE OFFICERS,SPLIT - (50%),3.84,EQUIPMENT,BOOK STORES
02/02/2015,http://opendatacommunities.org/id/county-council/surrey,Surrey,http://id.esd.org.uk/service/1465,Council expenditure,15/10/2014,NE TEACHERS,SPLIT - (50%),3.84,EQUIPMENT,BOOK STORES
02/02/2015,http://opendatacommunities.org/id/county-council/surrey,Surrey,http://id.esd.org.uk/service/1465,Council expenditure,15/10/2014,PROPERTY OPERATIONS TEAM,DW BURNS & PARTNER,17.05,PURCHASE OF BUILDING MATERIALS,"BUILDING MATERIALS, LUMBER STORES"
02/02/2015,http://opendatacommunities.org/id/county-council/surrey,Surrey,http://id.esd.org.uk/service/1465,Council expenditure,15/10/2014,NE TEACHERS,AMAZON EU,19.25,BOOKS,DIRECT MARKETING-OTHER DIRECT MARKETERS/NOT ELSEW.
02/02/2015,http://opendatacommunities.org/id/county-council/surrey,Surrey,http://id.esd.org.uk/service/1465,Council expenditure,15/10/2014,OUTDOOR EDUCATION CATERING OPERATIONS,SUDDIES,94.80,EQUIPMENT,HOUSEHOLD APPLIANCE STORES
02/02/2015,http://opendatacommunities.org/id/county-council/surrey,Surrey,http://id.esd.org.uk/service/1465,Council expenditure,15/10/2014,BROCKHURST RESIDENTIAL CARE,INTERFLORA BRITISH UNI,72.96,STATIONERY,FLORISTS
02/02/2015,http://opendatacommunities.org/id/county-council/surrey,Surrey,http://id.esd.org.uk/service/1465,Council expenditure,15/10/2014,BURBANK COMMUNITY HOME,SAINSBURYS TO YOU 0686,228.29,PURCHASE OF FOOD (RAW MATERIALS),"GROCERY STORES, SUPERMARKETS"
02/02/2015,http://opendatacommunities.org/id/county-council/surrey,Surrey,http://id.esd.org.uk/service/1465,Council expenditure,16/10/2014,BURBANK COMMUNITY HOME,WOKING BOROUGH COUNCIL,2.60,MISCELLANEOUS STAFF TRAVEL,AUTOMOBILE PARKING LOTS AND GARAGES
02/02/2015,http://opendatacommunities.org/id/county-council/surrey,Surrey,http://id.esd.org.uk/service/1465,Council expenditure,16/10/2014,RUTH HOUSE,B & Q,191.40,EQUIPMENT,"BUILDING MATERIALS, LUMBER STORES"
02/02/2015,http://opendatacommunities.org/id/county-council/surrey,Surrey,http://id.esd.org.uk/service/1465,Council expenditure,16/10/2014,PROJECT DELIVERY,SCRUM.ORG,63.86,COMPUTER SERVICES,SCHOOLS & EDUCATIONAL SVC-NOT ELSEWHERE CLASSIFIED
02/02/2015,http://opendatacommunities.org/id/county-council/surrey,Surrey,http://id.esd.org.uk/service/1465,Council expenditure,16/10/2014,ARUNDEL,FOOD FOR SERVICE USERS (99.01%),100.29,REFRESHMENT COSTS,"GROCERY STORES, SUPERMARKETS"
02/02/2015,http://opendatacommunities.org/id/county-council/surrey,Surrey,http://id.esd.org.uk/service/1465,Council expenditure,16/10/2014,ARUNDEL,FOOD FOR SERVICE USERS (0.99%),1.00,REFRESHMENT COSTS,"GROCERY STORES, SUPERMARKETS"
02/02/2015,http://opendatacommunities.org/id/county-council/surrey,Surrey,http://id.esd.org.uk/service/1465,Council expenditure,16/10/2014,IMT PSTN,"ZENDESK, INC.","6,922.73",COMPUTER SERVICES,PROFESSIONAL SERVICES-NOT ELSEWHERE CLASSIFIED
02/02/2015,http://opendatacommunities.org/id/county-council/surrey,Surrey,http://id.esd.org.uk/service/1465,Council expenditure,16/10/2014,TRAINING PROPERTY,WWW.THEFPA.CO.UK,570.00,TRAINING EXPENSES EXTERNAL GENERAL,MISCELLANEOUS PUBLISHING AND PRINTING
02/02/2015,http://opendatacommunities.org/id/county-council/surrey,Surrey,http://id.esd.org.uk/service/1465,Council expenditure,16/10/2014,ACL CENTRAL EXPENDITURE,AMAZON EU,31.09,EQUIPMENT,DIRECT MARKETING-OTHER DIRECT MARKETERS/NOT ELSEW.
02/02/2015,http://opendatacommunities.org/id/county-council/surrey,Surrey,http://id.esd.org.uk/service/1465,Council expenditure,16/10/2014,CENTRAL COMMS - PUBLIC HEALTH CAMPAIGNS,FACEBK  EMFXW6J9K2,27.77,PUBLICITY,ADVERTISING SERVICES
02/02/2015,http://opendatacommunities.org/id/county-council/surrey,Surrey,http://id.esd.org.uk/service/1465,Council expenditure,16/10/2014,YSS YOUTH CENTRE IMPROVEMENTS,EURONICS LIMITED,264.99,EQUIPMENT,HOUSEHOLD APPLIANCE STORES
02/02/2015,http://opendatacommunities.org/id/county-council/surrey,Surrey,http://id.esd.org.uk/service/1465,Council expenditure,16/10/2014,BUILD WORDCLASS WF - CHILDCARE TRAINING,AMAZON  MKTPLCE EU-UK,41.40,EDUC VISITS/HOLS/CAMPS/TOYS,BOOK STORES
02/02/2015,http://opendatacommunities.org/id/county-council/surrey,Surrey,http://id.esd.org.uk/service/1465,Council expenditure,16/10/2014,PSSS ICT SUPPORT,AMAZON  MKTPLCE EU-UK,11.49,EQUIPMENT,BOOK STORES
02/02/2015,http://opendatacommunities.org/id/county-council/surrey,Surrey,http://id.esd.org.uk/service/1465,Council expenditure,16/10/2014,BUILD WORDCLASS WF - CHILDCARE TRAINING,AMAZON  MKTPLCE EU-UK,2.78,STATIONERY,BOOK STORES
02/02/2015,http://opendatacommunities.org/id/county-council/surrey,Surrey,http://id.esd.org.uk/service/1465,Council expenditure,16/10/2014,ROW VOLUNTEERS WEST,PRACTICAL CAR & VAN RE,48.00,HIRE OF VEHICLES,AUTOMOBILE RENTAL AGENCY-NOT ELSEWHERE CLASSIFIED
02/02/2015,http://opendatacommunities.org/id/county-council/surrey,Surrey,http://id.esd.org.uk/service/1465,Council expenditure,16/10/2014,CENTRAL COMMS - PUBLIC HEALTH CAMPAIGNS,FACEBOOK LZCR27N2S2,20.17,PUBLICITY,ADVERTISING SERVICES
02/02/2015,http://opendatacommunities.org/id/county-council/surrey,Surrey,http://id.esd.org.uk/service/1465,Council expenditure,16/10/2014,SE LOOKED AFTER TEAM,VIR ATL21 2164929362,139.40,MISCELLANEOUS STAFF TRAVEL,VIRGIN ATLANTIC
02/02/2015,http://opendatacommunities.org/id/county-council/surrey,Surrey,http://id.esd.org.uk/service/1465,Council expenditure,16/10/2014,TARGETED INTERVENTION,TOP GOLF ADDLESTON,20.00,EDUC VISITS/HOLS/CAMPS/TOYS,"CLUBS-CNTRY,MBRSHIP(ATHLET,REC,SPRTS,PRIVATE GOLF"
02/02/2015,http://opendatacommunities.org/id/county-council/surrey,Surrey,http://id.esd.org.uk/service/1465,Council expenditure,16/10/2014,CHEYNE WALK COMMUNITY HOME,C.W.F. BUTCHERS,25.91,PURCHASE OF FOOD (RAW MATERIALS),"MISC FOOD STORE-CONVENIENCE,MRKT,SPLTY,VENDNG MACS"
02/02/2015,http://opendatacommunities.org/id/county-council/surrey,Surrey,http://id.esd.org.uk/service/1465,Council expenditure,16/10/2014,TS SERVICE MANAGEMENT,TRADING STANDARDS INST,144.00,SUBSCRIPTIONS,DIRECT MARKETING-COMBINATION CATALOG/RETAIL MERCH.
02/02/2015,http://opendatacommunities.org/id/county-council/surrey,Surrey,http://id.esd.org.uk/service/1465,Council expenditure,16/10/2014,ACL CENTRAL EXPENDITURE,AMAZON  MKTPLCE EU-UK,10.50,EQUIPMENT,BOOK STORES
02/02/2015,http://opendatacommunities.org/id/county-council/surrey,Surrey,http://id.esd.org.uk/service/1465,Council expenditure,16/10/2014,COUNTRYSIDE HERITAGE SKILLS PROJECT,AMAZON  MKTPLCE EU-UK,9.55,BOOKS,BOOK STORES
02/02/2015,http://opendatacommunities.org/id/county-council/surrey,Surrey,http://id.esd.org.uk/service/1465,Council expenditure,16/10/2014,BUILD WORDCLASS WF - CHILDCARE TRAINING,AMAZON  MKTPLCE EU-UK,8.97,EDUC VISITS/HOLS/CAMPS/TOYS,BOOK STORES
02/02/2015,http://opendatacommunities.org/id/county-council/surrey,Surrey,http://id.esd.org.uk/service/1465,Council expenditure,16/10/2014,ASYLUM SEEKERS 18+,MICROTRONICS CENTRE,750.00,EQUIPMENT,HOUSEHOLD APPLIANCE STORES
02/02/2015,http://opendatacommunities.org/id/county-council/surrey,Surrey,http://id.esd.org.uk/service/1465,Council expenditure,16/10/2014,MEADOWVIEW COMMUNITY HOME,PARENTPAY.COM&PAY24-7.,40.00,PURCHASE OF FOOD (RAW MATERIALS),"COLLEGES, UNIV, PRO SCHOOLS, JUNIOR COLLEGES"
02/02/2015,http://opendatacommunities.org/id/county-council/surrey,Surrey,http://id.esd.org.uk/service/1465,Council expenditure,16/10/2014,ARUNDEL,WILKO RETAIL LIMIT,20.30,EQUIPMENT,HOUSEHOLD APPLIANCE STORES
02/02/2015,http://opendatacommunities.org/id/county-council/surrey,Surrey,http://id.esd.org.uk/service/1465,Council expenditure,16/10/2014,KARIBU COMMUNITY HOME,SAINSBURYS 0683,64.90,PURCHASE OF FOOD (RAW MATERIALS),"GROCERY STORES, SUPERMARKETS"
02/02/2015,http://opendatacommunities.org/id/county-council/surrey,Surrey,http://id.esd.org.uk/service/1465,Council expenditure,16/10/2014,ROW VOLUNTEERS WEST,SHORTS GROUP LTD,228.00,TRADE REFUSE,"EQUIPMENT RENTAL&LEASING SVS, FURNTURE/TOOL RENTAL"
02/02/2015,http://opendatacommunities.org/id/county-council/surrey,Surrey,http://id.esd.org.uk/service/1465,Council expenditure,16/10/2014,BUILD WORDCLASS WF - CHILDCARE TRAINING,AMAZON  MKTPLCE EU-UK,2.72,EDUC VISITS/HOLS/CAMPS/TOYS,BOOK STORES
02/02/2015,http://opendatacommunities.org/id/county-council/surrey,Surrey,http://id.esd.org.uk/service/1465,Council expenditure,16/10/2014,HERITAGE ENTERPRISE (SCAU),JEWSON LTD,78.85,EQUIPMENT,"BUILDING MATERIALS, LUMBER STORES"
02/02/2015,http://opendatacommunities.org/id/county-council/surrey,Surrey,http://id.esd.org.uk/service/1465,Council expenditure,16/10/2014,OPS-FLEET/WORKSHOPS,APCOA-HAL LONG STAY CT,45.00,CE03 CAPITAL VEHICLES AND PLANT,AUTOMOBILE PARKING LOTS AND GARAGES
02/02/2015,http://opendatacommunities.org/id/county-council/surrey,Surrey,http://id.esd.org.uk/service/1465,Council expenditure,16/10/2014,VACANT AREAS WEST HOUSE ANNEXE,WWW.PARRS.CO.UK,410.16,FIXTURES AND FITTINGS,HARDWARE EQUIPMENT AND SUPPLIES
02/02/2015,http://opendatacommunities.org/id/county-council/surrey,Surrey,http://id.esd.org.uk/service/1465,Council expenditure,16/10/2014,ENSURING SUFFICIENCY - CHILDMINDING,AMAZON  MKTPLCE EU-UK,41.46,EDUC VISITS/HOLS/CAMPS/TOYS,BOOK STORES
02/02/2015,http://opendatacommunities.org/id/county-council/surrey,Surrey,http://id.esd.org.uk/service/1465,Council expenditure,16/10/2014,MEADOWVIEW COMMUNITY HOME,KITCHENWARE (96.66%),33.00,EQUIPMENT,"GROCERY STORES, SUPERMARKETS"
02/02/2015,http://opendatacommunities.org/id/county-council/surrey,Surrey,http://id.esd.org.uk/service/1465,Council expenditure,16/10/2014,MEADOWVIEW COMMUNITY HOME,PROVISIONS (3.34%),1.14,PURCHASE OF FOOD (RAW MATERIALS),"GROCERY STORES, SUPERMARKETS"
02/02/2015,http://opendatacommunities.org/id/county-council/surrey,Surrey,http://id.esd.org.uk/service/1465,Council expenditure,16/10/2014,TARGETED INTERVENTION,TESCO STORES-2047,21.68,EDUC VISITS/HOLS/CAMPS/TOYS,"GROCERY STORES, SUPERMARKETS"
02/02/2015,http://opendatacommunities.org/id/county-council/surrey,Surrey,http://id.esd.org.uk/service/1465,Council expenditure,16/10/2014,OUTDOOR EDUCATION CENTRE OPERATIONS,JOHN GUNNER & CO LTD,187.20,PURCHASE OF BUILDING MATERIALS,MISCELLANEOUS AND SPECIALTY RETAIL STORES
02/02/2015,http://opendatacommunities.org/id/county-council/surrey,Surrey,http://id.esd.org.uk/service/1465,Council expenditure,16/10/2014,BUILD WORDCLASS WF - CHILDCARE TRAINING,AMAZON  MKTPLCE EU-UK,121.51,EDUC VISITS/HOLS/CAMPS/TOYS,BOOK STORES
02/02/2015,http://opendatacommunities.org/id/county-council/surrey,Surrey,http://id.esd.org.uk/service/1465,Council expenditure,16/10/2014,NIL RECOURSE PUBLIC FNDG 18+ ASYLUM SKR,TRAVELODGE WEBSITE,221.00,3RD PARTY PAYMENTS PRIVATE INDIV,TRAVELODGE
02/02/2015,http://opendatacommunities.org/id/county-council/surrey,Surrey,http://id.esd.org.uk/service/1465,Council expenditure,16/10/2014,INTERNAL AUDIT AND INSPECTION TEAM,COMPANIES HOUSE,250.00,SUBSCRIPTIONS,GOVERNMENT SERVICES-NOT ELSEWHERE CLASSIFIED
02/02/2015,http://opendatacommunities.org/id/county-council/surrey,Surrey,http://id.esd.org.uk/service/1465,Council expenditure,16/10/2014,ASSET PLANNING - OPERATIONS,SAINSBURYS SACAT 0652,2.96,REFRESHMENT COSTS,"GROCERY STORES, SUPERMARKETS"
02/02/2015,http://opendatacommunities.org/id/county-council/surrey,Surrey,http://id.esd.org.uk/service/1465,Council expenditure,16/10/2014,COUNTRYSIDE HERITAGE SKILLS PROJECT,AMAZON  MKTPLCE EU-UK,5.53,BOOKS,BOOK STORES
02/02/2015,http://opendatacommunities.org/id/county-council/surrey,Surrey,http://id.esd.org.uk/service/1465,Council expenditure,16/10/2014,CUSTOMER SERVICES,WEB CREDIBLE,594.00,TRAINING EXPENSES EXTERNAL GENERAL,"SCHOOLS, TRADE AND VOCATIONAL"
02/02/2015,http://opendatacommunities.org/id/county-council/surrey,Surrey,http://id.esd.org.uk/service/1465,Council expenditure,16/10/2014,ADULT SKILLS,AMAZON  MKTPLCE EU-UK,78.08,EQUIPMENT,BOOK STORES
02/02/2015,http://opendatacommunities.org/id/county-council/surrey,Surrey,http://id.esd.org.uk/service/1465,Council expenditure,16/10/2014,HOPE SERVICE EAST,AMAZON  MKTPLCE EU-UK,10.99,EQUIPMENT,BOOK STORES
02/02/2015,http://opendatacommunities.org/id/county-council/surrey,Surrey,http://id.esd.org.uk/service/1465,Council expenditure,16/10/2014,ASSET MANAGEMENT PLAN,EMAP LTD,736.40,TRAINING EXPENSES EXTERNAL GENERAL,MISCELLANEOUS PUBLISHING AND PRINTING
02/02/2015,http://opendatacommunities.org/id/county-council/surrey,Surrey,http://id.esd.org.uk/service/1465,Council expenditure,16/10/2014,LOWER MOLE COUNTRYSIDE PROJECT,WWW.POWERTOOLWORLD.CO.,502.67,EQUIPMENT,HARDWARE EQUIPMENT AND SUPPLIES
02/02/2015,http://opendatacommunities.org/id/county-council/surrey,Surrey,http://id.esd.org.uk/service/1465,Council expenditure,16/10/2014,BADGERS WOOD,SAINSBURYS TO YOU 0686,77.21,PURCHASE OF FOOD (RAW MATERIALS),"GROCERY STORES, SUPERMARKETS"
02/02/2015,http://opendatacommunities.org/id/county-council/surrey,Surrey,http://id.esd.org.uk/service/1465,Council expenditure,16/10/2014,CHEYNE WALK COMMUNITY HOME,SAINSBURYS TO YOU 0026,71.66,PURCHASE OF FOOD (RAW MATERIALS),"GROCERY STORES, SUPERMARKETS"
02/02/2015,http://opendatacommunities.org/id/county-council/surrey,Surrey,http://id.esd.org.uk/service/1465,Council expenditure,16/10/2014,ASSET MANAGEMENT PLAN,EMAP LTD,"1,000.00",TRAINING EXPENSES EXTERNAL GENERAL,MISCELLANEOUS PUBLISHING AND PRINTING
02/02/2015,http://opendatacommunities.org/id/county-council/surrey,Surrey,http://id.esd.org.uk/service/1465,Council expenditure,16/10/2014,ACL CENTRAL EXPENDITURE,AMAZON EU,14.39,SPECIALIST EDUCATIONAL STATIONERY,DIRECT MARKETING-OTHER DIRECT MARKETERS/NOT ELSEW.
02/02/2015,http://opendatacommunities.org/id/county-council/surrey,Surrey,http://id.esd.org.uk/service/1465,Council expenditure,16/10/2014,RUTH HOUSE,WALLPAPERDIRECT.CO,222.95,EQUIPMENT,"BUILDING MATERIALS, LUMBER STORES"
02/02/2015,http://opendatacommunities.org/id/county-council/surrey,Surrey,http://id.esd.org.uk/service/1465,Council expenditure,16/10/2014,CHEYNE WALK COMMUNITY HOME,WAITROSE 233,47.04,PURCHASE OF FOOD (RAW MATERIALS),"GROCERY STORES, SUPERMARKETS"
02/02/2015,http://opendatacommunities.org/id/county-council/surrey,Surrey,http://id.esd.org.uk/service/1465,Council expenditure,16/10/2014,LEAVING CARE PACKAGES,TRAVELODGE WEBSITE,210.00,3RD PARTY PAYMENTS PRIVATE INDIV,TRAVELODGE
02/02/2015,http://opendatacommunities.org/id/county-council/surrey,Surrey,http://id.esd.org.uk/service/1465,Council expenditure,16/10/2014,ASSISTANT DIRECTOR - HIGHWAYS,AMAZON  MKTPLCE EU-UK,45.48,EQUIPMENT,BOOK STORES
02/02/2015,http://opendatacommunities.org/id/county-council/surrey,Surrey,http://id.esd.org.uk/service/1465,Council expenditure,16/10/2014,OUTDOOR EDUCATION CENTRE ESTATES,AW CHAMPION LTD,52.65,DAY TO DAY MAINTENANCE,"BUILDING MATERIALS, LUMBER STORES"
02/02/2015,http://opendatacommunities.org/id/county-council/surrey,Surrey,http://id.esd.org.uk/service/1465,Council expenditure,16/10/2014,TRAINING PROPERTY,RICS COM GBP CYBS,300.90,TRAINING EXPENSES EXTERNAL GENERAL,"ORGANIZATIONS, MEMBERSHIP-NOT ELSEWHERE CLASSIFIED"
02/02/2015,http://opendatacommunities.org/id/county-council/surrey,Surrey,http://id.esd.org.uk/service/1465,Council expenditure,16/10/2014,HILLSIDE,SAINSBURYS SACAT 0675,83.64,PURCHASE OF FOOD (RAW MATERIALS),"GROCERY STORES, SUPERMARKETS"
02/02/2015,http://opendatacommunities.org/id/county-council/surrey,Surrey,http://id.esd.org.uk/service/1465,Council expenditure,16/10/2014,TRAINING AND DEVELOPMENT,LANSDOWN GROVE HOTEL,99.00,SUBSISTENCE AND CONFERENCE EXPENSES,"LODGING-HOTELS,MOTELS,RESORTS-NOT CLASSIFIED"
02/02/2015,http://opendatacommunities.org/id/county-council/surrey,Surrey,http://id.esd.org.uk/service/1465,Council expenditure,16/10/2014,BURBANK COMMUNITY HOME,WWW.SURREYCC.GOV.UK,20.00,REFRESHMENT COSTS,GOVERNMENT SERVICES-NOT ELSEWHERE CLASSIFIED
02/02/2015,http://opendatacommunities.org/id/county-council/surrey,Surrey,http://id.esd.org.uk/service/1465,Council expenditure,16/10/2014,MALLOW CRESCENT,AMAZON EU,64.99,EQUIPMENT,DIRECT MARKETING-OTHER DIRECT MARKETERS/NOT ELSEW.
02/02/2015,http://opendatacommunities.org/id/county-council/surrey,Surrey,http://id.esd.org.uk/service/1465,Council expenditure,16/10/2014,RUTH HOUSE,ARGOS LTD,119.95,EQUIPMENT,DISCOUNT STORES
02/02/2015,http://opendatacommunities.org/id/county-council/surrey,Surrey,http://id.esd.org.uk/service/1465,Council expenditure,16/10/2014,BUILD WORDCLASS WF - CHILDCARE TRAINING,AMAZON  MKTPLCE EU-UK,8.55,EDUC VISITS/HOLS/CAMPS/TOYS,BOOK STORES
02/02/2015,http://opendatacommunities.org/id/county-council/surrey,Surrey,http://id.esd.org.uk/service/1465,Council expenditure,16/10/2014,NE TEACHERS,AMAZON  MKTPLCE EU-UK,3.35,EQUIPMENT,BOOK STORES
02/02/2015,http://opendatacommunities.org/id/county-council/surrey,Surrey,http://id.esd.org.uk/service/1465,Council expenditure,17/10/2014,PE/CDT MAINTENANCE OVERHEADS,MML MARKETING LTD,86.28,EQUIPMENT,SCHOOLS & EDUCATIONAL SVC-NOT ELSEWHERE CLASSIFIED
02/02/2015,http://opendatacommunities.org/id/county-council/surrey,Surrey,http://id.esd.org.uk/service/1465,Council expenditure,17/10/2014,SE CARE - LAC,GRO HM PASSPORT OFFICE,-9.25,CHILDREN ACT SEC 17 PAYMENTS,GOVERNMENT SERVICES-NOT ELSEWHERE CLASSIFIED
02/02/2015,http://opendatacommunities.org/id/county-council/surrey,Surrey,http://id.esd.org.uk/service/1465,Council expenditure,17/10/2014,BURBANK COMMUNITY HOME,PRIMARK,11.00,"CLOTHING, UNIFORM AND LAUNDRY",FAMILY CLOTHING STORES
02/02/2015,http://opendatacommunities.org/id/county-council/surrey,Surrey,http://id.esd.org.uk/service/1465,Council expenditure,17/10/2014,SERVICE DELIVERY SENIOR MANAGEMENT,WWW.GREEN&BLACKSDIRECT,32.00,NEWSPAPER AND PERIODICALS,"GIFT, CARD, NOVELTY AND SOUVENIR SHOPS"
02/02/2015,http://opendatacommunities.org/id/county-council/surrey,Surrey,http://id.esd.org.uk/service/1465,Council expenditure,17/10/2014,HOPE SERVICE WEST,THE ENTERTAINER,5.00,CURRICULUM CONSUMABLES,"GAME, TOY, AND HOBBY SHOPS"
02/02/2015,http://opendatacommunities.org/id/county-council/surrey,Surrey,http://id.esd.org.uk/service/1465,Council expenditure,17/10/2014,TANDRIDGE BOROUGH TEAM,AMAZON  MKTPLCE EU-UK,4.78,EQUIPMENT,BOOK STORES
02/02/2015,http://opendatacommunities.org/id/county-council/surrey,Surrey,http://id.esd.org.uk/service/1465,Council expenditure,17/10/2014,BROOMFIELD (LIBERTAS),OCADO RETAIL LIMIT,132.81,PURCHASE OF FOOD (RAW MATERIALS),"MISC FOOD STORE-CONVENIENCE,MRKT,SPLTY,VENDNG MACS"
02/02/2015,http://opendatacommunities.org/id/county-council/surrey,Surrey,http://id.esd.org.uk/service/1465,Council expenditure,17/10/2014,MEADOWVIEW COMMUNITY HOME,PROVISIONS (11.33%),13.30,PURCHASE OF FOOD (RAW MATERIALS),"GROCERY STORES, SUPERMARKETS"
02/02/2015,http://opendatacommunities.org/id/county-council/surrey,Surrey,http://id.esd.org.uk/service/1465,Council expenditure,17/10/2014,MEADOWVIEW COMMUNITY HOME,YOUNG PEOPLE'S STATIONERY (4.25%),4.99,EDUC VISITS/HOLS/CAMPS/TOYS,"GROCERY STORES, SUPERMARKETS"
02/02/2015,http://opendatacommunities.org/id/county-council/surrey,Surrey,http://id.esd.org.uk/service/1465,Council expenditure,17/10/2014,MEADOWVIEW COMMUNITY HOME,PROVISIONS (84.42%),99.09,PURCHASE OF FOOD (RAW MATERIALS),"GROCERY STORES, SUPERMARKETS"
02/02/2015,http://opendatacommunities.org/id/county-council/surrey,Surrey,http://id.esd.org.uk/service/1465,Council expenditure,17/10/2014,TANDRIDGE BOROUGH TEAM,AMAZON  MKTPLCE EU-UK,8.40,EQUIPMENT,BOOK STORES
02/02/2015,http://opendatacommunities.org/id/county-council/surrey,Surrey,http://id.esd.org.uk/service/1465,Council expenditure,17/10/2014,TANDRIDGE BOROUGH TEAM,AMAZON  MKTPLCE EU-UK,14.98,EQUIPMENT,BOOK STORES
02/02/2015,http://opendatacommunities.org/id/county-council/surrey,Surrey,http://id.esd.org.uk/service/1465,Council expenditure,17/10/2014,ACL CENTRAL EXPENDITURE,AMAZON EU,21.29,EQUIPMENT,DIRECT MARKETING-OTHER DIRECT MARKETERS/NOT ELSEW.
02/02/2015,http://opendatacommunities.org/id/county-council/surrey,Surrey,http://id.esd.org.uk/service/1465,Council expenditure,17/10/2014,TANDRIDGE BOROUGH TEAM,AMAZON  MKTPLCE EU-UK,16.51,EQUIPMENT,BOOK STORES
02/02/2015,http://opendatacommunities.org/id/county-council/surrey,Surrey,http://id.esd.org.uk/service/1465,Council expenditure,17/10/2014,CENTRAL COMMS - PUBLIC HEALTH CAMPAIGNS,FACEBK  KDNM47JAK2,27.77,PUBLICITY,ADVERTISING SERVICES
02/02/2015,http://opendatacommunities.org/id/county-council/surrey,Surrey,http://id.esd.org.uk/service/1465,Council expenditure,17/10/2014,BURBANK COMMUNITY HOME,THE AMBASSADORS THEATR,7.50,EDUC VISITS/HOLS/CAMPS/TOYS,"THEATRICAL PRODUCERS(EXCL MOTION PIX),TICKET AGNCY"
02/02/2015,http://opendatacommunities.org/id/county-council/surrey,Surrey,http://id.esd.org.uk/service/1465,Council expenditure,17/10/2014,BUILD WORDCLASS WF - CHILDCARE TRAINING,AMAZON EU,34.99,STATIONERY,DIRECT MARKETING-OTHER DIRECT MARKETERS/NOT ELSEW.
02/02/2015,http://opendatacommunities.org/id/county-council/surrey,Surrey,http://id.esd.org.uk/service/1465,Council expenditure,17/10/2014,DEVELOPMENT TEAM,AMAZON  MKTPLCE EU-UK,13.64,EQUIPMENT,BOOK STORES
02/02/2015,http://opendatacommunities.org/id/county-council/surrey,Surrey,http://id.esd.org.uk/service/1465,Council expenditure,17/10/2014,TARGETED INTERVENTION,GUILDFORD SPECTRUM,4.60,EDUC VISITS/HOLS/CAMPS/TOYS,"EATING PLACES, RESTAURANTS"
02/02/2015,http://opendatacommunities.org/id/county-council/surrey,Surrey,http://id.esd.org.uk/service/1465,Council expenditure,17/10/2014,ENSURING SUFFICIENCY - CHILDMINDING,AMAZON EU,376.83,EDUC VISITS/HOLS/CAMPS/TOYS,DIRECT MARKETING-OTHER DIRECT MARKETERS/NOT ELSEW.
02/02/2015,http://opendatacommunities.org/id/county-council/surrey,Surrey,http://id.esd.org.uk/service/1465,Council expenditure,17/10/2014,COUNTYWIDE MANAGED PRINT,AMAZON  MKTPLCE EU-UK,39.14,STATIONERY,BOOK STORES
02/02/2015,http://opendatacommunities.org/id/county-council/surrey,Surrey,http://id.esd.org.uk/service/1465,Council expenditure,17/10/2014,COUNTY HALL,CLAS OHLSON,31.98,ADAPTATIONS,HOUSEHOLD APPLIANCE STORES
02/02/2015,http://opendatacommunities.org/id/county-council/surrey,Surrey,http://id.esd.org.uk/service/1465,Council expenditure,17/10/2014,ENSEMBLES,TICKETS 08712 301551,"1,250.00",EDUC VISITS/HOLS/CAMPS/TOYS,"THEATRICAL PRODUCERS(EXCL MOTION PIX),TICKET AGNCY"
02/02/2015,http://opendatacommunities.org/id/county-council/surrey,Surrey,http://id.esd.org.uk/service/1465,Council expenditure,17/10/2014,SE CARE - LAC,GRO HM PASSPORT OFFICE,9.25,FEES,GOVERNMENT SERVICES-NOT ELSEWHERE CLASSIFIED
02/02/2015,http://opendatacommunities.org/id/county-council/surrey,Surrey,http://id.esd.org.uk/service/1465,Council expenditure,17/10/2014,PROPERTY OPERATIONS TEAM,LEWIS'S,7.99,PURCHASE OF BUILDING MATERIALS,DEPARTMENT STORES
02/02/2015,http://opendatacommunities.org/id/county-council/surrey,Surrey,http://id.esd.org.uk/service/1465,Council expenditure,17/10/2014,ACL CENTRAL EXPENDITURE,AMAZON EU,11.29,EQUIPMENT,DIRECT MARKETING-OTHER DIRECT MARKETERS/NOT ELSEW.
02/02/2015,http://opendatacommunities.org/id/county-council/surrey,Surrey,http://id.esd.org.uk/service/1465,Council expenditure,17/10/2014,BURBANK COMMUNITY HOME,RYMAN,7.98,STATIONERY,"OFFICE, SCHOOL SUPPLY, AND STATIONERY STORES"
02/02/2015,http://opendatacommunities.org/id/county-council/surrey,Surrey,http://id.esd.org.uk/service/1465,Council expenditure,17/10/2014,PSSS ICT SUPPORT,AMAZON  MKTPLCE EU-UK,10.98,EQUIPMENT,BOOK STORES
02/02/2015,http://opendatacommunities.org/id/county-council/surrey,Surrey,http://id.esd.org.uk/service/1465,Council expenditure,17/10/2014,PSSS ICT SUPPORT,AMAZON  MKTPLCE EU-UK,10.49,EQUIPMENT,BOOK STORES
02/02/2015,http://opendatacommunities.org/id/county-council/surrey,Surrey,http://id.esd.org.uk/service/1465,Council expenditure,17/10/2014,WOODLANDS COMMUNITY HOME,SYKES COTTAGES,170.50,EDUC VISITS/HOLS/CAMPS/TOYS,MISCELLANEOUS AND SPECIALTY RETAIL STORES
02/02/2015,http://opendatacommunities.org/id/county-council/surrey,Surrey,http://id.esd.org.uk/service/1465,Council expenditure,17/10/2014,BURBANK COMMUNITY HOME,WOKING BOROUGH COUNCIL,5.20,VEHICLE RUNNING COSTS,AUTOMOBILE PARKING LOTS AND GARAGES
02/02/2015,http://opendatacommunities.org/id/county-council/surrey,Surrey,http://id.esd.org.uk/service/1465,Council expenditure,17/10/2014,CENTRAL COMMS - PUBLIC HEALTH CAMPAIGNS,FACEBOOK USHP27S2S2,35.69,PUBLICITY,ADVERTISING SERVICES
02/02/2015,http://opendatacommunities.org/id/county-council/surrey,Surrey,http://id.esd.org.uk/service/1465,Council expenditure,17/10/2014,TRAINING PROPERTY,WWW.THEFPA.CO.UK,"1,404.00",TRAINING EXPENSES EXTERNAL GENERAL,MISCELLANEOUS PUBLISHING AND PRINTING
02/02/2015,http://opendatacommunities.org/id/county-council/surrey,Surrey,http://id.esd.org.uk/service/1465,Council expenditure,17/10/2014,ARUNDEL,FOOD FOR SERVICE USERS (98.23%),166.54,REFRESHMENT COSTS,"GROCERY STORES, SUPERMARKETS"
02/02/2015,http://opendatacommunities.org/id/county-council/surrey,Surrey,http://id.esd.org.uk/service/1465,Council expenditure,17/10/2014,ARUNDEL,FOOD FOR SERVICE USERS (1.77%),3.00,REFRESHMENT COSTS,"GROCERY STORES, SUPERMARKETS"
02/02/2015,http://opendatacommunities.org/id/county-council/surrey,Surrey,http://id.esd.org.uk/service/1465,Council expenditure,17/10/2014,LIBRARIES CENTRAL,AMAZON  MKTPLCE EU-UK,20.62,EQUIPMENT,BOOK STORES
02/02/2015,http://opendatacommunities.org/id/county-council/surrey,Surrey,http://id.esd.org.uk/service/1465,Council expenditure,17/10/2014,HILLSIDE,TESCO STORES 3149,64.99,PURCHASE OF FOOD (RAW MATERIALS),"GROCERY STORES, SUPERMARKETS"
02/02/2015,http://opendatacommunities.org/id/county-council/surrey,Surrey,http://id.esd.org.uk/service/1465,Council expenditure,17/10/2014,COUNTY HALL,B & Q NEW PLC,81.23,EQUIPMENT,"BUILDING MATERIALS, LUMBER STORES"
02/02/2015,http://opendatacommunities.org/id/county-council/surrey,Surrey,http://id.esd.org.uk/service/1465,Council expenditure,17/10/2014,CENTRAL COMMS - PUBLIC HEALTH CAMPAIGNS,GOOGLE  ADWS2060179426,500.00,PUBLICITY,DIRECT MARKETING-CONTINUITY/SUBSCRIPTION MERCHANTS
02/02/2015,http://opendatacommunities.org/id/county-council/surrey,Surrey,http://id.esd.org.uk/service/1465,Council expenditure,17/10/2014,TANDRIDGE BOROUGH TEAM,AMAZON  MKTPLCE EU-UK,0.81,EQUIPMENT,BOOK STORES
02/02/2015,http://opendatacommunities.org/id/county-council/surrey,Surrey,http://id.esd.org.uk/service/1465,Council expenditure,17/10/2014,NW CARE CP ,SURREY CC CARD PAY,11.00,FEES,COMPUTER NETWORK/INFORMATION SERVICES
02/02/2015,http://opendatacommunities.org/id/county-council/surrey,Surrey,http://id.esd.org.uk/service/1465,Council expenditure,17/10/2014,SOLD CURRICULUM PROGRAMME DELIVERY,TESCO STORES 3102,4.00,PURCHASE OF FOOD (RAW MATERIALS),"GROCERY STORES, SUPERMARKETS"
02/02/2015,http://opendatacommunities.org/id/county-council/surrey,Surrey,http://id.esd.org.uk/service/1465,Council expenditure,17/10/2014,TRAINING PROPERTY,AAA TRAINING CO LT,745.00,TRAINING EXPENSES EXTERNAL GENERAL,SCHOOLS & EDUCATIONAL SVC-NOT ELSEWHERE CLASSIFIED
02/02/2015,http://opendatacommunities.org/id/county-council/surrey,Surrey,http://id.esd.org.uk/service/1465,Council expenditure,17/10/2014,COUNTYWIDE MANAGED PRINT,AMAZON  MKTPLCE EU-UK,39.15,STATIONERY,BOOK STORES
